TRANSACTION DATE,SUPPLIER NAME (Beneficiary),DIRECTORATE,COST CENTRE DESCRIPTION,GROSS AMOUNT,SUBJECTIVE DESCRIPTION,MERCHANT CATEGORY CODE
01 Apr 2014,VIKING SKIPS,CHILDRENS SERVICES,AFST-BENTLEY,115.00,LEASING/HIRE/RENTAL-EQUIPMENT,EQUIPMENT RENTAL AND LEASING SERVICES (7394)
01 Apr 2014,W M MORRISON PLC,CHILDRENS SERVICES,SPINDLETREE,151.82,GENERAL PROVISIONS-PROVISIONS,GROCERY STORES AND SUPERMARKETS (5411)
01 Apr 2014,W M MORRISON PLC,CHILDRENS SERVICES,SPINDLETREE,3.90,GENERAL PROVISIONS-PROVISIONS,GROCERY STORES AND SUPERMARKETS (5411)
01 Apr 2014,BORSHCH ELECTRIC,RESOURCES,WALSALL CRISIS SUPPORT SCHEME,140.00,CRISIS SUPPORT PAYMENTS,HOUSEHOLD APPLIANCE STORES (5722)
01 Apr 2014,B&M RETAIL LTD,CHILDRENS SERVICES,SPINDLETREE,32.02,GENERAL PROVISIONS-PROVISIONS,DISCOUNT STORES (5310)
01 Apr 2014,AMAZON EU,REGENERATION,CENTRAL OFFICE ACCOMMODATION,278.80,FURNITURE & EQUIPMENT,OTHER DIRECT MARKETING-OTHER DIRECT MARKETERS (5969)
01 Apr 2014,OFFICE DEPOT,CHILDRENS SERVICES,STREETLY CHILDRENS CENTRE,36.37,STATIONERY & GENERAL SUPPLIES-OFFICE EXP,"STATIONERY, OFFICE SUPPLIES AND WRITING PAPER (5111)"
01 Apr 2014,CRAZY HOUSE (BROWNHILL,RESOURCES,WALSALL CRISIS SUPPORT SCHEME,135.00,CRISIS SUPPORT PAYMENTS,"EQUIPMENT, FURNITURE, AND HOME FURNISHINGS STORES  (5712)"
01 Apr 2014,WELSH BROS FOODS LTD,NEIGHBOURHOOD SERVICES,TOWN HALL RESTAURANT BISTRO,69.49,MEAT-PROVISIONS,FREEZER AND LOCKER MEAT PROVISIONERS (5422)
01 Apr 2014,AMAZON EU,CHILDRENS SERVICES,SEN ASSESSMENT,8.43,STATIONERY & GENERAL SUPPLIES-OFFICE EXP,OTHER DIRECT MARKETING-OTHER DIRECT MARKETERS (5969)
01 Apr 2014,OFFICE DEPOT,SOCIAL CARE & INCLUSION,INTEGRATED BUSINESS PROCESSES & SERVICES,117.96,STATIONERY & GENERAL SUPPLIES-OFFICE EXP,"STATIONERY, OFFICE SUPPLIES AND WRITING PAPER (5111)"
01 Apr 2014,TRAINLINE.COM,CHILDRENS SERVICES,LOOKED AFTER CHILDRENS SOCIAL WORK TEAM,112.81,SUPPORT UNDER SECTION 23 OF THE CHILDRENS ACT,PASSENGER RAILWAYS (4112)
01 Apr 2014,COLLINS DEBDEN LTD,CHILDRENS SERVICES,SCHOOL IMPROVEMENT,55.24,STATIONERY & GENERAL SUPPLIES-OFFICE EXP,"OFFICE, SCHOOL SUPPLY, AND STATIONERY STORES (5943)"
01 Apr 2014,AMAZON EU,RESOURCES,COMMUNICATIONS,85.06,PUBLICITY & ADVERTISING (NOT STAFF ADVERTISING),OTHER DIRECT MARKETING-OTHER DIRECT MARKETERS (5969)
01 Apr 2014,TRAINLINE.COM,CHILDRENS SERVICES,EARLY YEARS SERVICE,123.62,OFFICER/STAFF-PUBLIC TRANSPORT,PASSENGER RAILWAYS (4112)
01 Apr 2014,BORSHCH ELECTRIC,RESOURCES,WALSALL CRISIS SUPPORT SCHEME,325.00,CRISIS SUPPORT PAYMENTS,HOUSEHOLD APPLIANCE STORES (5722)
01 Apr 2014,LOCKS & FITTINGS,NEIGHBOURHOOD SERVICES,POOLFITTERS,5.41,"CROCKERY,HARDWARE & DISPOSABLES-MATERIALS",HARDWARE EQUIPMENT AND SUPPLIES (5072)
01 Apr 2014,W M MORRISON PLC,CHILDRENS SERVICES,"43A HILTON ROAD, WILLENHALL",14.77,FOOD AND BEVERAGES-PROVISIONS,GROCERY STORES AND SUPERMARKETS (5411)
01 Apr 2014,FARMFOODS- BLOXWIC,CHILDRENS SERVICES,SPINDLETREE,90.38,GENERAL PROVISIONS-PROVISIONS,GROCERY STORES AND SUPERMARKETS (5411)
01 Apr 2014,OFFICE DEPOT,NEIGHBOURHOOD SERVICES,GREEN SPACE MANAGEMENT,52.54,PROFESSIONAL FEES AND SERVICES,"STATIONERY, OFFICE SUPPLIES AND WRITING PAPER (5111)"
01 Apr 2014,OFFICE DEPOT,CHILDRENS SERVICES,CHILDRENS RESIDENTIAL SVCS,201.50,STATIONERY & GENERAL SUPPLIES-OFFICE EXP,"STATIONERY, OFFICE SUPPLIES AND WRITING PAPER (5111)"
01 Apr 2014,THE CLIFF LAWN,CHILDRENS SERVICES,LODGE FARM JMI SCHOOL,54.00,ADVERTISING STAFF VACANCIES,"HOTELS, MOTELS, RESORTS (7011)"
01 Apr 2014,OFFICE DEPOT,NEIGHBOURHOOD SERVICES,AP FINANCE & RESOURCES IT,444.73,COMPUTER EQUIPMENT AND SUPPLIES,"STATIONERY, OFFICE SUPPLIES AND WRITING PAPER (5111)"
01 Apr 2014,OCTOBER GALLERY,NEIGHBOURHOOD SERVICES,NEW ART GALLERY - ADMIN,80.00,HOTEL ACCOMMODATION-EMPLOYEES,"ORGANIZATIONS, CHARITABLE AND SOCIAL SERVICE (8398)"
01 Apr 2014,OFFICE DEPOT,CHILDRENS SERVICES,INITIAL RESPONSE SERVICE,289.48,STATIONERY & GENERAL SUPPLIES-OFFICE EXP,"STATIONERY, OFFICE SUPPLIES AND WRITING PAPER (5111)"
01 Apr 2014,YMCA,RESOURCES,WALSALL CRISIS SUPPORT SCHEME,26.97,CRISIS SUPPORT PAYMENTS,"ORGANIZATIONS, CHARITABLE AND SOCIAL SERVICE (8398)"
01 Apr 2014,CRAZY HOUSE (BROWNHILL,RESOURCES,WALSALL CRISIS SUPPORT SCHEME,85.00,CRISIS SUPPORT PAYMENTS,"EQUIPMENT, FURNITURE, AND HOME FURNISHINGS STORES  (5712)"
01 Apr 2014,OFFICE DEPOT,CHILDRENS SERVICES,CENTRAL SUPPORT,35.59,STATIONERY & GENERAL SUPPLIES-OFFICE EXP,"STATIONERY, OFFICE SUPPLIES AND WRITING PAPER (5111)"
01 Apr 2014,OFFICE DEPOT,CHILDRENS SERVICES,FAMILY PLACEMENTS,87.02,STATIONERY & GENERAL SUPPLIES-OFFICE EXP,"STATIONERY, OFFICE SUPPLIES AND WRITING PAPER (5111)"
01 Apr 2014,ADIDASGROUP,NEIGHBOURHOOD SERVICES,AP QUALITY & PERFORMANCE DISCRETIONARY LEARNER SUP,148.75,CLOTHING & LAUNDRY,SPORTING GOODS STORES (5941)
01 Apr 2014,BORSHCH ELECTRIC,RESOURCES,WALSALL CRISIS SUPPORT SCHEME,195.00,CRISIS SUPPORT PAYMENTS,HOUSEHOLD APPLIANCE STORES (5722)
01 Apr 2014,OFFICE DEPOT,CHILDRENS SERVICES,CHILD PROTECTION & REVIEW SERVICES,280.32,STATIONERY & GENERAL SUPPLIES-OFFICE EXP,"STATIONERY, OFFICE SUPPLIES AND WRITING PAPER (5111)"
01 Apr 2014,TESCO STORES 6161,RESOURCES,WALSALL CRISIS SUPPORT SCHEME,9.99,CRISIS SUPPORT PAYMENTS,GROCERY STORES AND SUPERMARKETS (5411)
01 Apr 2014,AMAZON *MKTPLCE EU-UK,NEIGHBOURHOOD SERVICES,PRINCIPAL MARKETING,-112.98,GENERAL MATERIALS,BOOK STORES (5942)
01 Apr 2014,TRAINLINE.COM,CHILDRENS SERVICES,LOOKED AFTER CHILDRENS SOCIAL WORK TEAM,134.33,SUPPORT UNDER SECTION 23 OF THE CHILDRENS ACT,PASSENGER RAILWAYS (4112)
01 Apr 2014,CRAZY HOUSE (BROWNHILL,RESOURCES,WALSALL CRISIS SUPPORT SCHEME,55.00,CRISIS SUPPORT PAYMENTS,"EQUIPMENT, FURNITURE, AND HOME FURNISHINGS STORES  (5712)"
01 Apr 2014,POUNDLAND LTD 1427,CHILDRENS SERVICES,57 LICHFIELD ROAD,15.00,RESIDENTS PERSONAL EXPENSES-ALLOWANCES TO S/S CLIENTS,DISCOUNT STORES (5310)
01 Apr 2014,OFFICE DEPOT,SOCIAL CARE & INCLUSION,INTEGRATED BUSINESS PROCESSES & SERVICES,117.96,STATIONERY & GENERAL SUPPLIES-OFFICE EXP,"STATIONERY, OFFICE SUPPLIES AND WRITING PAPER (5111)"
01 Apr 2014,LONDON MIDLAND TIC,CHILDRENS SERVICES,SUPPORT UNDER SECT 23 OF THE CHILDRENS ACT,64.00,OFFICER/STAFF-PUBLIC TRANSPORT,PASSENGER RAILWAYS (4112)
01 Apr 2014,OFFICE DEPOT,CHILDRENS SERVICES,STREETLY CHILDRENS CENTRE,-11.84,STATIONERY & GENERAL SUPPLIES-OFFICE EXP,"STATIONERY, OFFICE SUPPLIES AND WRITING PAPER (5111)"
01 Apr 2014,OFFICE DEPOT,NEIGHBOURHOOD SERVICES,LEATHER MUSEUM,55.85,STATIONERY & GENERAL SUPPLIES-OFFICE EXP,"STATIONERY, OFFICE SUPPLIES AND WRITING PAPER (5111)"
01 Apr 2014,ARTHUR BRETT CATER,NEIGHBOURHOOD SERVICES,CA BIRCHILLS CE PRIMARY COMMUNITY SCHOOL,75.37,FRUIT & VEGETABLES OTHER-PROVISIONS,MISCELLANEOUS FOOD STORES & CONVENIENCE STORES (5499)
01 Apr 2014,ARTHUR BRETT CATER,NEIGHBOURHOOD SERVICES,CA JOSEPH LECKIE COMMUNITY TECHNOLOGY COLLEGE,166.39,FRUIT & VEGETABLES OTHER-PROVISIONS,MISCELLANEOUS FOOD STORES & CONVENIENCE STORES (5499)
01 Apr 2014,ARTHUR BRETT CATER,NEIGHBOURHOOD SERVICES,TOWN HALL RESTAURANT BISTRO,39.38,FRUIT & VEGETABLES OTHER-PROVISIONS,MISCELLANEOUS FOOD STORES & CONVENIENCE STORES (5499)
01 Apr 2014,ARTHUR BRETT CATER,NEIGHBOURHOOD SERVICES,CA OLD HALL SPECIAL SCHOOL,41.92,FRUIT & VEGETABLES OTHER-PROVISIONS,MISCELLANEOUS FOOD STORES & CONVENIENCE STORES (5499)
01 Apr 2014,ARTHUR BRETT CATER,NEIGHBOURHOOD SERVICES,CA ST MICHAELS C.E. PRIMARY SCHOOL,30.06,FRUIT & VEGETABLES OTHER-PROVISIONS,MISCELLANEOUS FOOD STORES & CONVENIENCE STORES (5499)
01 Apr 2014,ARTHUR BRETT CATER,NEIGHBOURHOOD SERVICES,CA WHITEHALL JUNIOR COMMUNITY SCHOOL,60.01,FRUIT & VEGETABLES OTHER-PROVISIONS,MISCELLANEOUS FOOD STORES & CONVENIENCE STORES (5499)
01 Apr 2014,ARTHUR BRETT CATER,NEIGHBOURHOOD SERVICES,CA MOORCROFT WOOD,70.63,FRUIT & VEGETABLES OTHER-PROVISIONS,MISCELLANEOUS FOOD STORES & CONVENIENCE STORES (5499)
01 Apr 2014,ARTHUR BRETT CATER,NEIGHBOURHOOD SERVICES,CA JANE LANE SPECIAL SCHOOL,40.89,FRUIT & VEGETABLES OTHER-PROVISIONS,MISCELLANEOUS FOOD STORES & CONVENIENCE STORES (5499)
01 Apr 2014,ARTHUR BRETT CATER,NEIGHBOURHOOD SERVICES,CA HARDEN PRIMARY SCHOOL,115.37,FRUIT & VEGETABLES OTHER-PROVISIONS,MISCELLANEOUS FOOD STORES & CONVENIENCE STORES (5499)
01 Apr 2014,ARTHUR BRETT CATER,NEIGHBOURHOOD SERVICES,CA ST FRANCIS CATHOLIC PRIMARY SCHOOL,45.58,FRUIT & VEGETABLES OTHER-PROVISIONS,MISCELLANEOUS FOOD STORES & CONVENIENCE STORES (5499)
01 Apr 2014,ARTHUR BRETT CATER,NEIGHBOURHOOD SERVICES,CA ST GILES C.E. PRIMARY SCHOOL,30.53,FRUIT & VEGETABLES OTHER-PROVISIONS,MISCELLANEOUS FOOD STORES & CONVENIENCE STORES (5499)
01 Apr 2014,ARTHUR BRETT CATER,NEIGHBOURHOOD SERVICES,CA BLAKENALL HEATH JUNIOR SCHOOL,51.76,FRUIT & VEGETABLES OTHER-PROVISIONS,MISCELLANEOUS FOOD STORES & CONVENIENCE STORES (5499)
01 Apr 2014,ARTHUR BRETT CATER,NEIGHBOURHOOD SERVICES,CA CASTLEFORT JMI SCHOOL,68.80,FRUIT & VEGETABLES OTHER-PROVISIONS,MISCELLANEOUS FOOD STORES & CONVENIENCE STORES (5499)
01 Apr 2014,ARTHUR BRETT CATER,NEIGHBOURHOOD SERVICES,CA RADLEYS PRIMARY SCHOOL,102.73,FRUIT & VEGETABLES OTHER-PROVISIONS,MISCELLANEOUS FOOD STORES & CONVENIENCE STORES (5499)
01 Apr 2014,ARTHUR BRETT CATER,NEIGHBOURHOOD SERVICES,CA BLUE COAT C.E. JUNIOR SCHOOL,80.69,FRUIT & VEGETABLES OTHER-PROVISIONS,MISCELLANEOUS FOOD STORES & CONVENIENCE STORES (5499)
01 Apr 2014,ARTHUR BRETT CATER,NEIGHBOURHOOD SERVICES,CA LITTLE BLOXWICH CE PRIMARY SCHOOL,22.21,FRUIT & VEGETABLES OTHER-PROVISIONS,MISCELLANEOUS FOOD STORES & CONVENIENCE STORES (5499)
01 Apr 2014,WWW.TEACHERSHOP.SCHOLAST,CHILDRENS SERVICES,LITERACY ORACY & LANGUAGE,179.70,GENERAL MATERIALS,MISCELLANEOUS AND SPECIALTY RETAIL STORES (5999)
01 Apr 2014,ARTHUR BRETT CATER,NEIGHBOURHOOD SERVICES,CA BLOXWICH C.E. JMI PRIMARY SCHOOL,6.24,FRUIT & VEGETABLES OTHER-PROVISIONS,MISCELLANEOUS FOOD STORES & CONVENIENCE STORES (5499)
01 Apr 2014,ARTHUR BRETT CATER,NEIGHBOURHOOD SERVICES,CA BUSILL JONES PRIMARY SCHOOL,147.65,FRUIT & VEGETABLES OTHER-PROVISIONS,MISCELLANEOUS FOOD STORES & CONVENIENCE STORES (5499)
01 Apr 2014,ARTHUR BRETT CATER,NEIGHBOURHOOD SERVICES,CA POOL HAYES PRIMARY SCHOOL,35.08,FRUIT & VEGETABLES OTHER-PROVISIONS,MISCELLANEOUS FOOD STORES & CONVENIENCE STORES (5499)
01 Apr 2014,ARTHUR BRETT CATER,NEIGHBOURHOOD SERVICES,CA PALFREY JUNIOR SCHOOL,84.98,FRUIT & VEGETABLES OTHER-PROVISIONS,MISCELLANEOUS FOOD STORES & CONVENIENCE STORES (5499)
01 Apr 2014,ARTHUR BRETT CATER,NEIGHBOURHOOD SERVICES,CA DELVES JUNIOR SCHOOL,89.56,FRUIT & VEGETABLES OTHER-PROVISIONS,MISCELLANEOUS FOOD STORES & CONVENIENCE STORES (5499)
01 Apr 2014,ARTHUR BRETT CATER,NEIGHBOURHOOD SERVICES,CA CROFT COMMUNITY PRIMARY SCHOOL,60.99,FRUIT & VEGETABLES OTHER-PROVISIONS,MISCELLANEOUS FOOD STORES & CONVENIENCE STORES (5499)
01 Apr 2014,ARTHUR BRETT CATER,NEIGHBOURHOOD SERVICES,CA BEACON PRIMARY SCHOOL,105.82,FRUIT & VEGETABLES OTHER-PROVISIONS,MISCELLANEOUS FOOD STORES & CONVENIENCE STORES (5499)
01 Apr 2014,ARTHUR BRETT CATER,NEIGHBOURHOOD SERVICES,CA LEAMORE PRIMARY SCHOOL,34.39,FRUIT & VEGETABLES OTHER-PROVISIONS,MISCELLANEOUS FOOD STORES & CONVENIENCE STORES (5499)
01 Apr 2014,ARTHUR BRETT CATER,NEIGHBOURHOOD SERVICES,CA RUSHALL JMI SCHOOL,19.69,FRUIT & VEGETABLES OTHER-PROVISIONS,MISCELLANEOUS FOOD STORES & CONVENIENCE STORES (5499)
01 Apr 2014,ARTHUR BRETT CATER,NEIGHBOURHOOD SERVICES,CA ELMORE GREEN PRIMARY SCHOOL,141.57,FRUIT & VEGETABLES OTHER-PROVISIONS,MISCELLANEOUS FOOD STORES & CONVENIENCE STORES (5499)
01 Apr 2014,ARTHUR BRETT CATER,NEIGHBOURHOOD SERVICES,CA TOWN HALL RESTAURANT - CATERING,28.36,FRUIT & VEGETABLES OTHER-PROVISIONS,MISCELLANEOUS FOOD STORES & CONVENIENCE STORES (5499)
01 Apr 2014,ARTHUR BRETT CATER,NEIGHBOURHOOD SERVICES,CA CALDMORE COMMUNITY PRIMARY SCHOOL,32.57,FRUIT & VEGETABLES OTHER-PROVISIONS,MISCELLANEOUS FOOD STORES & CONVENIENCE STORES (5499)
01 Apr 2014,ARTHUR BRETT CATER,NEIGHBOURHOOD SERVICES,CA BLUE COAT C.E. INFANT SCHOOL,44.43,FRUIT & VEGETABLES OTHER-PROVISIONS,MISCELLANEOUS FOOD STORES & CONVENIENCE STORES (5499)
01 Apr 2014,ARTHUR BRETT CATER,NEIGHBOURHOOD SERVICES,CA FIBBERSLEY PARK PRIMARY SCHOOL,73.52,FRUIT & VEGETABLES OTHER-PROVISIONS,MISCELLANEOUS FOOD STORES & CONVENIENCE STORES (5499)
01 Apr 2014,ARTHUR BRETT CATER,NEIGHBOURHOOD SERVICES,CA GREENFIELD PRIMARY,63.89,FRUIT & VEGETABLES OTHER-PROVISIONS,MISCELLANEOUS FOOD STORES & CONVENIENCE STORES (5499)
01 Apr 2014,ARTHUR BRETT CATER,NEIGHBOURHOOD SERVICES,CA BARCROFT D/C,50.24,FRUIT & VEGETABLES OTHER-PROVISIONS,MISCELLANEOUS FOOD STORES & CONVENIENCE STORES (5499)
01 Apr 2014,ARTHUR BRETT CATER,NEIGHBOURHOOD SERVICES,CA ELMWOOD SPECIAL SCHOOL,30.40,FRUIT & VEGETABLES OTHER-PROVISIONS,MISCELLANEOUS FOOD STORES & CONVENIENCE STORES (5499)
01 Apr 2014,ARTHUR BRETT CATER,NEIGHBOURHOOD SERVICES,CA ABBEY PRIMARY SCHOOL,55.55,FOOD AND BEVERAGES-PROVISIONS,MISCELLANEOUS FOOD STORES & CONVENIENCE STORES (5499)
01 Apr 2014,SPORTSDIRECT 153,CHILDRENS SERVICES,57 LICHFIELD ROAD,14.99,FURNITURE & EQUIPMENT,SPORTING GOODS STORES (5941)
01 Apr 2014,ARTHUR BRETT CATER,NEIGHBOURHOOD SERVICES,CA ST MICHAELS C.E. PRIMARY SCHOOL,-0.78,FRUIT & VEGETABLES OTHER-PROVISIONS,MISCELLANEOUS FOOD STORES & CONVENIENCE STORES (5499)
01 Apr 2014,ARTHUR BRETT CATER,NEIGHBOURHOOD SERVICES,CA BLAKENALL HEATH JUNIOR SCHOOL,-9.30,FRUIT & VEGETABLES OTHER-PROVISIONS,MISCELLANEOUS FOOD STORES & CONVENIENCE STORES (5499)
01 Apr 2014,WWW.GIROFOOD.COM,NEIGHBOURHOOD SERVICES,CA RADLEYS PRIMARY SCHOOL,143.57,DISPOSABLES-PROVISIONS,WHOLESALE CLUBS (5300)
02 Apr 2014,WELSH BROS FOODS LTD,NEIGHBOURHOOD SERVICES,CA WATLING STREET PRIMARY SCHOOL,122.02,MEAT-PROVISIONS,FREEZER AND LOCKER MEAT PROVISIONERS (5422)
02 Apr 2014,BLAKEMORE FOODSERVICE,NEIGHBOURHOOD SERVICES,CA GREEN ROCK PRIMARY,56.20,FROZEN FOODS-PROVISIONS,CATERERS (5811)
02 Apr 2014,BLAKEMORE FOODSERVICE,NEIGHBOURHOOD SERVICES,CA COOPER JORDAN CE PRIMARY SCHOOL,168.02,FROZEN FOODS-PROVISIONS,CATERERS (5811)
02 Apr 2014,WELSH BROS FOODS LTD,NEIGHBOURHOOD SERVICES,CA COOPER JORDAN CE PRIMARY SCHOOL,33.14,MEAT-PROVISIONS,FREEZER AND LOCKER MEAT PROVISIONERS (5422)
02 Apr 2014,BLAKEMORE FOODSERVICE,NEIGHBOURHOOD SERVICES,CA BLUE COAT C.E. JUNIOR SCHOOL,157.04,FROZEN FOODS-PROVISIONS,CATERERS (5811)
02 Apr 2014,WELSH BROS FOODS LTD,NEIGHBOURHOOD SERVICES,CA HARDEN PRIMARY SCHOOL,114.31,MEAT-PROVISIONS,FREEZER AND LOCKER MEAT PROVISIONERS (5422)
02 Apr 2014,MNA LTD CARDCHARGE,REGENERATION,DEVELOPMENT MANAGEMENT,268.80,PERIODICALS/MAGAZINES/NEWSPAPERS-SUBSCRIPTIONS,NEWS DEALERS AND NEWSSTANDS (5994)
02 Apr 2014,TESCO STORES 6161,RESOURCES,WALSALL CRISIS SUPPORT SCHEME,9.99,CRISIS SUPPORT PAYMENTS,GROCERY STORES AND SUPERMARKETS (5411)
02 Apr 2014,WELSH BROS FOODS LTD,NEIGHBOURHOOD SERVICES,CA RUSHALL JMI SCHOOL,33.11,MEAT-PROVISIONS,FREEZER AND LOCKER MEAT PROVISIONERS (5422)
02 Apr 2014,BLAKEMORE FOODSERVICE,NEIGHBOURHOOD SERVICES,CA JOSEPH LECKIE COMMUNITY TECHNOLOGY COLLEGE,176.25,DRY FOODS-PROVISIONS,CATERERS (5811)
02 Apr 2014,BLAKEMORE FOODSERVICE,NEIGHBOURHOOD SERVICES,CA JOSEPH LECKIE COMMUNITY TECHNOLOGY COLLEGE,96.76,DRY FOODS-PROVISIONS,CATERERS (5811)
02 Apr 2014,BLAKEMORE FOODSERVICE,NEIGHBOURHOOD SERVICES,CA JANE LANE SPECIAL SCHOOL,278.45,DRY FOODS-PROVISIONS,CATERERS (5811)
02 Apr 2014,BLAKEMORE FOODSERVICE,NEIGHBOURHOOD SERVICES,CA ST JAMES PRIMARY SCHOOL,47.59,FROZEN FOODS-PROVISIONS,CATERERS (5811)
02 Apr 2014,WWW.CIM.CO.UK,CHILDRENS SERVICES,EARLY YEARS SERVICE,80.00,LANGUAGES & INTERPRETATION-SERVICES,PROFESSIONAL SERVICES (8999)
02 Apr 2014,BLAKEMORE FOODSERVICE,NEIGHBOURHOOD SERVICES,CA ST JOHNS C.E. PRIMARY SCHOOL,134.46,DRY FOODS-PROVISIONS,CATERERS (5811)
02 Apr 2014,BLAKEMORE FOODSERVICE,NEIGHBOURHOOD SERVICES,CA ST JOHNS C.E. PRIMARY SCHOOL,22.18,DRY FOODS-PROVISIONS,CATERERS (5811)
02 Apr 2014,WELSH BROS FOODS LTD,NEIGHBOURHOOD SERVICES,CA CASTLEFORT JMI SCHOOL,45.98,MEAT-PROVISIONS,FREEZER AND LOCKER MEAT PROVISIONERS (5422)
02 Apr 2014,ASDA HOME DELIVERY,NEIGHBOURHOOD SERVICES,PRINCIPAL BOARD OF GOVERNORS,41.00,CATERING,GROCERY STORES AND SUPERMARKETS (5411)
02 Apr 2014,TESCO STORES 6161,CHILDRENS SERVICES,LOOKED AFTER CHILDRENS SOCIAL WORK TEAM,2.65,TRANSFER PAYMENTS - SOCIAL SERVICES CLIENTS,GROCERY STORES AND SUPERMARKETS (5411)
02 Apr 2014,TESCO STORES 6161,CHILDRENS SERVICES,LOOKED AFTER CHILDRENS SOCIAL WORK TEAM,15.23,TRANSFER PAYMENTS - SOCIAL SERVICES CLIENTS,GROCERY STORES AND SUPERMARKETS (5411)
02 Apr 2014,OFFICE DEPOT,SOCIAL CARE & INCLUSION,INTEGRATED BUSINESS PROCESSES & SERVICES,47.18,STATIONERY & GENERAL SUPPLIES-OFFICE EXP,"STATIONERY, OFFICE SUPPLIES AND WRITING PAPER (5111)"
02 Apr 2014,BLAKEMORE FOODSERVICE,NEIGHBOURHOOD SERVICES,CA BROWNHILLS WEST PRIMARY SCHOOL,71.13,DRY FOODS-PROVISIONS,CATERERS (5811)
02 Apr 2014,BLAKEMORE FOODSERVICE,NEIGHBOURHOOD SERVICES,CA LEIGHSWOOD PRIMARY SCHOOL,44.08,FROZEN FOODS-PROVISIONS,CATERERS (5811)
02 Apr 2014,WELSH BROS FOODS LTD,NEIGHBOURHOOD SERVICES,CA ELMORE GREEN PRIMARY SCHOOL,194.37,MEAT-PROVISIONS,FREEZER AND LOCKER MEAT PROVISIONERS (5422)
02 Apr 2014,BLAKEMORE FOODSERVICE,NEIGHBOURHOOD SERVICES,CA ELMWOOD SPECIAL SCHOOL,43.66,DRY FOODS-PROVISIONS,CATERERS (5811)
02 Apr 2014,TESCO STORES 6161,CHILDRENS SERVICES,FOOD TECHNOLOGY,6.00,GENERAL MATERIALS,GROCERY STORES AND SUPERMARKETS (5411)
02 Apr 2014,BLAKEMORE FOODSERVICE,NEIGHBOURHOOD SERVICES,CA BEACON PRIMARY SCHOOL,387.29,DRY FOODS-PROVISIONS,CATERERS (5811)
02 Apr 2014,BLAKEMORE FOODSERVICE,NEIGHBOURHOOD SERVICES,CA BEACON PRIMARY SCHOOL,50.27,DRY FOODS-PROVISIONS,CATERERS (5811)
02 Apr 2014,WALSALL CARPETS,RESOURCES,WALSALL CRISIS SUPPORT SCHEME,334.00,CRISIS SUPPORT PAYMENTS,FLOOR COVERING STORES (5713)
02 Apr 2014,OFFICE DEPOT,CHILDRENS SERVICES,PLACEMENTS & RESOURCES TEAM,42.74,STATIONERY & GENERAL SUPPLIES-OFFICE EXP,"STATIONERY, OFFICE SUPPLIES AND WRITING PAPER (5111)"
02 Apr 2014,TESCO STORES 6161,RESOURCES,WALSALL CRISIS SUPPORT SCHEME,4.88,CRISIS SUPPORT PAYMENTS,GROCERY STORES AND SUPERMARKETS (5411)
02 Apr 2014,WELSH BROS FOODS LTD,NEIGHBOURHOOD SERVICES,CA BUSILL JONES PRIMARY SCHOOL,283.09,MEAT-PROVISIONS,FREEZER AND LOCKER MEAT PROVISIONERS (5422)
02 Apr 2014,BLAKEMORE FOODSERVICE,NEIGHBOURHOOD SERVICES,CA RUSHALL JMI SCHOOL,33.13,FROZEN FOODS-PROVISIONS,CATERERS (5811)
02 Apr 2014,BORSHCH ELECTRIC,RESOURCES,WALSALL CRISIS SUPPORT SCHEME,325.00,CRISIS SUPPORT PAYMENTS,HOUSEHOLD APPLIANCE STORES (5722)
02 Apr 2014,BLAKEMORE FOODSERVICE,NEIGHBOURHOOD SERVICES,CA MILLFIELD PRIMARY SCHOOL,61.08,FROZEN FOODS-PROVISIONS,CATERERS (5811)
02 Apr 2014,WELSH BROS FOODS LTD,NEIGHBOURHOOD SERVICES,CA BROWNHILLS WEST PRIMARY SCHOOL,68.74,MEAT-PROVISIONS,FREEZER AND LOCKER MEAT PROVISIONERS (5422)
02 Apr 2014,BLAKEMORE FOODSERVICE,NEIGHBOURHOOD SERVICES,CA BLACKWOOD PRIMARY SCHOOL,58.06,DRY FOODS-PROVISIONS,CATERERS (5811)
02 Apr 2014,BLAKEMORE FOODSERVICE,NEIGHBOURHOOD SERVICES,CA BLACKWOOD PRIMARY SCHOOL,7.40,DRY FOODS-PROVISIONS,CATERERS (5811)
02 Apr 2014,BLAKEMORE FOODSERVICE,NEIGHBOURHOOD SERVICES,CA BEACON PRIMARY SCHOOL,24.42,FROZEN FOODS-PROVISIONS,CATERERS (5811)
02 Apr 2014,W M MORRISON PLC,CHILDRENS SERVICES,ROSEDALE C.E. PRIMARY SCHOOL,13.29,BREAD-GENERAL-PROVISIONS,GROCERY STORES AND SUPERMARKETS (5411)
02 Apr 2014,W M MORRISON PLC,CHILDRENS SERVICES,ROSEDALE C.E. PRIMARY SCHOOL,28.23,BREAD-GENERAL-PROVISIONS,GROCERY STORES AND SUPERMARKETS (5411)
02 Apr 2014,OFFICE DEPOT,NEIGHBOURHOOD SERVICES,AP FINANCE & RESOURCES ADMINISTRATION,451.80,EXTERNAL PRINTING SERVICES,"STATIONERY, OFFICE SUPPLIES AND WRITING PAPER (5111)"
02 Apr 2014,OFFICE DEPOT,NEIGHBOURHOOD SERVICES,AP FINANCE & RESOURCES ADMINISTRATION,2.90,STATIONERY & GENERAL SUPPLIES-OFFICE EXP,"STATIONERY, OFFICE SUPPLIES AND WRITING PAPER (5111)"
02 Apr 2014,BLAKEMORE FOODSERVICE,NEIGHBOURHOOD SERVICES,TOWN HALL RESTAURANT BISTRO,24.00,DRY FOODS-PROVISIONS,CATERERS (5811)
02 Apr 2014,BLAKEMORE FOODSERVICE,NEIGHBOURHOOD SERVICES,CA WHETSTONE FIELD PRIMARY SCHOOL,30.75,FROZEN FOODS-PROVISIONS,CATERERS (5811)
02 Apr 2014,BLAKEMORE FOODSERVICE,NEIGHBOURHOOD SERVICES,CA JOSEPH LECKIE COMMUNITY TECHNOLOGY COLLEGE,18.24,DRY FOODS-PROVISIONS,CATERERS (5811)
02 Apr 2014,CRAZY HOUSE (BROWNHILL,RESOURCES,WALSALL CRISIS SUPPORT SCHEME,55.00,CRISIS SUPPORT PAYMENTS,"EQUIPMENT, FURNITURE, AND HOME FURNISHINGS STORES  (5712)"
02 Apr 2014,BLAKEMORE FOODSERVICE,NEIGHBOURHOOD SERVICES,CA CALDMORE COMMUNITY PRIMARY SCHOOL,148.27,DRY FOODS-PROVISIONS,CATERERS (5811)
02 Apr 2014,BLAKEMORE FOODSERVICE,NEIGHBOURHOOD SERVICES,CA CALDMORE COMMUNITY PRIMARY SCHOOL,13.15,DRY FOODS-PROVISIONS,CATERERS (5811)
02 Apr 2014,BLAKEMORE FOODSERVICE,NEIGHBOURHOOD SERVICES,CA LINDENS PRIMARY SCHOOL,191.59,FROZEN FOODS-PROVISIONS,CATERERS (5811)
02 Apr 2014,BLAKEMORE FOODSERVICE,NEIGHBOURHOOD SERVICES,CA LINDENS PRIMARY SCHOOL,7.40,FROZEN FOODS-PROVISIONS,CATERERS (5811)
02 Apr 2014,BLAKEMORE FOODSERVICE,NEIGHBOURHOOD SERVICES,CA BARCROFT D/C,184.55,DRY FOODS-PROVISIONS,CATERERS (5811)
02 Apr 2014,WEST MID TRAVEL,CHILDRENS SERVICES,SAFEGUARDING & FAMILY SUPPORT,200.00,OFFICER/STAFF-PUBLIC TRANSPORT,BUS LINES (4131)
02 Apr 2014,WEST MID TRAVEL,CHILDRENS SERVICES,SAFEGUARDING & FAMILY SUPPORT,6.75,OFFICER/STAFF-PUBLIC TRANSPORT,BUS LINES (4131)
02 Apr 2014,HOPWELLS LTD,CHILDRENS SERVICES,MARY ELLIOTT SPECIAL SCHOOL,252.47,BREAD-GENERAL-PROVISIONS,CATERERS (5811)
02 Apr 2014,SMART FOOD UK LIMITED,NEIGHBOURHOOD SERVICES,CA PALFREY JUNIOR SCHOOL,305.60,FROZEN FOODS-PROVISIONS,CATERERS (5811)
02 Apr 2014,SMART FOOD UK LIMITED,NEIGHBOURHOOD SERVICES,CA PALFREY JUNIOR SCHOOL,37.20,FROZEN FOODS-PROVISIONS,CATERERS (5811)
02 Apr 2014,BLAKEMORE FOODSERVICE,NEIGHBOURHOOD SERVICES,CA BEACON PRIMARY SCHOOL,95.31,FROZEN FOODS-PROVISIONS,CATERERS (5811)
02 Apr 2014,BLAKEMORE FOODSERVICE,NEIGHBOURHOOD SERVICES,CA BIRCHILLS CE PRIMARY COMMUNITY SCHOOL,317.37,DRY FOODS-PROVISIONS,CATERERS (5811)
02 Apr 2014,BLAKEMORE FOODSERVICE,NEIGHBOURHOOD SERVICES,CA BIRCHILLS CE PRIMARY COMMUNITY SCHOOL,25.35,DRY FOODS-PROVISIONS,CATERERS (5811)
02 Apr 2014,BLAKEMORE FOODSERVICE,NEIGHBOURHOOD SERVICES,CA TOWN HALL RESTAURANT - CATERING,63.11,FROZEN FOODS-PROVISIONS,CATERERS (5811)
02 Apr 2014,B&M RETAIL LTD,CHILDRENS SERVICES,"43A HILTON ROAD, WILLENHALL",39.98,FURNITURE & EQUIPMENT,DISCOUNT STORES (5310)
02 Apr 2014,WWW.NEOPOST.CO.UK,CHILDRENS SERVICES,UNIVERSAL EDUCATION CLIENT UNIT,800.00,POSTAGES AND COURIER SERVICES,"STATIONERY, OFFICE SUPPLIES AND WRITING PAPER (5111)"
02 Apr 2014,WWW.NEOPOST.CO.UK,CHILDRENS SERVICES,UNIVERSAL EDUCATION CLIENT UNIT,24.00,POSTAGES AND COURIER SERVICES,"STATIONERY, OFFICE SUPPLIES AND WRITING PAPER (5111)"
02 Apr 2014,BLAKEMORE FOODSERVICE,NEIGHBOURHOOD SERVICES,CA OAKWOOD SPECIAL SCHOOL,35.81,FROZEN FOODS-PROVISIONS,CATERERS (5811)
02 Apr 2014,ARTHUR BRETT CATER,NEIGHBOURHOOD SERVICES,CA BLAKENALL HEATH JUNIOR SCHOOL,9.30,FRUIT & VEGETABLES OTHER-PROVISIONS,MISCELLANEOUS FOOD STORES & CONVENIENCE STORES (5499)
02 Apr 2014,BLAKEMORE FOODSERVICE,NEIGHBOURHOOD SERVICES,CA BUSILL JONES PRIMARY SCHOOL,447.05,DRY FOODS-PROVISIONS,CATERERS (5811)
02 Apr 2014,BLAKEMORE FOODSERVICE,NEIGHBOURHOOD SERVICES,CA BUSILL JONES PRIMARY SCHOOL,17.07,DRY FOODS-PROVISIONS,CATERERS (5811)
02 Apr 2014,WELSH BROS FOODS LTD,NEIGHBOURHOOD SERVICES,CA LEIGHSWOOD PRIMARY SCHOOL,66.85,MEAT-PROVISIONS,FREEZER AND LOCKER MEAT PROVISIONERS (5422)
02 Apr 2014,BLAKEMORE FOODSERVICE,NEIGHBOURHOOD SERVICES,CA MEADOW VIEW JMI PRIMARY SCHOOL,46.79,FROZEN FOODS-PROVISIONS,CATERERS (5811)
02 Apr 2014,ASDA STORES,CHILDRENS SERVICES,CLUSTER 5 DARLASTON,9.00,FOOD AND BEVERAGES-PROVISIONS,GROCERY STORES AND SUPERMARKETS (5411)
02 Apr 2014,CO-OP GROUP 070342,CHILDRENS SERVICES,"43A HILTON ROAD, WILLENHALL",16.77,FOOD AND BEVERAGES-PROVISIONS,GROCERY STORES AND SUPERMARKETS (5411)
02 Apr 2014,A F BLAKEMORE & SON LTD,CHILDRENS SERVICES,MARY ELLIOTT SPECIAL SCHOOL,250.31,BREAD-GENERAL-PROVISIONS,GROCERY STORES AND SUPERMARKETS (5411)
02 Apr 2014,A F BLAKEMORE & SON LTD,CHILDRENS SERVICES,MARY ELLIOTT SPECIAL SCHOOL,18.24,BREAD-GENERAL-PROVISIONS,GROCERY STORES AND SUPERMARKETS (5411)
02 Apr 2014,OFFICE DEPOT,SOCIAL CARE & INCLUSION,NORTH COMMUNITY RECOVERY SERVICE,94.75,STATIONERY & GENERAL SUPPLIES-OFFICE EXP,"STATIONERY, OFFICE SUPPLIES AND WRITING PAPER (5111)"
02 Apr 2014,BLAKEMORE FOODSERVICE,NEIGHBOURHOOD SERVICES,CA CASTLEFORT JMI SCHOOL,52.23,DRY FOODS-PROVISIONS,CATERERS (5811)
02 Apr 2014,BORSHCH ELECTRIC,RESOURCES,WALSALL CRISIS SUPPORT SCHEME,175.00,CRISIS SUPPORT PAYMENTS,HOUSEHOLD APPLIANCE STORES (5722)
02 Apr 2014,BLAKEMORE FOODSERVICE,NEIGHBOURHOOD SERVICES,CA ST MICHAELS C.E. PRIMARY SCHOOL,81.21,FROZEN FOODS-PROVISIONS,CATERERS (5811)
02 Apr 2014,BLAKEMORE FOODSERVICE,NEIGHBOURHOOD SERVICES,CA ST MICHAELS C.E. PRIMARY SCHOOL,7.40,FROZEN FOODS-PROVISIONS,CATERERS (5811)
02 Apr 2014,AMAZON *MKTPLCE EU-UK,NEIGHBOURHOOD SERVICES,AP FINANCE & RESOURCES IT,13.31,COMPUTER EQUIPMENT AND SUPPLIES,BOOK STORES (5942)
02 Apr 2014,WELSH BROS FOODS LTD,NEIGHBOURHOOD SERVICES,CA BEACON PRIMARY SCHOOL,155.32,MEAT-PROVISIONS,FREEZER AND LOCKER MEAT PROVISIONERS (5422)
02 Apr 2014,TNT UK LTD,NEIGHBOURHOOD SERVICES,POLLUTION DIVISION,23.48,POSTAGES AND COURIER SERVICES,MOTOR FREIGHT CARRIERS (4214)
02 Apr 2014,BLAKEMORE FOODSERVICE,NEIGHBOURHOOD SERVICES,CA ELMORE GREEN PRIMARY SCHOOL,151.27,DRY FOODS-PROVISIONS,CATERERS (5811)
02 Apr 2014,BLAKEMORE FOODSERVICE,NEIGHBOURHOOD SERVICES,CA ELMORE GREEN PRIMARY SCHOOL,22.18,DRY FOODS-PROVISIONS,CATERERS (5811)
02 Apr 2014,WELSH BROS FOODS LTD,NEIGHBOURHOOD SERVICES,CA ST MICHAELS C.E. PRIMARY SCHOOL,100.43,MEAT-PROVISIONS,FREEZER AND LOCKER MEAT PROVISIONERS (5422)
02 Apr 2014,HSE-CIVIL REGISTRATION,CHILDRENS SERVICES,SAFEGUARDING & FAMILY SUPPORT,-68.96,SECTION 1/17CHILD CARE ACT 1989-ASSISTANCE TO S/S CLIENTS,GOVERNMENT SERVICES (9399)
02 Apr 2014,TRAINLINE.COM,CHILDRENS SERVICES,SCHOOL IMPROVEMENT,168.81,OFFICER/STAFF-PUBLIC TRANSPORT,PASSENGER RAILWAYS (4112)
02 Apr 2014,BLAKEMORE FOODSERVICE,NEIGHBOURHOOD SERVICES,CA FIBBERSLEY PARK PRIMARY SCHOOL,73.93,FROZEN FOODS-PROVISIONS,CATERERS (5811)
02 Apr 2014,AMAZON *MKTPLCE EU-UK,CHILDRENS SERVICES,ROSEDALE C.E. PRIMARY SCHOOL,18.98,LANDSCAPE WORK-OP MTCE,BOOK STORES (5942)
02 Apr 2014,BLAKEMORE FOODSERVICE,NEIGHBOURHOOD SERVICES,CA BLUE COAT C OF E PERFORMING ARTS COLLEGE,303.42,DRY FOODS-PROVISIONS,CATERERS (5811)
02 Apr 2014,GRO HM PASSPORT OFFICE,CHILDRENS SERVICES,SAFEGUARDING & FAMILY SUPPORT,9.25,SECTION 1/17CHILD CARE ACT 1989-ASSISTANCE TO S/S CLIENTS,GOVERNMENT SERVICES (9399)
02 Apr 2014,BLAKEMORE FOODSERVICE,NEIGHBOURHOOD SERVICES,CA ELMWOOD SPECIAL SCHOOL,23.94,FROZEN FOODS-PROVISIONS,CATERERS (5811)
02 Apr 2014,WELSH BROS FOODS LTD,NEIGHBOURHOOD SERVICES,CA RUSHALL JMI SCHOOL,7.28,MEAT-PROVISIONS,FREEZER AND LOCKER MEAT PROVISIONERS (5422)
02 Apr 2014,TESCO STORES 6161,RESOURCES,ACCOMMODATION SERVICES MANAGEMENT,6.68,FOOD AND BEVERAGES-PROVISIONS,GROCERY STORES AND SUPERMARKETS (5411)
02 Apr 2014,TESCO STORES 6161,RESOURCES,ACCOMMODATION SERVICES MANAGEMENT,11.88,FOOD AND BEVERAGES-PROVISIONS,GROCERY STORES AND SUPERMARKETS (5411)
02 Apr 2014,BLAKEMORE FOODSERVICE,NEIGHBOURHOOD SERVICES,CA BLUE COAT C OF E PERFORMING ARTS COLLEGE,161.97,DRY FOODS-PROVISIONS,CATERERS (5811)
02 Apr 2014,BLAKEMORE FOODSERVICE,NEIGHBOURHOOD SERVICES,CA BLUE COAT C OF E PERFORMING ARTS COLLEGE,44.59,DRY FOODS-PROVISIONS,CATERERS (5811)
02 Apr 2014,OFFICE DEPOT,NEIGHBOURHOOD SERVICES,STREETLY CREMATORIUM,164.78,STATIONERY & GENERAL SUPPLIES-OFFICE EXP,"STATIONERY, OFFICE SUPPLIES AND WRITING PAPER (5111)"
02 Apr 2014,BORSHCH ELECTRIC,RESOURCES,WALSALL CRISIS SUPPORT SCHEME,195.00,CRISIS SUPPORT PAYMENTS,HOUSEHOLD APPLIANCE STORES (5722)
02 Apr 2014,BLAKEMORE FOODSERVICE,NEIGHBOURHOOD SERVICES,CA BUSILL JONES PRIMARY SCHOOL,88.06,FROZEN FOODS-PROVISIONS,CATERERS (5811)
02 Apr 2014,BLAKEMORE FOODSERVICE,NEIGHBOURHOOD SERVICES,CA BUSILL JONES PRIMARY SCHOOL,7.40,FROZEN FOODS-PROVISIONS,CATERERS (5811)
02 Apr 2014,BLAKEMORE FOODSERVICE,NEIGHBOURHOOD SERVICES,CA ST MICHAELS C.E. PRIMARY SCHOOL,5.51,FROZEN FOODS-PROVISIONS,CATERERS (5811)
02 Apr 2014,BLAKEMORE FOODSERVICE,NEIGHBOURHOOD SERVICES,CA BROWNHILLS COMMUNITY TECHNOLOGY COLLEGE,398.17,FROZEN FOODS-PROVISIONS,CATERERS (5811)
02 Apr 2014,BLAKEMORE FOODSERVICE,NEIGHBOURHOOD SERVICES,CA WATLING STREET PRIMARY SCHOOL,95.02,FROZEN FOODS-PROVISIONS,CATERERS (5811)
02 Apr 2014,BLAKEMORE FOODSERVICE,NEIGHBOURHOOD SERVICES,CA WATLING STREET PRIMARY SCHOOL,14.78,FROZEN FOODS-PROVISIONS,CATERERS (5811)
02 Apr 2014,BLAKEMORE FOODSERVICE,NEIGHBOURHOOD SERVICES,CA JOSEPH LECKIE COMMUNITY TECHNOLOGY COLLEGE,535.83,FROZEN FOODS-PROVISIONS,CATERERS (5811)
02 Apr 2014,BLAKEMORE FOODSERVICE,NEIGHBOURHOOD SERVICES,CA HARDEN PRIMARY SCHOOL,67.81,FROZEN FOODS-PROVISIONS,CATERERS (5811)
02 Apr 2014,BLAKEMORE FOODSERVICE,NEIGHBOURHOOD SERVICES,CA RADLEYS PRIMARY SCHOOL,74.42,FROZEN FOODS-PROVISIONS,CATERERS (5811)
02 Apr 2014,SMART FOOD UK LIMITED,NEIGHBOURHOOD SERVICES,CA BUSILL JONES PRIMARY SCHOOL,305.60,FROZEN FOODS-PROVISIONS,CATERERS (5811)
02 Apr 2014,WELSH BROS FOODS LTD,NEIGHBOURHOOD SERVICES,CA RADLEYS PRIMARY SCHOOL,119.28,MEAT-PROVISIONS,FREEZER AND LOCKER MEAT PROVISIONERS (5422)
02 Apr 2014,WM MORRISONS,CHILDRENS SERVICES,ADMINISTRATIVE SUPPLIES,10.45,GENERAL MATERIALS,GROCERY STORES AND SUPERMARKETS (5411)
02 Apr 2014,WM MORRISONS,CHILDRENS SERVICES,ADMINISTRATIVE SUPPLIES,8.30,GENERAL MATERIALS,GROCERY STORES AND SUPERMARKETS (5411)
02 Apr 2014,WELSH BROS FOODS LTD,NEIGHBOURHOOD SERVICES,CA GREEN ROCK PRIMARY,170.56,MEAT-PROVISIONS,FREEZER AND LOCKER MEAT PROVISIONERS (5422)
02 Apr 2014,BLAKEMORE FOODSERVICE,NEIGHBOURHOOD SERVICES,CA ELMORE GREEN PRIMARY SCHOOL,510.71,DRY FOODS-PROVISIONS,CATERERS (5811)
02 Apr 2014,BLAKEMORE FOODSERVICE,NEIGHBOURHOOD SERVICES,CA ELMORE GREEN PRIMARY SCHOOL,110.12,DRY FOODS-PROVISIONS,CATERERS (5811)
02 Apr 2014,BLAKEMORE FOODSERVICE,NEIGHBOURHOOD SERVICES,CA ST ANNES CATHOLIC PRIMARY SCHOOL,112.65,FROZEN FOODS-PROVISIONS,CATERERS (5811)
02 Apr 2014,ASDA HOME DELIVERY,CHILDRENS SERVICES,"ELDON STREET, WALSALL",163.44,GENERAL PROVISIONS-PROVISIONS,GROCERY STORES AND SUPERMARKETS (5411)
02 Apr 2014,SPORTSDIRECT 153,CHILDRENS SERVICES,57 LICHFIELD ROAD,2.00,RESIDENTS PERSONAL EXPENSES-ALLOWANCES TO S/S CLIENTS,SPORTING GOODS STORES (5941)
02 Apr 2014,WWW.GIROFOOD.COM,NEIGHBOURHOOD SERVICES,CA FIBBERSLEY PARK PRIMARY SCHOOL,30.77,DISPOSABLES-PROVISIONS,WHOLESALE CLUBS (5300)
02 Apr 2014,WWW.GIROFOOD.COM,NEIGHBOURHOOD SERVICES,CA JOSEPH LECKIE COMMUNITY TECHNOLOGY COLLEGE,110.19,DISPOSABLES-PROVISIONS,WHOLESALE CLUBS (5300)
03 Apr 2014,M L T ENGLAND LTD,NEIGHBOURHOOD SERVICES,WALSALL CANAL BOATS,39.00,GENERAL MATERIALS,"ORGANIZATIONS, CHARITABLE AND SOCIAL SERVICE (8398)"
03 Apr 2014,WM MORRISON 063,CHILDRENS SERVICES,REDRUTH ROAD,24.80,GENERAL PROVISIONS-PROVISIONS,GROCERY STORES AND SUPERMARKETS (5411)
03 Apr 2014,DECATHLON,CHILDRENS SERVICES,57 LICHFIELD ROAD,148.93,RESIDENTS PERSONAL EXPENSES-ALLOWANCES TO S/S CLIENTS,SPORTING GOODS STORES (5941)
03 Apr 2014,CRAZY HOUSE (BROWNHILL,RESOURCES,WALSALL CRISIS SUPPORT SCHEME,60.00,CRISIS SUPPORT PAYMENTS,"EQUIPMENT, FURNITURE, AND HOME FURNISHINGS STORES  (5712)"
03 Apr 2014,ARTHUR BRETT CATER,NEIGHBOURHOOD SERVICES,CA ST JOHNS C.E. PRIMARY SCHOOL,23.84,FRUIT & VEGETABLES OTHER-PROVISIONS,MISCELLANEOUS FOOD STORES & CONVENIENCE STORES (5499)
03 Apr 2014,LONDON MIDLAND TIC,RESOURCES,HOMELESS PREVENTION GRANT,27.50,OFFICER/STAFF-PUBLIC TRANSPORT,PASSENGER RAILWAYS (4112)
03 Apr 2014,BORSHCH ELECTRIC,RESOURCES,WALSALL CRISIS SUPPORT SCHEME,195.00,CRISIS SUPPORT PAYMENTS,HOUSEHOLD APPLIANCE STORES (5722)
03 Apr 2014,OFFICE DEPOT,REGENERATION,DESIGN & PROJECT MANAGEMENT,-0.55,STATIONERY & GENERAL SUPPLIES-OFFICE EXP,"STATIONERY, OFFICE SUPPLIES AND WRITING PAPER (5111)"
03 Apr 2014,ARTHUR BRETT CATER,NEIGHBOURHOOD SERVICES,CA BUSILL JONES PRIMARY SCHOOL,132.91,FRUIT & VEGETABLES OTHER-PROVISIONS,MISCELLANEOUS FOOD STORES & CONVENIENCE STORES (5499)
03 Apr 2014,BORSHCH ELECTRIC,RESOURCES,WALSALL CRISIS SUPPORT SCHEME,-325.00,CRISIS SUPPORT PAYMENTS,HOUSEHOLD APPLIANCE STORES (5722)
03 Apr 2014,THE TRAINLINE.COM,REGENERATION,REGENERATION MANAGEMENT,107.61,OFFICER/STAFF-PUBLIC TRANSPORT,PASSENGER RAILWAYS (4112)
03 Apr 2014,OFFICE DEPOT,NEIGHBOURHOOD SERVICES,RESOURCE MANAGEMENT,301.43,STATIONERY & GENERAL SUPPLIES-OFFICE EXP,"STATIONERY, OFFICE SUPPLIES AND WRITING PAPER (5111)"
03 Apr 2014,ARTHUR BRETT CATER,NEIGHBOURHOOD SERVICES,CA GREEN ROCK PRIMARY,68.38,FRUIT & VEGETABLES OTHER-PROVISIONS,MISCELLANEOUS FOOD STORES & CONVENIENCE STORES (5499)
03 Apr 2014,DECATHLON,CHILDRENS SERVICES,57 LICHFIELD ROAD,239.90,RESIDENTS PERSONAL EXPENSES-ALLOWANCES TO S/S CLIENTS,SPORTING GOODS STORES (5941)
03 Apr 2014,ARTHUR BRETT CATER,NEIGHBOURHOOD SERVICES,CA BROWNHILLS COMMUNITY TECHNOLOGY COLLEGE,11.24,FRUIT & VEGETABLES OTHER-PROVISIONS,MISCELLANEOUS FOOD STORES & CONVENIENCE STORES (5499)
03 Apr 2014,ARTHUR BRETT CATER,NEIGHBOURHOOD SERVICES,CA ST JAMES PRIMARY SCHOOL,11.24,FRUIT & VEGETABLES OTHER-PROVISIONS,MISCELLANEOUS FOOD STORES & CONVENIENCE STORES (5499)
03 Apr 2014,WM MORRISON 063,CHILDRENS SERVICES,CLUSTER 4 ALUMWELL & BIRCHILLS,3.49,FOOD AND BEVERAGES-PROVISIONS,GROCERY STORES AND SUPERMARKETS (5411)
03 Apr 2014,WM MORRISON 063,CHILDRENS SERVICES,CLUSTER 4 ALUMWELL & BIRCHILLS,7.99,FOOD AND BEVERAGES-PROVISIONS,GROCERY STORES AND SUPERMARKETS (5411)
03 Apr 2014,ASDA STORES,CHILDRENS SERVICES,CLUSTER 5 DARLASTON,3.46,FOOD AND BEVERAGES-PROVISIONS,GROCERY STORES AND SUPERMARKETS (5411)
03 Apr 2014,TESCO STORES 6161,RESOURCES,WALSALL CRISIS SUPPORT SCHEME,17.66,CRISIS SUPPORT PAYMENTS,GROCERY STORES AND SUPERMARKETS (5411)
03 Apr 2014,AMAZON EU,CHILDRENS SERVICES,SEN,19.99,COMPUTER EQUIPMENT AND SUPPLIES,OTHER DIRECT MARKETING-OTHER DIRECT MARKETERS (5969)
03 Apr 2014,BORSHCH ELECTRIC,RESOURCES,WALSALL CRISIS SUPPORT SCHEME,390.00,CRISIS SUPPORT PAYMENTS,HOUSEHOLD APPLIANCE STORES (5722)
03 Apr 2014,CRAZY HOUSE (BROWNHILL,RESOURCES,WALSALL CRISIS SUPPORT SCHEME,-50.00,CRISIS SUPPORT PAYMENTS,"EQUIPMENT, FURNITURE, AND HOME FURNISHINGS STORES  (5712)"
03 Apr 2014,WELSH BROS FOODS LTD,NEIGHBOURHOOD SERVICES,CA JANE LANE SPECIAL SCHOOL,12.26,MEAT-PROVISIONS,FREEZER AND LOCKER MEAT PROVISIONERS (5422)
03 Apr 2014,GOMPELS HEALTHCARE LTD,CHILDRENS SERVICES,CLUSTER 5 DARLASTON,126.54,FURNITURE & EQUIPMENT,OTHER INDUSTRIAL SUPPLIES (5085)
03 Apr 2014,BWT UK LIMITED,CHILDRENS SERVICES,UNIVERSAL EDUCATION CLIENT UNIT,623.21,STAFF MINERAL WATER-EQUIPMENT,OTHER BUSINESS SERVICES (7399)
03 Apr 2014,BORSHCH ELECTRIC,RESOURCES,WALSALL CRISIS SUPPORT SCHEME,520.00,CRISIS SUPPORT PAYMENTS,HOUSEHOLD APPLIANCE STORES (5722)
03 Apr 2014,BORSHCH ELECTRIC,RESOURCES,WALSALL CRISIS SUPPORT SCHEME,140.00,CRISIS SUPPORT PAYMENTS,HOUSEHOLD APPLIANCE STORES (5722)
03 Apr 2014,ARTHUR BRETT CATER,NEIGHBOURHOOD SERVICES,CA BLACKWOOD PRIMARY SCHOOL,46.98,FRUIT & VEGETABLES OTHER-PROVISIONS,MISCELLANEOUS FOOD STORES & CONVENIENCE STORES (5499)
03 Apr 2014,AMAZON *MKTPLCE EU-UK,CHILDRENS SERVICES,ACCESS TEAM,18.78,LIBRARY BOOKS,BOOK STORES (5942)
03 Apr 2014,BORSHCH ELECTRIC,RESOURCES,WALSALL CRISIS SUPPORT SCHEME,195.00,CRISIS SUPPORT PAYMENTS,HOUSEHOLD APPLIANCE STORES (5722)
03 Apr 2014,ARTHUR BRETT CATER,NEIGHBOURHOOD SERVICES,CA LITTLE BLOXWICH CE PRIMARY SCHOOL,20.71,FRUIT & VEGETABLES OTHER-PROVISIONS,MISCELLANEOUS FOOD STORES & CONVENIENCE STORES (5499)
03 Apr 2014,LLOYDS PHARMACY,CHILDRENS SERVICES,CLUSTER 4 ALUMWELL & BIRCHILLS,5.03,GENERAL MATERIALS,"DRUG STORES, PHARMACIES (5912)"
03 Apr 2014,OFFICE DEPOT,NEIGHBOURHOOD SERVICES,CHILDRENS LIBRARY - BOOKSTART,11.64,GENERAL MATERIALS,"STATIONERY, OFFICE SUPPLIES AND WRITING PAPER (5111)"
03 Apr 2014,ASDA HOME DELIVERY,NEIGHBOURHOOD SERVICES,JK LEARNING FOR LIVING & WORK,35.63,CATERING,GROCERY STORES AND SUPERMARKETS (5411)
03 Apr 2014,DULUX DECORATOR CENTRE,NEIGHBOURHOOD SERVICES,NAG - TEMPORARY EXHIBITIONS,182.92,LOOSE TOOLS & CONSUMABLES,"PAINTS, VARNISHES, AND SUPPLIES (5198)"
03 Apr 2014,J&N SUPERFOOD STORE,CHILDRENS SERVICES,AFST-BLOXWICH,15.50,FOOD AND BEVERAGES-PROVISIONS,GROCERY STORES AND SUPERMARKETS (5411)
03 Apr 2014,OFFICE DEPOT,REGENERATION,DESIGN & PROJECT MANAGEMENT,-0.10,STATIONERY & GENERAL SUPPLIES-OFFICE EXP,"STATIONERY, OFFICE SUPPLIES AND WRITING PAPER (5111)"
03 Apr 2014,AMAZON *MKTPLCE EU-UK,NEIGHBOURHOOD SERVICES,NAG - TEMPORARY EXHIBITIONS,5.53,LIBRARY BOOKS,BOOK STORES (5942)
03 Apr 2014,AQUAID FRANCHISING LTD,CHILDRENS SERVICES,UNIVERSAL EDUCATION CLIENT UNIT,781.60,STAFF MINERAL WATER-EQUIPMENT,EQUIPMENT RENTAL AND LEASING SERVICES (7394)
03 Apr 2014,LIVERPOOL DIR SIA,NEIGHBOURHOOD SERVICES,PHOTOGRAPHY EXHIBITION NO. 4,110.00,FEES & LICENCES-SERVICES,"DETECTIVE AGENCIES, PROTECTIVE AGENCIES, SECURITY  (7393)"
03 Apr 2014,WWW.GIROFOOD.COM,NEIGHBOURHOOD SERVICES,CA BIRCHILLS CE PRIMARY COMMUNITY SCHOOL,90.44,DISPOSABLES-PROVISIONS,WHOLESALE CLUBS (5300)
03 Apr 2014,WWW.GIROFOOD.COM,NEIGHBOURHOOD SERVICES,CA WATLING STREET PRIMARY SCHOOL,255.26,DISPOSABLES-PROVISIONS,WHOLESALE CLUBS (5300)
04 Apr 2014,OFFICE DEPOT,REGENERATION,CENTRALISED STATIONERY,494.51,STATIONERY & GENERAL SUPPLIES-OFFICE EXP,"STATIONERY, OFFICE SUPPLIES AND WRITING PAPER (5111)"
04 Apr 2014,ARTHUR BRETT CATER,NEIGHBOURHOOD SERVICES,CA TOWN HALL RESTAURANT - CATERING,47.47,FRUIT & VEGETABLES OTHER-PROVISIONS,MISCELLANEOUS FOOD STORES & CONVENIENCE STORES (5499)
04 Apr 2014,BORSHCH ELECTRIC,RESOURCES,WALSALL CRISIS SUPPORT SCHEME,265.00,CRISIS SUPPORT PAYMENTS,HOUSEHOLD APPLIANCE STORES (5722)
04 Apr 2014,DULUX DECORATOR CENTRE,NEIGHBOURHOOD SERVICES,NAG - MAINTENANCE,60.04,LOOSE TOOLS & CONSUMABLES,"PAINTS, VARNISHES, AND SUPPLIES (5198)"
04 Apr 2014,AMAZON PRIME,CHILDRENS SERVICES,ADMINISTRATIVE SUPPLIES,79.00,GENERAL MATERIALS,DIRECT MARKETING CONTINUITY SUBSCRIPTION MERCHANTS (5968)
04 Apr 2014,TRAINLINE.COM,NEIGHBOURHOOD SERVICES,LEISURE - MANAGEMENT AND ADMIN,20.20,OFFICER/STAFF-PUBLIC TRANSPORT,PASSENGER RAILWAYS (4112)
04 Apr 2014,ARTHUR BRETT CATER,NEIGHBOURHOOD SERVICES,CA BLUE COAT C.E. JUNIOR SCHOOL,175.38,FRUIT & VEGETABLES OTHER-PROVISIONS,MISCELLANEOUS FOOD STORES & CONVENIENCE STORES (5499)
04 Apr 2014,ARTHUR BRETT CATER,NEIGHBOURHOOD SERVICES,CA POOL HAYES PRIMARY SCHOOL,3.55,FRUIT & VEGETABLES OTHER-PROVISIONS,MISCELLANEOUS FOOD STORES & CONVENIENCE STORES (5499)
04 Apr 2014,CENTRO,CHILDRENS SERVICES,FAMILY SUPPORT,10.00,OFFICER/STAFF-PUBLIC TRANSPORT,GOVERNMENT SERVICES (9399)
04 Apr 2014,CRAZY HOUSE (BROWNHILL,RESOURCES,WALSALL CRISIS SUPPORT SCHEME,140.00,CRISIS SUPPORT PAYMENTS,"EQUIPMENT, FURNITURE, AND HOME FURNISHINGS STORES  (5712)"
04 Apr 2014,ARTHUR BRETT CATER,NEIGHBOURHOOD SERVICES,CA BLUE COAT C.E. JUNIOR SCHOOL,76.11,FRUIT & VEGETABLES OTHER-PROVISIONS,MISCELLANEOUS FOOD STORES & CONVENIENCE STORES (5499)
04 Apr 2014,OFFICE DEPOT,CHILDRENS SERVICES,ADOPTION TEAM,147.56,STATIONERY & GENERAL SUPPLIES-OFFICE EXP,"STATIONERY, OFFICE SUPPLIES AND WRITING PAPER (5111)"
04 Apr 2014,ASDA SUPERSTORE,NEIGHBOURHOOD SERVICES,WALSALL CANAL BOATS,69.24,FOOD AND BEVERAGES-PROVISIONS,GROCERY STORES AND SUPERMARKETS (5411)
04 Apr 2014,ARTHUR BRETT CATER,NEIGHBOURHOOD SERVICES,CA BARCROFT D/C,35.08,FRUIT & VEGETABLES OTHER-PROVISIONS,MISCELLANEOUS FOOD STORES & CONVENIENCE STORES (5499)
04 Apr 2014,OFFICE DEPOT,NEIGHBOURHOOD SERVICES,RESOURCE MANAGEMENT,4.68,STATIONERY & GENERAL SUPPLIES-OFFICE EXP,"STATIONERY, OFFICE SUPPLIES AND WRITING PAPER (5111)"
04 Apr 2014,ARTHUR BRETT CATER,NEIGHBOURHOOD SERVICES,TOWN HALL RESTAURANT BISTRO,38.27,FRUIT & VEGETABLES OTHER-PROVISIONS,MISCELLANEOUS FOOD STORES & CONVENIENCE STORES (5499)
04 Apr 2014,IKEA SACAT,CHILDRENS SERVICES,"ELDON STREET, WALSALL",197.20,FURNITURE & EQUIPMENT,MISCELLANEOUS HOUSE FURNISHING SPECIALTY SHOPS (5719)
04 Apr 2014,A F BLAKEMORE & SON LTD,NEIGHBOURHOOD SERVICES,DARLASTON TOWN HALL,106.21,MISCELLANEOUS SUPPLIES,GROCERY STORES AND SUPERMARKETS (5411)
04 Apr 2014,BORSHCH ELECTRIC,RESOURCES,WALSALL CRISIS SUPPORT SCHEME,325.00,CRISIS SUPPORT PAYMENTS,HOUSEHOLD APPLIANCE STORES (5722)
04 Apr 2014,ASDA STORES,CHILDRENS SERVICES,CLUSTER 5 DARLASTON,13.23,FOOD AND BEVERAGES-PROVISIONS,GROCERY STORES AND SUPERMARKETS (5411)
04 Apr 2014,ARTHUR BRETT CATER,NEIGHBOURHOOD SERVICES,CA BLUE COAT C.E. INFANT SCHOOL,11.24,FRUIT & VEGETABLES OTHER-PROVISIONS,MISCELLANEOUS FOOD STORES & CONVENIENCE STORES (5499)
04 Apr 2014,GRO HM PASSPORT OFFICE,CHILDRENS SERVICES,SUPPORT UNDER SECT 23 OF THE CHILDRENS ACT,9.25,SUPPORT UNDER SECTION 23 OF THE CHILDRENS ACT,GOVERNMENT SERVICES (9399)
04 Apr 2014,BLOXWICH HARDWARE,NEIGHBOURHOOD SERVICES,WALSALL CANAL BOATS,31.50,"CROCKERY,HARDWARE & DISPOSABLES-MATERIALS",HARDWARE STORES (5251)
04 Apr 2014,HAMPTON MEDICAL,NEIGHBOURHOOD SERVICES,PUBLIC HEALTH BUSINESS SUPPORT,117.36,COURSE/CONFERENCE EXPENSES,OTHER DIRECT MARKETING-OTHER DIRECT MARKETERS (5969)
04 Apr 2014,ARCO LTD,REGENERATION,SMARTER WORKPLACES WORKPLACE SOLUTIONS,516.00,"REPAIRS,ALTERATIONS & MAINTENANCE-PREM","MEN'S, WOMEN'S, AND CHILDREN'S UNIFORMS (5137)"
04 Apr 2014,GRO HM PASSPORT OFFICE,CHILDRENS SERVICES,INITIAL RESPONSE SERVICE,23.40,TRANSFER PAYMENTS - SOCIAL SERVICES CLIENTS,GOVERNMENT SERVICES (9399)
04 Apr 2014,AMAZONLOCAL,CHILDRENS SERVICES,57 LICHFIELD ROAD,108.00,RESIDENTS PERSONAL EXPENSES-ALLOWANCES TO S/S CLIENTS,MISCELLANEOUS AND SPECIALTY RETAIL STORES (5999)
04 Apr 2014,OFFICE DEPOT,NEIGHBOURHOOD SERVICES,LEATHER MUSEUM,35.59,STATIONERY & GENERAL SUPPLIES-OFFICE EXP,"STATIONERY, OFFICE SUPPLIES AND WRITING PAPER (5111)"
04 Apr 2014,AMAZON *MKTPLCE EU-UK,CHILDRENS SERVICES,SEN,10.85,FURNITURE & EQUIPMENT,BOOK STORES (5942)
04 Apr 2014,BORSHCH ELECTRIC,RESOURCES,WALSALL CRISIS SUPPORT SCHEME,325.00,CRISIS SUPPORT PAYMENTS,HOUSEHOLD APPLIANCE STORES (5722)
04 Apr 2014,THE BOOK PEOPLE,NEIGHBOURHOOD SERVICES,SCHOOL LIBRARY SUPPORT,25.99,LIBRARY BOOKS,BOOK STORES (5942)
04 Apr 2014,CRAZY HOUSE (BROWNHILL,RESOURCES,WALSALL CRISIS SUPPORT SCHEME,60.00,CRISIS SUPPORT PAYMENTS,"EQUIPMENT, FURNITURE, AND HOME FURNISHINGS STORES  (5712)"
04 Apr 2014,ARTHUR BRETT CATER,NEIGHBOURHOOD SERVICES,CA CALDMORE COMMUNITY PRIMARY SCHOOL,49.03,FRUIT & VEGETABLES OTHER-PROVISIONS,MISCELLANEOUS FOOD STORES & CONVENIENCE STORES (5499)
04 Apr 2014,W M MORRISON PLC,CHILDRENS SERVICES,"43A HILTON ROAD, WILLENHALL",25.92,FOOD AND BEVERAGES-PROVISIONS,GROCERY STORES AND SUPERMARKETS (5411)
04 Apr 2014,W M MORRISON PLC,CHILDRENS SERVICES,"43A HILTON ROAD, WILLENHALL",123.98,FOOD AND BEVERAGES-PROVISIONS,GROCERY STORES AND SUPERMARKETS (5411)
04 Apr 2014,ARTHUR BRETT CATER,NEIGHBOURHOOD SERVICES,CA BLUE COAT C.E. INFANT SCHOOL,23.42,FRUIT & VEGETABLES OTHER-PROVISIONS,MISCELLANEOUS FOOD STORES & CONVENIENCE STORES (5499)
04 Apr 2014,CRAZY HOUSE (BROWNHILL,RESOURCES,WALSALL CRISIS SUPPORT SCHEME,55.00,CRISIS SUPPORT PAYMENTS,"EQUIPMENT, FURNITURE, AND HOME FURNISHINGS STORES  (5712)"
04 Apr 2014,WM MORRISON 063,CHILDRENS SERVICES,REDRUTH ROAD,4.33,GENERAL PROVISIONS-PROVISIONS,GROCERY STORES AND SUPERMARKETS (5411)
04 Apr 2014,ARTHUR BRETT CATER,NEIGHBOURHOOD SERVICES,CA ST MICHAELS C.E. PRIMARY SCHOOL,22.48,FRUIT & VEGETABLES OTHER-PROVISIONS,MISCELLANEOUS FOOD STORES & CONVENIENCE STORES (5499)
04 Apr 2014,BORSHCH ELECTRIC,RESOURCES,WALSALL CRISIS SUPPORT SCHEME,195.00,CRISIS SUPPORT PAYMENTS,HOUSEHOLD APPLIANCE STORES (5722)
04 Apr 2014,HAMPTON MEDICAL,NEIGHBOURHOOD SERVICES,PUBLIC HEALTH BUSINESS SUPPORT,117.36,COURSE/CONFERENCE EXPENSES,OTHER DIRECT MARKETING-OTHER DIRECT MARKETERS (5969)
04 Apr 2014,POUNDWORLD RETAIL LTD,CHILDRENS SERVICES,"ELDON STREET, WALSALL",33.81,NEW-FURNITURE & EQUIPMENT,DISCOUNT STORES (5310)
04 Apr 2014,OFFICE DEPOT,NEIGHBOURHOOD SERVICES,CA CENTRAL SUPPORT SERVICES,59.28,STATIONERY & GENERAL SUPPLIES-OFFICE EXP,"STATIONERY, OFFICE SUPPLIES AND WRITING PAPER (5111)"
04 Apr 2014,AMAZON *MKTPLCE EU-UK,RESOURCES,SIT-INFRASTRUCTURE,74.07,COMPUTER EQUIPMENT AND SUPPLIES,BOOK STORES (5942)
04 Apr 2014,AMAZON *MKTPLCE EU-UK,RESOURCES,SIT-INFRASTRUCTURE,4.23,COMPUTER EQUIPMENT AND SUPPLIES,BOOK STORES (5942)
04 Apr 2014,WALSALL CARPETS,RESOURCES,WALSALL CRISIS SUPPORT SCHEME,320.00,CRISIS SUPPORT PAYMENTS,FLOOR COVERING STORES (5713)
04 Apr 2014,ARTHUR BRETT CATER,NEIGHBOURHOOD SERVICES,CA FIBBERSLEY PARK PRIMARY SCHOOL,27.49,FRUIT & VEGETABLES OTHER-PROVISIONS,MISCELLANEOUS FOOD STORES & CONVENIENCE STORES (5499)
04 Apr 2014,ASDA SUPERSTORE,NEIGHBOURHOOD SERVICES,WALSALL CANAL BOATS,11.00,FOOD AND BEVERAGES-PROVISIONS,GROCERY STORES AND SUPERMARKETS (5411)
04 Apr 2014,ASDA,CHILDRENS SERVICES,57 LICHFIELD ROAD,27.75,GENERAL PROVISIONS-PROVISIONS,GROCERY STORES AND SUPERMARKETS (5411)
04 Apr 2014,THE COAL AUTHORITY,CHILDRENS SERVICES,CFR 1010 RUSHALL PRIMARY/EDC ALTERATIONS,82.80,ARCHITECTS INSTRUCTION,GOVERNMENT SERVICES (9399)
04 Apr 2014,W M MORRISON PLC,CHILDRENS SERVICES,"43A HILTON ROAD, WILLENHALL",6.00,MAINTENANCE-FURNITURE & EQUIPMENT,GROCERY STORES AND SUPERMARKETS (5411)
04 Apr 2014,THE TRAINLINE.COM,REGENERATION,DESIGN & PROJECT MANAGEMENT,51.00,OFFICER/STAFF-PUBLIC TRANSPORT,PASSENGER RAILWAYS (4112)
04 Apr 2014,WALSALL CARPETS,RESOURCES,WALSALL CRISIS SUPPORT SCHEME,117.00,CRISIS SUPPORT PAYMENTS,FLOOR COVERING STORES (5713)
04 Apr 2014,W M MORRISON PLC,CHILDRENS SERVICES,"43A HILTON ROAD, WILLENHALL",29.90,FOOD AND BEVERAGES-PROVISIONS,GROCERY STORES AND SUPERMARKETS (5411)
04 Apr 2014,W M MORRISON PLC,CHILDRENS SERVICES,"43A HILTON ROAD, WILLENHALL",29.74,FOOD AND BEVERAGES-PROVISIONS,GROCERY STORES AND SUPERMARKETS (5411)
04 Apr 2014,BORSHCH ELECTRIC,RESOURCES,WALSALL CRISIS SUPPORT SCHEME,270.00,CRISIS SUPPORT PAYMENTS,HOUSEHOLD APPLIANCE STORES (5722)
04 Apr 2014,ARTHUR BRETT CATER,NEIGHBOURHOOD SERVICES,CA PALFREY JUNIOR SCHOOL,58.91,FRUIT & VEGETABLES OTHER-PROVISIONS,MISCELLANEOUS FOOD STORES & CONVENIENCE STORES (5499)
04 Apr 2014,GRO HM PASSPORT OFFICE,CHILDRENS SERVICES,SAFEGUARDING & FAMILY SUPPORT,-23.40,SECTION 1/17CHILD CARE ACT 1989-ASSISTANCE TO S/S CLIENTS,GOVERNMENT SERVICES (9399)
04 Apr 2014,ARTHUR BRETT CATER,NEIGHBOURHOOD SERVICES,CA WATLING STREET PRIMARY SCHOOL,-23.84,FRUIT & VEGETABLES OTHER-PROVISIONS,MISCELLANEOUS FOOD STORES & CONVENIENCE STORES (5499)
04 Apr 2014,WWW.GIROFOOD.COM,NEIGHBOURHOOD SERVICES,CA CROFT COMMUNITY PRIMARY SCHOOL,59.52,DISPOSABLES-PROVISIONS,WHOLESALE CLUBS (5300)
04 Apr 2014,WWW.GIROFOOD.COM,NEIGHBOURHOOD SERVICES,CA CROFT COMMUNITY PRIMARY SCHOOL,41.72,DISPOSABLES-PROVISIONS,WHOLESALE CLUBS (5300)
04 Apr 2014,WWW.GIROFOOD.COM,NEIGHBOURHOOD SERVICES,CA HARDEN PRIMARY SCHOOL,90.05,DISPOSABLES-PROVISIONS,WHOLESALE CLUBS (5300)
05 Apr 2014,ADIDASGROUP,NEIGHBOURHOOD SERVICES,AP QUALITY & PERFORMANCE DISCRETIONARY LEARNER SUP,-22.10,CLOTHING & LAUNDRY,SPORTING GOODS STORES (5941)
05 Apr 2014,JOHAL DAIRIES LTD,NEIGHBOURHOOD SERVICES,CA ST FRANCIS CATHOLIC PRIMARY SCHOOL,16.67,MISC DAIRY PRODUCTS-PROVISIONS,OTHER NONDURABLE GOODS (5199)
05 Apr 2014,JOHAL DAIRIES LTD,NEIGHBOURHOOD SERVICES,CA ELMWOOD SPECIAL SCHOOL,12.20,MISC DAIRY PRODUCTS-PROVISIONS,OTHER NONDURABLE GOODS (5199)
05 Apr 2014,JOHAL DAIRIES LTD,SOCIAL CARE & INCLUSION,FALLINGS HEATH,34.24,MISC DAIRY PRODUCTS-PROVISIONS,OTHER NONDURABLE GOODS (5199)
05 Apr 2014,JOHAL DAIRIES LTD,CHILDRENS SERVICES,57 LICHFIELD ROAD,19.05,GENERAL PROVISIONS-PROVISIONS,OTHER NONDURABLE GOODS (5199)
05 Apr 2014,JOHAL DAIRIES LTD,NEIGHBOURHOOD SERVICES,CA RUSHALL JMI SCHOOL,45.28,MISC DAIRY PRODUCTS-PROVISIONS,OTHER NONDURABLE GOODS (5199)
05 Apr 2014,JOHAL DAIRIES LTD,NEIGHBOURHOOD SERVICES,CA HOLY TRINITY CE PRIMARY,13.31,MISC DAIRY PRODUCTS-PROVISIONS,OTHER NONDURABLE GOODS (5199)
05 Apr 2014,JOHAL DAIRIES LTD,NEIGHBOURHOOD SERVICES,CA TOWN HALL RESTAURANT - CATERING,86.03,MISC DAIRY PRODUCTS-PROVISIONS,OTHER NONDURABLE GOODS (5199)
05 Apr 2014,JOHAL DAIRIES LTD,NEIGHBOURHOOD SERVICES,CA BEACON PRIMARY SCHOOL,89.40,MISC DAIRY PRODUCTS-PROVISIONS,OTHER NONDURABLE GOODS (5199)
05 Apr 2014,JOHAL DAIRIES LTD,NEIGHBOURHOOD SERVICES,CA MEADOW VIEW JMI PRIMARY SCHOOL,17.94,MISC DAIRY PRODUCTS-PROVISIONS,OTHER NONDURABLE GOODS (5199)
05 Apr 2014,JOHAL DAIRIES LTD,NEIGHBOURHOOD SERVICES,CA DELVES JUNIOR SCHOOL,78.45,MISC DAIRY PRODUCTS-PROVISIONS,OTHER NONDURABLE GOODS (5199)
05 Apr 2014,JOHAL DAIRIES LTD,NEIGHBOURHOOD SERVICES,CA LEIGHSWOOD PRIMARY SCHOOL,38.56,MISC DAIRY PRODUCTS-PROVISIONS,OTHER NONDURABLE GOODS (5199)
05 Apr 2014,JOHAL DAIRIES LTD,NEIGHBOURHOOD SERVICES,CA LITTLE BLOXWICH CE PRIMARY SCHOOL,25.84,MISC DAIRY PRODUCTS-PROVISIONS,OTHER NONDURABLE GOODS (5199)
05 Apr 2014,JOHAL DAIRIES LTD,NEIGHBOURHOOD SERVICES,CA BLOXWICH C.E. JMI PRIMARY SCHOOL,58.13,MISC DAIRY PRODUCTS-PROVISIONS,OTHER NONDURABLE GOODS (5199)
05 Apr 2014,JOHAL DAIRIES LTD,NEIGHBOURHOOD SERVICES,CA ST GILES C.E. PRIMARY SCHOOL,68.18,MISC DAIRY PRODUCTS-PROVISIONS,OTHER NONDURABLE GOODS (5199)
05 Apr 2014,JOHAL DAIRIES LTD,NEIGHBOURHOOD SERVICES,CA ST ANNES CATHOLIC PRIMARY SCHOOL,17.45,MISC DAIRY PRODUCTS-PROVISIONS,OTHER NONDURABLE GOODS (5199)
05 Apr 2014,JOHAL DAIRIES LTD,NEIGHBOURHOOD SERVICES,CA BARCROFT D/C,108.00,MISC DAIRY PRODUCTS-PROVISIONS,OTHER NONDURABLE GOODS (5199)
05 Apr 2014,JOHAL DAIRIES LTD,NEIGHBOURHOOD SERVICES,CA POOL HAYES PRIMARY SCHOOL,18.99,MISC DAIRY PRODUCTS-PROVISIONS,OTHER NONDURABLE GOODS (5199)
05 Apr 2014,HOME BARGAINS,CHILDRENS SERVICES,"ELDON STREET, WALSALL",6.22,NEW-FURNITURE & EQUIPMENT,HARDWARE STORES (5251)
05 Apr 2014,HOME BARGAINS,CHILDRENS SERVICES,"ELDON STREET, WALSALL",31.10,NEW-FURNITURE & EQUIPMENT,HARDWARE STORES (5251)
05 Apr 2014,A F BLAKEMORE CASH&CARRY,NEIGHBOURHOOD SERVICES,BLOXWICH LEISURE CENTRE,27.85,FOOD AND BEVERAGES-PROVISIONS,GROCERY STORES AND SUPERMARKETS (5411)
06 Apr 2014,ASDA STORES LTD 4225,CHILDRENS SERVICES,SPINDLETREE,42.00,RESIDENTS PERSONAL EXPENSES-ALLOWANCES TO S/S CLIENTS,GROCERY STORES AND SUPERMARKETS (5411)
06 Apr 2014,SAINSBURYS SMKT,CHILDRENS SERVICES,REWARDS & PRIZES,31.60,GENERAL MATERIALS,GROCERY STORES AND SUPERMARKETS (5411)
06 Apr 2014,PAYPAL,CHILDRENS SERVICES,REDRUTH ROAD,41.94,FURNITURE & EQUIPMENT,MISCELLANEOUS AND SPECIALTY RETAIL STORES (5999)
06 Apr 2014,ASDA,CHILDRENS SERVICES,SPINDLETREE,8.00,RESIDENTS PERSONAL EXPENSES-ALLOWANCES TO S/S CLIENTS,GROCERY STORES AND SUPERMARKETS (5411)
06 Apr 2014,ASDA,CHILDRENS SERVICES,SPINDLETREE,2.00,RESIDENTS PERSONAL EXPENSES-ALLOWANCES TO S/S CLIENTS,GROCERY STORES AND SUPERMARKETS (5411)
06 Apr 2014,ASDA STORES LTD 4225,CHILDRENS SERVICES,SPINDLETREE,6.24,RESIDENTS PERSONAL EXPENSES-ALLOWANCES TO S/S CLIENTS,GROCERY STORES AND SUPERMARKETS (5411)
06 Apr 2014,ASDA,CHILDRENS SERVICES,SPINDLETREE,20.64,PROFESSIONAL FEES AND SERVICES,GROCERY STORES AND SUPERMARKETS (5411)
07 Apr 2014,JOHAL DAIRIES LTD,NEIGHBOURHOOD SERVICES,CA CROFT COMMUNITY PRIMARY SCHOOL,30.63,MISC DAIRY PRODUCTS-PROVISIONS,OTHER NONDURABLE GOODS (5199)
07 Apr 2014,WELSH BROS FOODS LTD,NEIGHBOURHOOD SERVICES,CA TOWN HALL RESTAURANT - CATERING,99.50,MEAT-PROVISIONS,FREEZER AND LOCKER MEAT PROVISIONERS (5422)
07 Apr 2014,WWW.ROYALMAIL.COM,CHILDRENS SERVICES,ADMINISTRATIVE SUPPLIES,204.50,POSTAGES AND COURIER SERVICES,POSTAL SERVICES - GOVERNMENT ONLY (9402)
07 Apr 2014,ASDA HOME DELIVERY,CHILDRENS SERVICES,SPINDLETREE,195.04,GENERAL PROVISIONS-PROVISIONS,GROCERY STORES AND SUPERMARKETS (5411)
07 Apr 2014,ARTHUR BRETT CATER,NEIGHBOURHOOD SERVICES,CA ST JOHNS C.E. PRIMARY SCHOOL,127.06,FRUIT & VEGETABLES OTHER-PROVISIONS,MISCELLANEOUS FOOD STORES & CONVENIENCE STORES (5499)
07 Apr 2014,ASDA HOME DELIVERY,CHILDRENS SERVICES,ALUMWELL NURSERY,26.18,FOOD AND BEVERAGES-PROVISIONS,GROCERY STORES AND SUPERMARKETS (5411)
07 Apr 2014,ASDA HOME DELIVERY,CHILDRENS SERVICES,ALUMWELL NURSERY,47.08,FOOD AND BEVERAGES-PROVISIONS,GROCERY STORES AND SUPERMARKETS (5411)
07 Apr 2014,WELSH BROS FOODS LTD,NEIGHBOURHOOD SERVICES,CA BARCROFT D/C,103.22,MEAT-PROVISIONS,FREEZER AND LOCKER MEAT PROVISIONERS (5422)
07 Apr 2014,WELSH BROS FOODS LTD,NEIGHBOURHOOD SERVICES,CA OLD HALL SPECIAL SCHOOL,71.00,MEAT-PROVISIONS,FREEZER AND LOCKER MEAT PROVISIONERS (5422)
07 Apr 2014,BLAKEMORE FOODSERVICE,NEIGHBOURHOOD SERVICES,CA RADLEYS PRIMARY SCHOOL,358.63,DRY FOODS-PROVISIONS,CATERERS (5811)
07 Apr 2014,BLAKEMORE FOODSERVICE,NEIGHBOURHOOD SERVICES,CA RADLEYS PRIMARY SCHOOL,48.38,DRY FOODS-PROVISIONS,CATERERS (5811)
07 Apr 2014,TRAINLINE.COM,CHILDRENS SERVICES,CENTRAL SUPPORT,186.41,OFFICER/STAFF-PUBLIC TRANSPORT,PASSENGER RAILWAYS (4112)
07 Apr 2014,BORSHCH ELECTRIC,RESOURCES,WALSALL CRISIS SUPPORT SCHEME,460.00,CRISIS SUPPORT PAYMENTS,HOUSEHOLD APPLIANCE STORES (5722)
07 Apr 2014,REGISTRATION SERVICES,CHILDRENS SERVICES,SUPPORT UNDER SECT 23 OF THE CHILDRENS ACT,40.00,SUPPORT UNDER SECTION 23 OF THE CHILDRENS ACT,OTHER RECREATION SERVICES (7999)
07 Apr 2014,BLAKEMORE FOODSERVICE,NEIGHBOURHOOD SERVICES,CA OLD HALL SPECIAL SCHOOL,49.48,FROZEN FOODS-PROVISIONS,CATERERS (5811)
07 Apr 2014,ARTHUR BRETT CATER,NEIGHBOURHOOD SERVICES,CA WATLING STREET PRIMARY SCHOOL,74.67,FRUIT & VEGETABLES OTHER-PROVISIONS,MISCELLANEOUS FOOD STORES & CONVENIENCE STORES (5499)
07 Apr 2014,JOHAL DAIRIES LTD,NEIGHBOURHOOD SERVICES,CA JOSEPH LECKIE COMMUNITY TECHNOLOGY COLLEGE,28.78,MISC DAIRY PRODUCTS-PROVISIONS,OTHER NONDURABLE GOODS (5199)
07 Apr 2014,JOHAL DAIRIES LTD,NEIGHBOURHOOD SERVICES,CA WALSALL WOOD PRIMARY SCHOOL,13.31,MISC DAIRY PRODUCTS-PROVISIONS,OTHER NONDURABLE GOODS (5199)
07 Apr 2014,BLAKEMORE FOODSERVICE,NEIGHBOURHOOD SERVICES,CA BUSILL JONES PRIMARY SCHOOL,158.72,FROZEN FOODS-PROVISIONS,CATERERS (5811)
07 Apr 2014,BLAKEMORE FOODSERVICE,NEIGHBOURHOOD SERVICES,CA BUSILL JONES PRIMARY SCHOOL,7.40,FROZEN FOODS-PROVISIONS,CATERERS (5811)
07 Apr 2014,WELSH BROS FOODS LTD,NEIGHBOURHOOD SERVICES,CA FIBBERSLEY PARK PRIMARY SCHOOL,129.46,MEAT-PROVISIONS,FREEZER AND LOCKER MEAT PROVISIONERS (5422)
07 Apr 2014,WELSH BROS FOODS LTD,NEIGHBOURHOOD SERVICES,CA BLACKWOOD PRIMARY SCHOOL,93.43,MEAT-PROVISIONS,FREEZER AND LOCKER MEAT PROVISIONERS (5422)
07 Apr 2014,WELSH BROS FOODS LTD,NEIGHBOURHOOD SERVICES,CA BLUE COAT C.E. INFANT SCHOOL,43.33,MEAT-PROVISIONS,FREEZER AND LOCKER MEAT PROVISIONERS (5422)
07 Apr 2014,ARTHUR BRETT CATER,NEIGHBOURHOOD SERVICES,CA LEIGHSWOOD PRIMARY SCHOOL,77.16,FRUIT & VEGETABLES OTHER-PROVISIONS,MISCELLANEOUS FOOD STORES & CONVENIENCE STORES (5499)
07 Apr 2014,BLAKEMORE FOODSERVICE,NEIGHBOURHOOD SERVICES,CA COOPER JORDAN CE PRIMARY SCHOOL,316.75,DRY FOODS-PROVISIONS,CATERERS (5811)
07 Apr 2014,BLAKEMORE FOODSERVICE,NEIGHBOURHOOD SERVICES,CA COOPER JORDAN CE PRIMARY SCHOOL,8.06,DRY FOODS-PROVISIONS,CATERERS (5811)
07 Apr 2014,JOHAL DAIRIES LTD,NEIGHBOURHOOD SERVICES,CA ST BERNADETTES CATHOLIC PRIMARY SCHOOL,25.44,MISC DAIRY PRODUCTS-PROVISIONS,OTHER NONDURABLE GOODS (5199)
07 Apr 2014,ARTHUR BRETT CATER,NEIGHBOURHOOD SERVICES,CA LINDENS PRIMARY SCHOOL,37.21,FRUIT & VEGETABLES OTHER-PROVISIONS,MISCELLANEOUS FOOD STORES & CONVENIENCE STORES (5499)
07 Apr 2014,JOHAL DAIRIES LTD,NEIGHBOURHOOD SERVICES,CA WATLING STREET PRIMARY SCHOOL,18.09,MISC DAIRY PRODUCTS-PROVISIONS,OTHER NONDURABLE GOODS (5199)
07 Apr 2014,ASDA HOME DELIVERY,CHILDRENS SERVICES,"CLUSTER 3 BLOXWICH,BLAKENALL,HATHERTON,E STAMMERS",66.36,DRY FOODS-PROVISIONS,GROCERY STORES AND SUPERMARKETS (5411)
07 Apr 2014,ASDA HOME DELIVERY,CHILDRENS SERVICES,"CLUSTER 3 BLOXWICH,BLAKENALL,HATHERTON,E STAMMERS",76.47,DRY FOODS-PROVISIONS,GROCERY STORES AND SUPERMARKETS (5411)
07 Apr 2014,JOHAL DAIRIES LTD,NEIGHBOURHOOD SERVICES,CA COOPER JORDAN CE PRIMARY SCHOOL,24.58,MISC DAIRY PRODUCTS-PROVISIONS,OTHER NONDURABLE GOODS (5199)
07 Apr 2014,ARTHUR BRETT CATER,NEIGHBOURHOOD SERVICES,CA OAKWOOD SPECIAL SCHOOL,24.52,FRUIT & VEGETABLES OTHER-PROVISIONS,MISCELLANEOUS FOOD STORES & CONVENIENCE STORES (5499)
07 Apr 2014,ARTHUR BRETT CATER,NEIGHBOURHOOD SERVICES,CA MILLFIELD PRIMARY SCHOOL,36.35,FRUIT & VEGETABLES OTHER-PROVISIONS,MISCELLANEOUS FOOD STORES & CONVENIENCE STORES (5499)
07 Apr 2014,BLAKEMORE FOODSERVICE,NEIGHBOURHOOD SERVICES,CA WHETSTONE FIELD PRIMARY SCHOOL,-2.28,DRY FOODS-PROVISIONS,CATERERS (5811)
07 Apr 2014,BLAKEMORE FOODSERVICE,NEIGHBOURHOOD SERVICES,CA BIRCHILLS CE PRIMARY COMMUNITY SCHOOL,10.20,FROZEN FOODS-PROVISIONS,CATERERS (5811)
07 Apr 2014,JOHAL DAIRIES LTD,NEIGHBOURHOOD SERVICES,CA PALFREY INFANT SCHOOL,8.37,MISC DAIRY PRODUCTS-PROVISIONS,OTHER NONDURABLE GOODS (5199)
07 Apr 2014,JOHAL DAIRIES LTD,NEIGHBOURHOOD SERVICES,CA RADLEYS PRIMARY SCHOOL,54.08,MISC DAIRY PRODUCTS-PROVISIONS,OTHER NONDURABLE GOODS (5199)
07 Apr 2014,JOHAL DAIRIES LTD,NEIGHBOURHOOD SERVICES,CA ST JOHNS C.E. PRIMARY SCHOOL,18.05,MISC DAIRY PRODUCTS-PROVISIONS,OTHER NONDURABLE GOODS (5199)
07 Apr 2014,WM MORRISON 063,CHILDRENS SERVICES,CLUSTER 4 ALUMWELL & BIRCHILLS,11.00,FOOD AND BEVERAGES-PROVISIONS,GROCERY STORES AND SUPERMARKETS (5411)
07 Apr 2014,WM MORRISON 063,CHILDRENS SERVICES,CLUSTER 4 ALUMWELL & BIRCHILLS,23.86,FOOD AND BEVERAGES-PROVISIONS,GROCERY STORES AND SUPERMARKETS (5411)
07 Apr 2014,BORSHCH ELECTRIC,RESOURCES,WALSALL CRISIS SUPPORT SCHEME,85.00,CRISIS SUPPORT PAYMENTS,HOUSEHOLD APPLIANCE STORES (5722)
07 Apr 2014,ARGOS LTD,CHILDRENS SERVICES,57 LICHFIELD ROAD,19.99,RESIDENTS PERSONAL EXPENSES-ALLOWANCES TO S/S CLIENTS,DISCOUNT STORES (5310)
07 Apr 2014,ARTHUR BRETT CATER,NEIGHBOURHOOD SERVICES,CA ST BERNADETTES CATHOLIC PRIMARY SCHOOL,19.32,FRUIT & VEGETABLES OTHER-PROVISIONS,MISCELLANEOUS FOOD STORES & CONVENIENCE STORES (5499)
07 Apr 2014,BLAKEMORE FOODSERVICE,NEIGHBOURHOOD SERVICES,CA ST MICHAELS C.E. PRIMARY SCHOOL,318.85,DRY FOODS-PROVISIONS,CATERERS (5811)
07 Apr 2014,BLAKEMORE FOODSERVICE,NEIGHBOURHOOD SERVICES,CA ST MICHAELS C.E. PRIMARY SCHOOL,127.72,DRY FOODS-PROVISIONS,CATERERS (5811)
07 Apr 2014,CRAZY HOUSE (BROWNHILL,RESOURCES,WALSALL CRISIS SUPPORT SCHEME,20.00,CRISIS SUPPORT PAYMENTS,"EQUIPMENT, FURNITURE, AND HOME FURNISHINGS STORES  (5712)"
07 Apr 2014,OFFICE DEPOT,SOCIAL CARE & INCLUSION,INTEGRATED BUSINESS PROCESSES & SERVICES,60.14,STATIONERY & GENERAL SUPPLIES-OFFICE EXP,"STATIONERY, OFFICE SUPPLIES AND WRITING PAPER (5111)"
07 Apr 2014,JOHAL DAIRIES LTD,NEIGHBOURHOOD SERVICES,CA GREENFIELD PRIMARY,67.98,MISC DAIRY PRODUCTS-PROVISIONS,OTHER NONDURABLE GOODS (5199)
07 Apr 2014,BLAKEMORE FOODSERVICE,NEIGHBOURHOOD SERVICES,CA JANE LANE SPECIAL SCHOOL,67.99,FROZEN FOODS-PROVISIONS,CATERERS (5811)
07 Apr 2014,WELSH BROS FOODS LTD,NEIGHBOURHOOD SERVICES,CA LINDENS PRIMARY SCHOOL,43.20,MEAT-PROVISIONS,FREEZER AND LOCKER MEAT PROVISIONERS (5422)
07 Apr 2014,WELSH BROS FOODS LTD,NEIGHBOURHOOD SERVICES,CA BLUE COAT C.E. INFANT SCHOOL,27.75,MEAT-PROVISIONS,FREEZER AND LOCKER MEAT PROVISIONERS (5422)
07 Apr 2014,BLAKEMORE FOODSERVICE,NEIGHBOURHOOD SERVICES,CA CROFT COMMUNITY PRIMARY SCHOOL,130.01,FROZEN FOODS-PROVISIONS,CATERERS (5811)
07 Apr 2014,PC WORLD,CHILDRENS SERVICES,CARE MATTERS,364.00,PROFESSIONAL FEES AND SERVICES,ELECTRONIC SALES (5732)
07 Apr 2014,OFFICE DEPOT,CHILDRENS SERVICES,INITIAL RESPONSE SERVICE,257.04,STATIONERY & GENERAL SUPPLIES-OFFICE EXP,"STATIONERY, OFFICE SUPPLIES AND WRITING PAPER (5111)"
07 Apr 2014,JOHAL DAIRIES LTD,NEIGHBOURHOOD SERVICES,CA CALDMORE COMMUNITY PRIMARY SCHOOL,24.21,MISC DAIRY PRODUCTS-PROVISIONS,OTHER NONDURABLE GOODS (5199)
07 Apr 2014,CRAZY HOUSE (BROWNHILL,RESOURCES,WALSALL CRISIS SUPPORT SCHEME,160.00,CRISIS SUPPORT PAYMENTS,"EQUIPMENT, FURNITURE, AND HOME FURNISHINGS STORES  (5712)"
07 Apr 2014,ARTHUR BRETT CATER,NEIGHBOURHOOD SERVICES,CA CASTLEFORT JMI SCHOOL,32.54,FRUIT & VEGETABLES OTHER-PROVISIONS,MISCELLANEOUS FOOD STORES & CONVENIENCE STORES (5499)
07 Apr 2014,BLAKEMORE FOODSERVICE,NEIGHBOURHOOD SERVICES,CA FIBBERSLEY PARK PRIMARY SCHOOL,-6.56,DRY FOODS-PROVISIONS,CATERERS (5811)
07 Apr 2014,BLAKEMORE FOODSERVICE,NEIGHBOURHOOD SERVICES,CA PALFREY JUNIOR SCHOOL,177.61,FROZEN FOODS-PROVISIONS,CATERERS (5811)
07 Apr 2014,BORSHCH ELECTRIC,RESOURCES,WALSALL CRISIS SUPPORT SCHEME,325.00,CRISIS SUPPORT PAYMENTS,HOUSEHOLD APPLIANCE STORES (5722)
07 Apr 2014,B&M RETAIL LTD,CHILDRENS SERVICES,57 LICHFIELD ROAD,4.48,EQUIP NEW-CLEANING,DISCOUNT STORES (5310)
07 Apr 2014,BLAKEMORE FOODSERVICE,NEIGHBOURHOOD SERVICES,CA ST MICHAELS C.E. PRIMARY SCHOOL,11.96,DRY FOODS-PROVISIONS,CATERERS (5811)
07 Apr 2014,JOHAL DAIRIES LTD,CHILDRENS SERVICES,STROUD FAMILY CENTRE,5.97,GENERAL PROVISIONS-PROVISIONS,OTHER NONDURABLE GOODS (5199)
07 Apr 2014,JOHAL DAIRIES LTD,NEIGHBOURHOOD SERVICES,CA MOORCROFT WOOD,25.68,MISC DAIRY PRODUCTS-PROVISIONS,OTHER NONDURABLE GOODS (5199)
07 Apr 2014,BORSHCH ELECTRIC,RESOURCES,WALSALL CRISIS SUPPORT SCHEME,195.00,CRISIS SUPPORT PAYMENTS,HOUSEHOLD APPLIANCE STORES (5722)
07 Apr 2014,JOHAL DAIRIES LTD,NEIGHBOURHOOD SERVICES,CA ABBEY PRIMARY SCHOOL,44.83,MISC DAIRY PRODUCTS-PROVISIONS,OTHER NONDURABLE GOODS (5199)
07 Apr 2014,JOHAL DAIRIES LTD,NEIGHBOURHOOD SERVICES,CA JANE LANE SPECIAL SCHOOL,36.63,MISC DAIRY PRODUCTS-PROVISIONS,OTHER NONDURABLE GOODS (5199)
07 Apr 2014,BLAKEMORE FOODSERVICE,NEIGHBOURHOOD SERVICES,CA CROFT COMMUNITY PRIMARY SCHOOL,-8.85,FROZEN FOODS-PROVISIONS,CATERERS (5811)
07 Apr 2014,ARTHUR BRETT CATER,NEIGHBOURHOOD SERVICES,CA ST JAMES PRIMARY SCHOOL,64.89,FRUIT & VEGETABLES OTHER-PROVISIONS,MISCELLANEOUS FOOD STORES & CONVENIENCE STORES (5499)
07 Apr 2014,ARTHUR BRETT CATER,NEIGHBOURHOOD SERVICES,CA MEADOW VIEW JMI PRIMARY SCHOOL,51.17,FRUIT & VEGETABLES OTHER-PROVISIONS,MISCELLANEOUS FOOD STORES & CONVENIENCE STORES (5499)
07 Apr 2014,BLAKEMORE FOODSERVICE,NEIGHBOURHOOD SERVICES,TOWN HALL RESTAURANT BISTRO,100.17,DRY FOODS-PROVISIONS,CATERERS (5811)
07 Apr 2014,BLAKEMORE FOODSERVICE,NEIGHBOURHOOD SERVICES,TOWN HALL RESTAURANT BISTRO,145.51,DRY FOODS-PROVISIONS,CATERERS (5811)
07 Apr 2014,JOHAL DAIRIES LTD,NEIGHBOURHOOD SERVICES,CA BLUE COAT C.E. INFANT SCHOOL,53.32,MISC DAIRY PRODUCTS-PROVISIONS,OTHER NONDURABLE GOODS (5199)
07 Apr 2014,BLAKEMORE FOODSERVICE,NEIGHBOURHOOD SERVICES,CA MILLFIELD PRIMARY SCHOOL,55.38,DRY FOODS-PROVISIONS,CATERERS (5811)
07 Apr 2014,JOHAL DAIRIES LTD,NEIGHBOURHOOD SERVICES,CA BUSILL JONES PRIMARY SCHOOL,78.12,MISC DAIRY PRODUCTS-PROVISIONS,OTHER NONDURABLE GOODS (5199)
07 Apr 2014,WELSH BROS FOODS LTD,NEIGHBOURHOOD SERVICES,CA ELMWOOD SPECIAL SCHOOL,48.21,MEAT-PROVISIONS,FREEZER AND LOCKER MEAT PROVISIONERS (5422)
07 Apr 2014,JOHAL DAIRIES LTD,NEIGHBOURHOOD SERVICES,CA OLD HALL SPECIAL SCHOOL,25.81,MISC DAIRY PRODUCTS-PROVISIONS,OTHER NONDURABLE GOODS (5199)
07 Apr 2014,OFFICE DEPOT,NEIGHBOURHOOD SERVICES,AP FINANCE & RESOURCES ADMINISTRATION,74.00,STATIONERY & GENERAL SUPPLIES-OFFICE EXP,"STATIONERY, OFFICE SUPPLIES AND WRITING PAPER (5111)"
07 Apr 2014,ARTHUR BRETT CATER,NEIGHBOURHOOD SERVICES,CA BROWNHILLS COMMUNITY TECHNOLOGY COLLEGE,47.26,FRUIT & VEGETABLES OTHER-PROVISIONS,MISCELLANEOUS FOOD STORES & CONVENIENCE STORES (5499)
07 Apr 2014,JOHAL DAIRIES LTD,NEIGHBOURHOOD SERVICES,CA HARDEN PRIMARY SCHOOL,106.50,MISC DAIRY PRODUCTS-PROVISIONS,OTHER NONDURABLE GOODS (5199)
07 Apr 2014,BORSHCH ELECTRIC,RESOURCES,WALSALL CRISIS SUPPORT SCHEME,595.00,CRISIS SUPPORT PAYMENTS,HOUSEHOLD APPLIANCE STORES (5722)
07 Apr 2014,JOHAL DAIRIES LTD,NEIGHBOURHOOD SERVICES,CA FIBBERSLEY PARK PRIMARY SCHOOL,57.20,MISC DAIRY PRODUCTS-PROVISIONS,OTHER NONDURABLE GOODS (5199)
07 Apr 2014,BLAKEMORE FOODSERVICE,NEIGHBOURHOOD SERVICES,CA MOORCROFT WOOD,45.45,FROZEN FOODS-PROVISIONS,CATERERS (5811)
07 Apr 2014,BLAKEMORE FOODSERVICE,NEIGHBOURHOOD SERVICES,CA MOORCROFT WOOD,7.40,FROZEN FOODS-PROVISIONS,CATERERS (5811)
07 Apr 2014,BLAKEMORE FOODSERVICE,NEIGHBOURHOOD SERVICES,CA BARCROFT D/C,182.85,FROZEN FOODS-PROVISIONS,CATERERS (5811)
07 Apr 2014,ARTHUR BRETT CATER,NEIGHBOURHOOD SERVICES,CA WATLING STREET PRIMARY SCHOOL,23.84,FRUIT & VEGETABLES OTHER-PROVISIONS,MISCELLANEOUS FOOD STORES & CONVENIENCE STORES (5499)
07 Apr 2014,JOHAL DAIRIES LTD,NEIGHBOURHOOD SERVICES,CA DELVES INFANTS SCHOOL,8.08,MISC DAIRY PRODUCTS-PROVISIONS,OTHER NONDURABLE GOODS (5199)
07 Apr 2014,ARTHUR BRETT CATER,NEIGHBOURHOOD SERVICES,CA ST ANNES CATHOLIC PRIMARY SCHOOL,42.85,FRUIT & VEGETABLES OTHER-PROVISIONS,MISCELLANEOUS FOOD STORES & CONVENIENCE STORES (5499)
07 Apr 2014,BLAKEMORE FOODSERVICE,NEIGHBOURHOOD SERVICES,CA CALDMORE COMMUNITY PRIMARY SCHOOL,78.92,FROZEN FOODS-PROVISIONS,CATERERS (5811)
07 Apr 2014,BLAKEMORE FOODSERVICE,NEIGHBOURHOOD SERVICES,CA BROWNHILLS COMMUNITY TECHNOLOGY COLLEGE,331.18,DRY FOODS-PROVISIONS,CATERERS (5811)
07 Apr 2014,BLAKEMORE FOODSERVICE,NEIGHBOURHOOD SERVICES,CA BROWNHILLS COMMUNITY TECHNOLOGY COLLEGE,164.55,DRY FOODS-PROVISIONS,CATERERS (5811)
07 Apr 2014,JOHAL DAIRIES LTD,NEIGHBOURHOOD SERVICES,CA MILLFIELD PRIMARY SCHOOL,38.95,MISC DAIRY PRODUCTS-PROVISIONS,OTHER NONDURABLE GOODS (5199)
07 Apr 2014,BLAKEMORE FOODSERVICE,NEIGHBOURHOOD SERVICES,CA BIRCHILLS CE PRIMARY COMMUNITY SCHOOL,143.96,FROZEN FOODS-PROVISIONS,CATERERS (5811)
07 Apr 2014,BLAKEMORE FOODSERVICE,NEIGHBOURHOOD SERVICES,CA BIRCHILLS CE PRIMARY COMMUNITY SCHOOL,22.18,FROZEN FOODS-PROVISIONS,CATERERS (5811)
07 Apr 2014,BLAKEMORE FOODSERVICE,NEIGHBOURHOOD SERVICES,CA ST JOHNS C.E. PRIMARY SCHOOL,377.30,DRY FOODS-PROVISIONS,CATERERS (5811)
07 Apr 2014,BLAKEMORE FOODSERVICE,NEIGHBOURHOOD SERVICES,CA ST JOHNS C.E. PRIMARY SCHOOL,112.90,DRY FOODS-PROVISIONS,CATERERS (5811)
07 Apr 2014,BLAKEMORE FOODSERVICE,NEIGHBOURHOOD SERVICES,CA WHETSTONE FIELD PRIMARY SCHOOL,149.71,DRY FOODS-PROVISIONS,CATERERS (5811)
07 Apr 2014,DUNELM (SOFT FURNISHIN,CHILDRENS SERVICES,57 LICHFIELD ROAD,82.03,FURNITURE & EQUIPMENT,"DRAPERY, UPHOLSTERY, AND WINDOW COVERINGS STORES (5714)"
07 Apr 2014,OFFICE DEPOT,CHILDRENS SERVICES,CENTRAL SUPPORT,80.54,STATIONERY & GENERAL SUPPLIES-OFFICE EXP,"STATIONERY, OFFICE SUPPLIES AND WRITING PAPER (5111)"
07 Apr 2014,WELSH BROS FOODS LTD,NEIGHBOURHOOD SERVICES,CA COOPER JORDAN CE PRIMARY SCHOOL,40.83,MEAT-PROVISIONS,FREEZER AND LOCKER MEAT PROVISIONERS (5422)
07 Apr 2014,TESCO STORES 6161,CHILDRENS SERVICES,FOOD TECH,42.52,GENERAL MATERIALS,GROCERY STORES AND SUPERMARKETS (5411)
07 Apr 2014,WELSH BROS FOODS LTD,NEIGHBOURHOOD SERVICES,CA BROWNHILLS COMMUNITY TECHNOLOGY COLLEGE,149.00,MEAT-PROVISIONS,FREEZER AND LOCKER MEAT PROVISIONERS (5422)
07 Apr 2014,JOHAL DAIRIES LTD,NEIGHBOURHOOD SERVICES,CA CASTLEFORT JMI SCHOOL,34.54,MISC DAIRY PRODUCTS-PROVISIONS,OTHER NONDURABLE GOODS (5199)
07 Apr 2014,JOHAL DAIRIES LTD,SOCIAL CARE & INCLUSION,REABLEMENT TEAM - HOLLY BANK,98.10,MISC DAIRY PRODUCTS-PROVISIONS,OTHER NONDURABLE GOODS (5199)
07 Apr 2014,BRITISH PSYCHO SOC,CHILDRENS SERVICES,SEN,37.00,PROFESSIONAL FEES AND SERVICES,"HEALTH PRACTITIONERS, MEDICAL SERVICES (8099)"
07 Apr 2014,B&M RETAIL LTD,CHILDRENS SERVICES,57 LICHFIELD ROAD,24.99,FURNITURE & EQUIPMENT,DISCOUNT STORES (5310)
07 Apr 2014,ASDA SUPERSTORE,CHILDRENS SERVICES,EDUCATIONAL PSYCHOLOGISTS,6.00,FOOD AND BEVERAGES-PROVISIONS,GROCERY STORES AND SUPERMARKETS (5411)
07 Apr 2014,ASDA HOME DELIVERY,CHILDRENS SERVICES,CLUSTER 5 DARLASTON,232.33,FOOD AND BEVERAGES-PROVISIONS,GROCERY STORES AND SUPERMARKETS (5411)
07 Apr 2014,ASDA HOME DELIVERY,CHILDRENS SERVICES,CLUSTER 5 DARLASTON,10.44,FOOD AND BEVERAGES-PROVISIONS,GROCERY STORES AND SUPERMARKETS (5411)
07 Apr 2014,JOHAL DAIRIES LTD,NEIGHBOURHOOD SERVICES,CA BIRCHILLS CE PRIMARY COMMUNITY SCHOOL,94.80,MISC DAIRY PRODUCTS-PROVISIONS,OTHER NONDURABLE GOODS (5199)
07 Apr 2014,JOHAL DAIRIES LTD,NEIGHBOURHOOD SERVICES,CA LEAMORE PRIMARY SCHOOL,18.49,MISC DAIRY PRODUCTS-PROVISIONS,OTHER NONDURABLE GOODS (5199)
07 Apr 2014,JOHAL DAIRIES LTD,NEIGHBOURHOOD SERVICES,CA BROWNHILLS WEST PRIMARY SCHOOL,62.42,MISC DAIRY PRODUCTS-PROVISIONS,OTHER NONDURABLE GOODS (5199)
07 Apr 2014,JOHAL DAIRIES LTD,NEIGHBOURHOOD SERVICES,CA BLUE COAT C.E. JUNIOR SCHOOL,52.69,MISC DAIRY PRODUCTS-PROVISIONS,OTHER NONDURABLE GOODS (5199)
07 Apr 2014,WELSH BROS FOODS LTD,NEIGHBOURHOOD SERVICES,CA ST JOHNS C.E. PRIMARY SCHOOL,130.07,MEAT-PROVISIONS,FREEZER AND LOCKER MEAT PROVISIONERS (5422)
07 Apr 2014,BLAKEMORE FOODSERVICE,NEIGHBOURHOOD SERVICES,CA ST JAMES PRIMARY SCHOOL,222.28,DRY FOODS-PROVISIONS,CATERERS (5811)
07 Apr 2014,BLAKEMORE FOODSERVICE,NEIGHBOURHOOD SERVICES,CA ST JAMES PRIMARY SCHOOL,48.80,DRY FOODS-PROVISIONS,CATERERS (5811)
07 Apr 2014,B&M RETAIL LTD,CHILDRENS SERVICES,57 LICHFIELD ROAD,3.46,GENERAL PROVISIONS-PROVISIONS,DISCOUNT STORES (5310)
07 Apr 2014,BLAKEMORE FOODSERVICE,NEIGHBOURHOOD SERVICES,CA LEIGHSWOOD PRIMARY SCHOOL,277.47,DRY FOODS-PROVISIONS,CATERERS (5811)
07 Apr 2014,BLAKEMORE FOODSERVICE,NEIGHBOURHOOD SERVICES,CA LEIGHSWOOD PRIMARY SCHOOL,73.30,DRY FOODS-PROVISIONS,CATERERS (5811)
07 Apr 2014,BLAKEMORE FOODSERVICE,NEIGHBOURHOOD SERVICES,CA RADLEYS PRIMARY SCHOOL,101.92,FROZEN FOODS-PROVISIONS,CATERERS (5811)
07 Apr 2014,WM MORRISON 063,CHILDRENS SERVICES,REDRUTH ROAD,5.00,FOOD AND BEVERAGES-PROVISIONS,GROCERY STORES AND SUPERMARKETS (5411)
07 Apr 2014,WM MORRISON 063,CHILDRENS SERVICES,REDRUTH ROAD,75.37,FOOD AND BEVERAGES-PROVISIONS,GROCERY STORES AND SUPERMARKETS (5411)
07 Apr 2014,JOHAL DAIRIES LTD,NEIGHBOURHOOD SERVICES,CA ST JAMES PRIMARY SCHOOL,63.63,MISC DAIRY PRODUCTS-PROVISIONS,OTHER NONDURABLE GOODS (5199)
07 Apr 2014,CURRYS,CHILDRENS SERVICES,CARE MATTERS,364.97,PROFESSIONAL FEES AND SERVICES,ELECTRONIC SALES (5732)
07 Apr 2014,BLAKEMORE FOODSERVICE,NEIGHBOURHOOD SERVICES,CA CASTLEFORT JMI SCHOOL,228.57,DRY FOODS-PROVISIONS,CATERERS (5811)
07 Apr 2014,BLAKEMORE FOODSERVICE,NEIGHBOURHOOD SERVICES,CA CASTLEFORT JMI SCHOOL,14.78,DRY FOODS-PROVISIONS,CATERERS (5811)
07 Apr 2014,JOHAL DAIRIES LTD,NEIGHBOURHOOD SERVICES,CA ELMORE GREEN PRIMARY SCHOOL,28.82,MISC DAIRY PRODUCTS-PROVISIONS,OTHER NONDURABLE GOODS (5199)
07 Apr 2014,JOHAL DAIRIES LTD,NEIGHBOURHOOD SERVICES,CA BLAKENALL HEATH JUNIOR SCHOOL,55.80,MISC DAIRY PRODUCTS-PROVISIONS,OTHER NONDURABLE GOODS (5199)
07 Apr 2014,WELSH BROS FOODS LTD,NEIGHBOURHOOD SERVICES,CA BLUE COAT C.E. JUNIOR SCHOOL,111.61,MEAT-PROVISIONS,FREEZER AND LOCKER MEAT PROVISIONERS (5422)
07 Apr 2014,BLAKEMORE FOODSERVICE,NEIGHBOURHOOD SERVICES,CA BLUE COAT C.E. JUNIOR SCHOOL,9.64,DRY FOODS-PROVISIONS,CATERERS (5811)
07 Apr 2014,JOHAL DAIRIES LTD,NEIGHBOURHOOD SERVICES,CA WHETSTONE FIELD PRIMARY SCHOOL,7.11,MISC DAIRY PRODUCTS-PROVISIONS,OTHER NONDURABLE GOODS (5199)
07 Apr 2014,BLAKEMORE FOODSERVICE,NEIGHBOURHOOD SERVICES,CA FIBBERSLEY PARK PRIMARY SCHOOL,6.56,FROZEN FOODS-PROVISIONS,CATERERS (5811)
07 Apr 2014,BLAKEMORE FOODSERVICE,NEIGHBOURHOOD SERVICES,CA TOWN HALL RESTAURANT - CATERING,54.70,DRY FOODS-PROVISIONS,CATERERS (5811)
07 Apr 2014,BLAKEMORE FOODSERVICE,NEIGHBOURHOOD SERVICES,CA MEADOW VIEW JMI PRIMARY SCHOOL,-12.64,DRY FOODS-PROVISIONS,CATERERS (5811)
07 Apr 2014,ARTHUR BRETT CATER,NEIGHBOURHOOD SERVICES,CA WHETSTONE FIELD PRIMARY SCHOOL,32.27,FRUIT & VEGETABLES OTHER-PROVISIONS,MISCELLANEOUS FOOD STORES & CONVENIENCE STORES (5499)
07 Apr 2014,GRO HM PASSPORT OFFICE,CHILDRENS SERVICES,SAFEGUARDING & FAMILY SUPPORT,9.25,SECTION 1/17CHILD CARE ACT 1989-ASSISTANCE TO S/S CLIENTS,GOVERNMENT SERVICES (9399)
07 Apr 2014,ASDA HOME DELIVERY,NEIGHBOURHOOD SERVICES,AP FINANCE & RESOURCES ADMINISTRATION,63.00,CATERING,GROCERY STORES AND SUPERMARKETS (5411)
07 Apr 2014,ASDA HOME DELIVERY,NEIGHBOURHOOD SERVICES,AP QUALITY & PERFORMANCE DISCRETIONARY LEARNER SUP,423.29,CATERING,GROCERY STORES AND SUPERMARKETS (5411)
07 Apr 2014,BLAKEMORE FOODSERVICE,NEIGHBOURHOOD SERVICES,CA BLUE COAT C.E. INFANT SCHOOL,62.54,FROZEN FOODS-PROVISIONS,CATERERS (5811)
07 Apr 2014,BLAKEMORE FOODSERVICE,NEIGHBOURHOOD SERVICES,CA BLUE COAT C.E. JUNIOR SCHOOL,161.64,FROZEN FOODS-PROVISIONS,CATERERS (5811)
07 Apr 2014,ARTHUR BRETT CATER,NEIGHBOURHOOD SERVICES,CA BLACKWOOD PRIMARY SCHOOL,49.58,FRUIT & VEGETABLES OTHER-PROVISIONS,MISCELLANEOUS FOOD STORES & CONVENIENCE STORES (5499)
07 Apr 2014,VIRGIN MEDIA PYMTS,CHILDRENS SERVICES,57 LICHFIELD ROAD,25.00,RESIDENTS PERSONAL EXPENSES-ALLOWANCES TO S/S CLIENTS,TELECOMMUNICATION SERVICES (4814)
07 Apr 2014,AMAZON *MKTPLCE EU-UK,NEIGHBOURHOOD SERVICES,FLEET,5.31,GENERAL MATERIALS,BOOK STORES (5942)
07 Apr 2014,ARTHUR BRETT CATER,NEIGHBOURHOOD SERVICES,CA WALSALL WOOD PRIMARY SCHOOL,37.59,FRUIT & VEGETABLES OTHER-PROVISIONS,MISCELLANEOUS FOOD STORES & CONVENIENCE STORES (5499)
07 Apr 2014,WILKINSONS,REGENERATION,TOWN CENTRE MANAGEMENT,0.49,MISCELLANEOUS SUPPLIES,HOUSEHOLD APPLIANCE STORES (5722)
07 Apr 2014,ARGOS LTD,CHILDRENS SERVICES,57 LICHFIELD ROAD,208.81,RESIDENTS PERSONAL EXPENSES-ALLOWANCES TO S/S CLIENTS,DISCOUNT STORES (5310)
07 Apr 2014,JOHAL DAIRIES LTD,NEIGHBOURHOOD SERVICES,CA BLACKWOOD PRIMARY SCHOOL,47.53,MISC DAIRY PRODUCTS-PROVISIONS,OTHER NONDURABLE GOODS (5199)
07 Apr 2014,WELSH BROS FOODS LTD,NEIGHBOURHOOD SERVICES,CA WHETSTONE FIELD PRIMARY SCHOOL,23.67,MEAT-PROVISIONS,FREEZER AND LOCKER MEAT PROVISIONERS (5422)
07 Apr 2014,OFFICE DEPOT,REGENERATION,CENTRALISED STATIONERY,-345.59,STATIONERY & GENERAL SUPPLIES-OFFICE EXP,"STATIONERY, OFFICE SUPPLIES AND WRITING PAPER (5111)"
07 Apr 2014,WELSH BROS FOODS LTD,NEIGHBOURHOOD SERVICES,TOWN HALL RESTAURANT BISTRO,60.18,MEAT-PROVISIONS,FREEZER AND LOCKER MEAT PROVISIONERS (5422)
07 Apr 2014,JOHAL DAIRIES LTD,NEIGHBOURHOOD SERVICES,CA PALFREY JUNIOR SCHOOL,57.00,MISC DAIRY PRODUCTS-PROVISIONS,OTHER NONDURABLE GOODS (5199)
07 Apr 2014,MNA LTD CARDCHARGE,REGENERATION,DEVELOPMENT MANAGEMENT,83.16,PERIODICALS/MAGAZINES/NEWSPAPERS-SUBSCRIPTIONS,NEWS DEALERS AND NEWSSTANDS (5994)
07 Apr 2014,JOHAL DAIRIES LTD,NEIGHBOURHOOD SERVICES,CA ST MICHAELS C.E. PRIMARY SCHOOL,27.07,MISC DAIRY PRODUCTS-PROVISIONS,OTHER NONDURABLE GOODS (5199)
07 Apr 2014,BLAKEMORE FOODSERVICE,NEIGHBOURHOOD SERVICES,CA HARDEN PRIMARY SCHOOL,87.17,DRY FOODS-PROVISIONS,CATERERS (5811)
07 Apr 2014,WELSH BROS FOODS LTD,NEIGHBOURHOOD SERVICES,CA JANE LANE SPECIAL SCHOOL,70.65,MEAT-PROVISIONS,FREEZER AND LOCKER MEAT PROVISIONERS (5422)
07 Apr 2014,JOHAL DAIRIES LTD,NEIGHBOURHOOD SERVICES,CA BLUE COAT C OF E PERFORMING ARTS COLLEGE,18.50,MISC DAIRY PRODUCTS-PROVISIONS,OTHER NONDURABLE GOODS (5199)
07 Apr 2014,MAUDESPORT LTD,NEIGHBOURHOOD SERVICES,INSPIRED GENERATIONS (CSAF),216.00,GENERAL MATERIALS,SPORTING GOODS STORES (5941)
07 Apr 2014,SEENIN LTD,CHILDRENS SERVICES,REDRUTH ROAD,55.15,RESIDENTS PERSONAL EXPENSES-ALLOWANCES TO S/S CLIENTS,CLOTHING STORES (5651)
07 Apr 2014,ASDA HOME DELIVERY,CHILDRENS SERVICES,GREENFIELD PRIMARY,91.61,FOOD AND BEVERAGES-PROVISIONS,GROCERY STORES AND SUPERMARKETS (5411)
07 Apr 2014,BLAKEMORE FOODSERVICE,NEIGHBOURHOOD SERVICES,CA BEACON PRIMARY SCHOOL,139.49,FROZEN FOODS-PROVISIONS,CATERERS (5811)
07 Apr 2014,BLAKEMORE FOODSERVICE,NEIGHBOURHOOD SERVICES,CA BEACON PRIMARY SCHOOL,44.36,FROZEN FOODS-PROVISIONS,CATERERS (5811)
07 Apr 2014,ARTHUR BRETT CATER,NEIGHBOURHOOD SERVICES,CA WATLING STREET PRIMARY SCHOOL,16.47,FRUIT & VEGETABLES OTHER-PROVISIONS,MISCELLANEOUS FOOD STORES & CONVENIENCE STORES (5499)
07 Apr 2014,TRAINLINE.COM,CHILDRENS SERVICES,ADOPTION TEAM,32.03,OFFICER/STAFF-PUBLIC TRANSPORT,PASSENGER RAILWAYS (4112)
07 Apr 2014,WELSH BROS FOODS LTD,NEIGHBOURHOOD SERVICES,CA ST JAMES PRIMARY SCHOOL,102.41,MEAT-PROVISIONS,FREEZER AND LOCKER MEAT PROVISIONERS (5422)
07 Apr 2014,WM MORRISON 063,CHILDRENS SERVICES,CLUSTER 4 ALUMWELL & BIRCHILLS,0.89,FOOD AND BEVERAGES-PROVISIONS,GROCERY STORES AND SUPERMARKETS (5411)
07 Apr 2014,WM MORRISON 063,CHILDRENS SERVICES,CLUSTER 4 ALUMWELL & BIRCHILLS,3.08,FOOD AND BEVERAGES-PROVISIONS,GROCERY STORES AND SUPERMARKETS (5411)
07 Apr 2014,ARTHUR BRETT CATER,NEIGHBOURHOOD SERVICES,CA BROWNHILLS WEST PRIMARY SCHOOL,35.03,FRUIT & VEGETABLES OTHER-PROVISIONS,MISCELLANEOUS FOOD STORES & CONVENIENCE STORES (5499)
07 Apr 2014,BLAKEMORE FOODSERVICE,NEIGHBOURHOOD SERVICES,CA ST MICHAELS C.E. PRIMARY SCHOOL,5.08,DRY FOODS-PROVISIONS,CATERERS (5811)
07 Apr 2014,JOHAL DAIRIES LTD,NEIGHBOURHOOD SERVICES,CA LINDENS PRIMARY SCHOOL,32.56,MISC DAIRY PRODUCTS-PROVISIONS,OTHER NONDURABLE GOODS (5199)
07 Apr 2014,JOHAL DAIRIES LTD,NEIGHBOURHOOD SERVICES,CA GREEN ROCK PRIMARY,56.11,MISC DAIRY PRODUCTS-PROVISIONS,OTHER NONDURABLE GOODS (5199)
07 Apr 2014,JOHAL DAIRIES LTD,NEIGHBOURHOOD SERVICES,CA WHITEHALL JUNIOR COMMUNITY SCHOOL,78.35,MISC DAIRY PRODUCTS-PROVISIONS,OTHER NONDURABLE GOODS (5199)
07 Apr 2014,BUONISSIMO LTD,NEIGHBOURHOOD SERVICES,NEW ART GALLERY - ADMIN,72.00,MISC DAIRY PRODUCTS-PROVISIONS,"EATING PLACES, RESTAURANTS (5812)"
07 Apr 2014,BLAKEMORE FOODSERVICE,NEIGHBOURHOOD SERVICES,CA WATLING STREET PRIMARY SCHOOL,302.91,DRY FOODS-PROVISIONS,CATERERS (5811)
07 Apr 2014,BLAKEMORE FOODSERVICE,NEIGHBOURHOOD SERVICES,CA WATLING STREET PRIMARY SCHOOL,154.08,DRY FOODS-PROVISIONS,CATERERS (5811)
07 Apr 2014,ARTHUR BRETT CATER,NEIGHBOURHOOD SERVICES,CA BLUE COAT C OF E PERFORMING ARTS COLLEGE,31.69,FRUIT & VEGETABLES OTHER-PROVISIONS,MISCELLANEOUS FOOD STORES & CONVENIENCE STORES (5499)
07 Apr 2014,WELSH BROS FOODS LTD,NEIGHBOURHOOD SERVICES,CA BLUE COAT C.E. JUNIOR SCHOOL,21.75,MEAT-PROVISIONS,FREEZER AND LOCKER MEAT PROVISIONERS (5422)
07 Apr 2014,TRAINLINE.COM,CHILDRENS SERVICES,CENTRAL SUPPORT,160.75,OFFICER/STAFF-PUBLIC TRANSPORT,PASSENGER RAILWAYS (4112)
07 Apr 2014,JOHAL DAIRIES LTD,NEIGHBOURHOOD SERVICES,CA OAKWOOD SPECIAL SCHOOL,13.95,MISC DAIRY PRODUCTS-PROVISIONS,OTHER NONDURABLE GOODS (5199)
07 Apr 2014,BLAKEMORE FOODSERVICE,NEIGHBOURHOOD SERVICES,CA MOORCROFT WOOD,119.74,DRY FOODS-PROVISIONS,CATERERS (5811)
07 Apr 2014,BLAKEMORE FOODSERVICE,NEIGHBOURHOOD SERVICES,CA MOORCROFT WOOD,13.15,DRY FOODS-PROVISIONS,CATERERS (5811)
07 Apr 2014,LCS CONTAINER SERVICES,CHILDRENS SERVICES,UNIVERSAL EDUCATION CLIENT UNIT,90.00,LEASING/HIRE/RENTAL-EQUIPMENT,MISCELLANEOUS AND SPECIALTY RETAIL STORES (5999)
07 Apr 2014,PREMIER INN44533745,NEIGHBOURHOOD SERVICES,NAG - TEMPORARY EXHIBITIONS,80.75,OTHER EXPENSES-EXPENSES,PREMIER INN (3811)
07 Apr 2014,WWW.WYEDU.CO.UK,CHILDRENS SERVICES,CLUSTER 5 DARLASTON,59.90,MISCELLANEOUS SUPPLIES,MISCELLANEOUS AND SPECIALTY RETAIL STORES (5999)
07 Apr 2014,M A EDUCATION LTD,CHILDRENS SERVICES,CLUSTER 5 DARLASTON,108.90,GENERAL MATERIALS,OTHER SCHOOLS AND EDUCATIONAL SERVICES (8299)
07 Apr 2014,ARTHUR BRETT CATER,NEIGHBOURHOOD SERVICES,CA WHETSTONE FIELD PRIMARY SCHOOL,-1.03,FRUIT & VEGETABLES OTHER-PROVISIONS,MISCELLANEOUS FOOD STORES & CONVENIENCE STORES (5499)
07 Apr 2014,WWW.GIROFOOD.COM,NEIGHBOURHOOD SERVICES,TOWN HALL RESTAURANT BISTRO,368.78,DISPOSABLES-PROVISIONS,WHOLESALE CLUBS (5300)
08 Apr 2014,OFFICE DEPOT,CHILDRENS SERVICES,CENTRAL SUPPORT,281.68,STATIONERY & GENERAL SUPPLIES-OFFICE EXP,"STATIONERY, OFFICE SUPPLIES AND WRITING PAPER (5111)"
08 Apr 2014,ARTHUR BRETT CATER,NEIGHBOURHOOD SERVICES,CA OLD HALL SPECIAL SCHOOL,14.16,FRUIT & VEGETABLES OTHER-PROVISIONS,MISCELLANEOUS FOOD STORES & CONVENIENCE STORES (5499)
08 Apr 2014,CO OPERATIVE INDEPENDENT,CHILDRENS SERVICES,REDRUTH ROAD,48.06,FURNITURE & EQUIPMENT,DENTAL/LABORATORY/MEDICAL EQUIPMENT & SUPPLIES (5047)
08 Apr 2014,WHSMITH.CO.UK,CHILDRENS SERVICES,ENGLISH,25.49,LIBRARY BOOKS,DIRECT MARKETING COMBINATION CATALOG (5965)
08 Apr 2014,CRAZY HOUSE (BROWNHILL,RESOURCES,WALSALL CRISIS SUPPORT SCHEME,205.00,CRISIS SUPPORT PAYMENTS,"EQUIPMENT, FURNITURE, AND HOME FURNISHINGS STORES  (5712)"
08 Apr 2014,ARTHUR BRETT CATER,NEIGHBOURHOOD SERVICES,CA ELMORE GREEN PRIMARY SCHOOL,131.12,FRUIT & VEGETABLES OTHER-PROVISIONS,MISCELLANEOUS FOOD STORES & CONVENIENCE STORES (5499)
08 Apr 2014,TESCO STORES 6161,CHILDRENS SERVICES,HOSPITALITY & CATERING,16.00,GENERAL MATERIALS,GROCERY STORES AND SUPERMARKETS (5411)
08 Apr 2014,TESCO STORES 6161,CHILDRENS SERVICES,HOSPITALITY & CATERING,27.77,GENERAL MATERIALS,GROCERY STORES AND SUPERMARKETS (5411)
08 Apr 2014,ARTHUR BRETT CATER,NEIGHBOURHOOD SERVICES,CA FIBBERSLEY PARK PRIMARY SCHOOL,46.31,FRUIT & VEGETABLES OTHER-PROVISIONS,MISCELLANEOUS FOOD STORES & CONVENIENCE STORES (5499)
08 Apr 2014,ARTHUR BRETT CATER,NEIGHBOURHOOD SERVICES,CA BUSILL JONES PRIMARY SCHOOL,110.36,FRUIT & VEGETABLES OTHER-PROVISIONS,MISCELLANEOUS FOOD STORES & CONVENIENCE STORES (5499)
08 Apr 2014,ARTHUR BRETT CATER,NEIGHBOURHOOD SERVICES,TOWN HALL RESTAURANT BISTRO,30.14,FRUIT & VEGETABLES OTHER-PROVISIONS,MISCELLANEOUS FOOD STORES & CONVENIENCE STORES (5499)
08 Apr 2014,ARTHUR BRETT CATER,NEIGHBOURHOOD SERVICES,CA CROFT COMMUNITY PRIMARY SCHOOL,49.03,FRUIT & VEGETABLES OTHER-PROVISIONS,MISCELLANEOUS FOOD STORES & CONVENIENCE STORES (5499)
08 Apr 2014,ARTHUR BRETT CATER,NEIGHBOURHOOD SERVICES,CA BLOXWICH C.E. JMI PRIMARY SCHOOL,20.54,FRUIT & VEGETABLES OTHER-PROVISIONS,MISCELLANEOUS FOOD STORES & CONVENIENCE STORES (5499)
08 Apr 2014,ASDA SUPERSTORE,CHILDRENS SERVICES,MARY ELLIOTT SPECIAL SCHOOL,13.72,BREAD-GENERAL-PROVISIONS,GROCERY STORES AND SUPERMARKETS (5411)
08 Apr 2014,ARTHUR BRETT CATER,NEIGHBOURHOOD SERVICES,CA ST FRANCIS CATHOLIC PRIMARY SCHOOL,44.98,FRUIT & VEGETABLES OTHER-PROVISIONS,MISCELLANEOUS FOOD STORES & CONVENIENCE STORES (5499)
08 Apr 2014,WALSALL CARPETS,RESOURCES,WALSALL CRISIS SUPPORT SCHEME,312.00,CRISIS SUPPORT PAYMENTS,FLOOR COVERING STORES (5713)
08 Apr 2014,WILKINSON,NEIGHBOURHOOD SERVICES,NAG - TEMPORARY EXHIBITIONS,7.58,LOOSE TOOLS & CONSUMABLES,HOUSEHOLD APPLIANCE STORES (5722)
08 Apr 2014,HALFORDS 0870,NEIGHBOURHOOD SERVICES,INSPIRED GENERATIONS (CSAF),60.00,GENERAL MATERIALS,BICYCLE SHOPS-SALES AND SERVICE (5940)
08 Apr 2014,ARTHUR BRETT CATER,NEIGHBOURHOOD SERVICES,CA CROFT COMMUNITY PRIMARY SCHOOL,9.02,FRUIT & VEGETABLES OTHER-PROVISIONS,MISCELLANEOUS FOOD STORES & CONVENIENCE STORES (5499)
08 Apr 2014,W M MORRISON PLC,CHILDRENS SERVICES,"43A HILTON ROAD, WILLENHALL",1.50,RESIDENTS PERSONAL EXPENSES-ALLOWANCES TO S/S CLIENTS,GROCERY STORES AND SUPERMARKETS (5411)
08 Apr 2014,W M MORRISON PLC,CHILDRENS SERVICES,"43A HILTON ROAD, WILLENHALL",7.49,RESIDENTS PERSONAL EXPENSES-ALLOWANCES TO S/S CLIENTS,GROCERY STORES AND SUPERMARKETS (5411)
08 Apr 2014,ARTHUR BRETT CATER,NEIGHBOURHOOD SERVICES,CA BIRCHILLS CE PRIMARY COMMUNITY SCHOOL,23.84,FRUIT & VEGETABLES OTHER-PROVISIONS,MISCELLANEOUS FOOD STORES & CONVENIENCE STORES (5499)
08 Apr 2014,ARTHUR BRETT CATER,NEIGHBOURHOOD SERVICES,CA BLAKENALL HEATH JUNIOR SCHOOL,48.38,FRUIT & VEGETABLES OTHER-PROVISIONS,MISCELLANEOUS FOOD STORES & CONVENIENCE STORES (5499)
08 Apr 2014,ARTHUR BRETT CATER,NEIGHBOURHOOD SERVICES,CA BLUE COAT C.E. JUNIOR SCHOOL,83.65,FRUIT & VEGETABLES OTHER-PROVISIONS,MISCELLANEOUS FOOD STORES & CONVENIENCE STORES (5499)
08 Apr 2014,ARTHUR BRETT CATER,NEIGHBOURHOOD SERVICES,CA BARCROFT D/C,24.62,FRUIT & VEGETABLES OTHER-PROVISIONS,MISCELLANEOUS FOOD STORES & CONVENIENCE STORES (5499)
08 Apr 2014,ARTHUR BRETT CATER,NEIGHBOURHOOD SERVICES,CA HARDEN PRIMARY SCHOOL,20.01,FRUIT & VEGETABLES OTHER-PROVISIONS,MISCELLANEOUS FOOD STORES & CONVENIENCE STORES (5499)
08 Apr 2014,ARTHUR BRETT CATER,NEIGHBOURHOOD SERVICES,CA BEACON PRIMARY SCHOOL,102.67,FRUIT & VEGETABLES OTHER-PROVISIONS,MISCELLANEOUS FOOD STORES & CONVENIENCE STORES (5499)
08 Apr 2014,BSS PTS,NEIGHBOURHOOD SERVICES,POOLFITTERS,2.57,GENERAL MATERIALS,LUMBER & BUILDING MATERIALS STORES (5211)
08 Apr 2014,PREZI INC,NEIGHBOURHOOD SERVICES,AP FINANCE & RESOURCES IT,98.70,COMPUTER EQUIPMENT AND SUPPLIES,"COMPUTERS, COMPUTER PERIPHERAL EQUIPMENT, SOFTWARE (5045)"
08 Apr 2014,ARTHUR BRETT CATER,NEIGHBOURHOOD SERVICES,CA GREENFIELD PRIMARY,63.89,FRUIT & VEGETABLES OTHER-PROVISIONS,MISCELLANEOUS FOOD STORES & CONVENIENCE STORES (5499)
08 Apr 2014,GO OUTDOORS LTD,CHILDRENS SERVICES,57 LICHFIELD ROAD,87.46,RESIDENTS PERSONAL EXPENSES-ALLOWANCES TO S/S CLIENTS,"SPORTS APPAREL, RIDING APPAREL STORES (5655)"
08 Apr 2014,ARTHUR BRETT CATER,NEIGHBOURHOOD SERVICES,CA DELVES JUNIOR SCHOOL,85.94,FRUIT & VEGETABLES OTHER-PROVISIONS,MISCELLANEOUS FOOD STORES & CONVENIENCE STORES (5499)
08 Apr 2014,W M MORRISON PLC,CHILDRENS SERVICES,AFST-WILLENHALL,23.59,FOOD AND BEVERAGES-PROVISIONS,GROCERY STORES AND SUPERMARKETS (5411)
08 Apr 2014,W M MORRISON PLC,CHILDRENS SERVICES,AFST-WILLENHALL,1.78,FOOD AND BEVERAGES-PROVISIONS,GROCERY STORES AND SUPERMARKETS (5411)
08 Apr 2014,ARTHUR BRETT CATER,NEIGHBOURHOOD SERVICES,CA ELMORE GREEN PRIMARY SCHOOL,136.36,FRUIT & VEGETABLES OTHER-PROVISIONS,MISCELLANEOUS FOOD STORES & CONVENIENCE STORES (5499)
08 Apr 2014,OPTIMUS PROF PUBLISHIN,CHILDRENS SERVICES,SCHOOL IMPROVEMENT,342.00,EXTERNAL PRINTING SERVICES,MISCELLANEOUS PUBLISHING AND PRINTING (2741)
08 Apr 2014,ASDA HOME DELIVERY,CHILDRENS SERVICES,57 LICHFIELD ROAD,141.91,GENERAL PROVISIONS-PROVISIONS,GROCERY STORES AND SUPERMARKETS (5411)
08 Apr 2014,CRAZY HOUSE (BROWNHILL,RESOURCES,WALSALL CRISIS SUPPORT SCHEME,85.00,CRISIS SUPPORT PAYMENTS,"EQUIPMENT, FURNITURE, AND HOME FURNISHINGS STORES  (5712)"
08 Apr 2014,A F BLAKEMORE CASH&CARRY,NEIGHBOURHOOD SERVICES,BLOXWICH LEISURE CENTRE,38.99,FOOD AND BEVERAGES-PROVISIONS,GROCERY STORES AND SUPERMARKETS (5411)
08 Apr 2014,ARTHUR BRETT CATER,NEIGHBOURHOOD SERVICES,CA POOL HAYES PRIMARY SCHOOL,11.50,FRUIT & VEGETABLES OTHER-PROVISIONS,MISCELLANEOUS FOOD STORES & CONVENIENCE STORES (5499)
08 Apr 2014,OFFICE DEPOT,CHILDRENS SERVICES,CENTRAL SUPPORT,12.65,STATIONERY & GENERAL SUPPLIES-OFFICE EXP,"STATIONERY, OFFICE SUPPLIES AND WRITING PAPER (5111)"
08 Apr 2014,BORSHCH ELECTRIC,RESOURCES,WALSALL CRISIS SUPPORT SCHEME,325.00,CRISIS SUPPORT PAYMENTS,HOUSEHOLD APPLIANCE STORES (5722)
08 Apr 2014,ARTHUR BRETT CATER,NEIGHBOURHOOD SERVICES,CA ST MICHAELS C.E. PRIMARY SCHOOL,16.28,FRUIT & VEGETABLES OTHER-PROVISIONS,MISCELLANEOUS FOOD STORES & CONVENIENCE STORES (5499)
08 Apr 2014,SMART FOOD UK LIMITED,NEIGHBOURHOOD SERVICES,CA BROWNHILLS COMMUNITY TECHNOLOGY COLLEGE,458.39,FROZEN FOODS-PROVISIONS,CATERERS (5811)
08 Apr 2014,SMART FOOD UK LIMITED,NEIGHBOURHOOD SERVICES,CA BROWNHILLS COMMUNITY TECHNOLOGY COLLEGE,46.15,FROZEN FOODS-PROVISIONS,CATERERS (5811)
08 Apr 2014,WELSH BROS FOODS LTD,NEIGHBOURHOOD SERVICES,CA MEADOW VIEW JMI PRIMARY SCHOOL,64.42,MEAT-PROVISIONS,FREEZER AND LOCKER MEAT PROVISIONERS (5422)
08 Apr 2014,THE TRAINLINE.COM,REGENERATION,DIRECTORATE SUPPORT,37.74,OFFICER/STAFF-PUBLIC TRANSPORT,PASSENGER RAILWAYS (4112)
08 Apr 2014,AMAZON *MKTPLCE EU-UK,REGENERATION,CENTRALISED STATIONERY,26.06,STATIONERY & GENERAL SUPPLIES-OFFICE EXP,BOOK STORES (5942)
08 Apr 2014,ARTHUR BRETT CATER,NEIGHBOURHOOD SERVICES,CA TOWN HALL RESTAURANT - CATERING,26.93,FRUIT & VEGETABLES OTHER-PROVISIONS,MISCELLANEOUS FOOD STORES & CONVENIENCE STORES (5499)
08 Apr 2014,CROWN DECORATING CENTR,NEIGHBOURHOOD SERVICES,POOLFITTERS,13.18,PAYMENT TO CONTRACTOR,"GENERAL CONTRACTORS, RESIDENTIAL AND COMMERCIAL (1520)"
08 Apr 2014,ARTHUR BRETT CATER,NEIGHBOURHOOD SERVICES,CA ABBEY PRIMARY SCHOOL,54.00,FOOD AND BEVERAGES-PROVISIONS,MISCELLANEOUS FOOD STORES & CONVENIENCE STORES (5499)
08 Apr 2014,ARTHUR BRETT CATER,NEIGHBOURHOOD SERVICES,CA JANE LANE SPECIAL SCHOOL,25.31,FRUIT & VEGETABLES OTHER-PROVISIONS,MISCELLANEOUS FOOD STORES & CONVENIENCE STORES (5499)
08 Apr 2014,WWW.WWW.SHELTERS4LESS.,REGENERATION,DARLASTON DISTRICT CENTRE,118.73,MISCELLANEOUS SUPPLIES,MISCELLANEOUS AND SPECIALTY RETAIL STORES (5999)
08 Apr 2014,ARTHUR BRETT CATER,NEIGHBOURHOOD SERVICES,CA CALDMORE COMMUNITY PRIMARY SCHOOL,56.54,FRUIT & VEGETABLES OTHER-PROVISIONS,MISCELLANEOUS FOOD STORES & CONVENIENCE STORES (5499)
08 Apr 2014,GRO HM PASSPORT OFFICE,CHILDRENS SERVICES,SAFEGUARDING & FAMILY SUPPORT,9.25,SECTION 1/17CHILD CARE ACT 1989-ASSISTANCE TO S/S CLIENTS,GOVERNMENT SERVICES (9399)
08 Apr 2014,ARTHUR BRETT CATER,NEIGHBOURHOOD SERVICES,CA WATLING STREET PRIMARY SCHOOL,0.82,FRUIT & VEGETABLES OTHER-PROVISIONS,MISCELLANEOUS FOOD STORES & CONVENIENCE STORES (5499)
08 Apr 2014,W M MORRISON PLC,CHILDRENS SERVICES,"43A HILTON ROAD, WILLENHALL",17.25,FOOD AND BEVERAGES-PROVISIONS,GROCERY STORES AND SUPERMARKETS (5411)
08 Apr 2014,SMART FOOD UK LIMITED,NEIGHBOURHOOD SERVICES,CA BIRCHILLS CE PRIMARY COMMUNITY SCHOOL,305.60,FROZEN FOODS-PROVISIONS,CATERERS (5811)
08 Apr 2014,ARTHUR BRETT CATER,NEIGHBOURHOOD SERVICES,CA LITTLE BLOXWICH CE PRIMARY SCHOOL,22.21,FRUIT & VEGETABLES OTHER-PROVISIONS,MISCELLANEOUS FOOD STORES & CONVENIENCE STORES (5499)
08 Apr 2014,ARTHUR BRETT CATER,NEIGHBOURHOOD SERVICES,CA ST GILES C.E. PRIMARY SCHOOL,11.47,FRUIT & VEGETABLES OTHER-PROVISIONS,MISCELLANEOUS FOOD STORES & CONVENIENCE STORES (5499)
08 Apr 2014,ARTHUR BRETT CATER,NEIGHBOURHOOD SERVICES,CA ELMWOOD SPECIAL SCHOOL,26.82,FRUIT & VEGETABLES OTHER-PROVISIONS,MISCELLANEOUS FOOD STORES & CONVENIENCE STORES (5499)
08 Apr 2014,ARTHUR BRETT CATER,NEIGHBOURHOOD SERVICES,CA BIRCHILLS CE PRIMARY COMMUNITY SCHOOL,54.11,FRUIT & VEGETABLES OTHER-PROVISIONS,MISCELLANEOUS FOOD STORES & CONVENIENCE STORES (5499)
08 Apr 2014,ARTHUR BRETT CATER,NEIGHBOURHOOD SERVICES,CA COOPER JORDAN CE PRIMARY SCHOOL,100.47,FRUIT & VEGETABLES OTHER-PROVISIONS,MISCELLANEOUS FOOD STORES & CONVENIENCE STORES (5499)
08 Apr 2014,ARTHUR BRETT CATER,NEIGHBOURHOOD SERVICES,CA PALFREY JUNIOR SCHOOL,49.20,FRUIT & VEGETABLES OTHER-PROVISIONS,MISCELLANEOUS FOOD STORES & CONVENIENCE STORES (5499)
08 Apr 2014,OFFICE DEPOT,NEIGHBOURHOOD SERVICES,SPORT & LEISURE DEVELOPMENT SERVICES,103.08,STATIONERY & GENERAL SUPPLIES-OFFICE EXP,"STATIONERY, OFFICE SUPPLIES AND WRITING PAPER (5111)"
08 Apr 2014,BORSHCH ELECTRIC,RESOURCES,WALSALL CRISIS SUPPORT SCHEME,325.00,CRISIS SUPPORT PAYMENTS,HOUSEHOLD APPLIANCE STORES (5722)
08 Apr 2014,ARTHUR BRETT CATER,NEIGHBOURHOOD SERVICES,CA MOORCROFT WOOD,64.39,FRUIT & VEGETABLES OTHER-PROVISIONS,MISCELLANEOUS FOOD STORES & CONVENIENCE STORES (5499)
08 Apr 2014,ARTHUR BRETT CATER,NEIGHBOURHOOD SERVICES,CA BLUE COAT C.E. INFANT SCHOOL,58.32,FRUIT & VEGETABLES OTHER-PROVISIONS,MISCELLANEOUS FOOD STORES & CONVENIENCE STORES (5499)
08 Apr 2014,THE TRAINLINE.COM,REGENERATION,DIRECTORATE SUPPORT,24.89,OFFICER/STAFF-PUBLIC TRANSPORT,PASSENGER RAILWAYS (4112)
08 Apr 2014,ASDA SUPERSTORE,CHILDRENS SERVICES,ADOPTION TEAM,11.39,FOOD AND BEVERAGES-PROVISIONS,GROCERY STORES AND SUPERMARKETS (5411)
08 Apr 2014,ARTHUR BRETT CATER,NEIGHBOURHOOD SERVICES,CA LEAMORE PRIMARY SCHOOL,20.71,FRUIT & VEGETABLES OTHER-PROVISIONS,MISCELLANEOUS FOOD STORES & CONVENIENCE STORES (5499)
08 Apr 2014,ARTHUR BRETT CATER,NEIGHBOURHOOD SERVICES,CA RADLEYS PRIMARY SCHOOL,77.10,FRUIT & VEGETABLES OTHER-PROVISIONS,MISCELLANEOUS FOOD STORES & CONVENIENCE STORES (5499)
08 Apr 2014,CRAZY HOUSE (BROWNHILL,RESOURCES,WALSALL CRISIS SUPPORT SCHEME,105.00,CRISIS SUPPORT PAYMENTS,"EQUIPMENT, FURNITURE, AND HOME FURNISHINGS STORES  (5712)"
08 Apr 2014,ASDA HOME DELIVERY,CHILDRENS SERVICES,"ELDON STREET, WALSALL",180.14,FOOD AND BEVERAGES-PROVISIONS,GROCERY STORES AND SUPERMARKETS (5411)
08 Apr 2014,THE BAG AND BOX MA,CHILDRENS SERVICES,CLUSTER 5 DARLASTON,132.12,PROFESSIONAL FEES AND SERVICES,OTHER BUSINESS SERVICES (7399)
08 Apr 2014,ARTHUR BRETT CATER,NEIGHBOURHOOD SERVICES,CA FIBBERSLEY PARK PRIMARY SCHOOL,-3.74,FRUIT & VEGETABLES OTHER-PROVISIONS,MISCELLANEOUS FOOD STORES & CONVENIENCE STORES (5499)
08 Apr 2014,WWW.GIROFOOD.COM,NEIGHBOURHOOD SERVICES,CA ST MICHAELS C.E. PRIMARY SCHOOL,96.56,DISPOSABLES-PROVISIONS,WHOLESALE CLUBS (5300)
08 Apr 2014,WWW.GIROFOOD.COM,NEIGHBOURHOOD SERVICES,CA RADLEYS PRIMARY SCHOOL,35.69,DISPOSABLES-PROVISIONS,WHOLESALE CLUBS (5300)
09 Apr 2014,BORSHCH ELECTRIC,RESOURCES,WALSALL CRISIS SUPPORT SCHEME,195.00,CRISIS SUPPORT PAYMENTS,HOUSEHOLD APPLIANCE STORES (5722)
09 Apr 2014,BLAKEMORE FOODSERVICE,NEIGHBOURHOOD SERVICES,CA BROWNHILLS WEST PRIMARY SCHOOL,77.84,FROZEN FOODS-PROVISIONS,CATERERS (5811)
09 Apr 2014,WALSALL CARPETS,RESOURCES,ACCOMMODATION SERVICES MANAGEMENT,185.00,FURNITURE & EQUIPMENT,FLOOR COVERING STORES (5713)
09 Apr 2014,PHONAK GROUP LTD,CHILDRENS SERVICES,SEN,252.00,MEDICAL REQUISITES-MATERIALS,OTHER BUSINESS SERVICES (7399)
09 Apr 2014,BLAKEMORE FOODSERVICE,NEIGHBOURHOOD SERVICES,CA COOPER JORDAN CE PRIMARY SCHOOL,97.86,DRY FOODS-PROVISIONS,CATERERS (5811)
09 Apr 2014,WORLDSTORES LTD,NEIGHBOURHOOD SERVICES,CHILDRENS LIBRARY - BOOKSTART,88.80,FURNITURE & EQUIPMENT,MISCELLANEOUS HOUSE FURNISHING SPECIALTY SHOPS (5719)
09 Apr 2014,BORSHCH ELECTRIC,RESOURCES,WALSALL CRISIS SUPPORT SCHEME,325.00,CRISIS SUPPORT PAYMENTS,HOUSEHOLD APPLIANCE STORES (5722)
09 Apr 2014,BLAKEMORE FOODSERVICE,NEIGHBOURHOOD SERVICES,CA TOWN HALL RESTAURANT - CATERING,72.66,FROZEN FOODS-PROVISIONS,CATERERS (5811)
09 Apr 2014,BLAKEMORE FOODSERVICE,NEIGHBOURHOOD SERVICES,CA FIBBERSLEY PARK PRIMARY SCHOOL,132.01,FROZEN FOODS-PROVISIONS,CATERERS (5811)
09 Apr 2014,WELSH BROS FOODS LTD,NEIGHBOURHOOD SERVICES,CA WATLING STREET PRIMARY SCHOOL,77.32,MEAT-PROVISIONS,FREEZER AND LOCKER MEAT PROVISIONERS (5422)
09 Apr 2014,CRAZY HOUSE (BROWNHILL,RESOURCES,WALSALL CRISIS SUPPORT SCHEME,60.00,CRISIS SUPPORT PAYMENTS,"EQUIPMENT, FURNITURE, AND HOME FURNISHINGS STORES  (5712)"
09 Apr 2014,BLAKEMORE FOODSERVICE,NEIGHBOURHOOD SERVICES,TOWN HALL RESTAURANT BISTRO,46.52,DRY FOODS-PROVISIONS,CATERERS (5811)
09 Apr 2014,IKEA SACAT,CHILDRENS SERVICES,SPINDLETREE,15.45,FURNITURE & EQUIPMENT,MISCELLANEOUS HOUSE FURNISHING SPECIALTY SHOPS (5719)
09 Apr 2014,WELSH BROS FOODS LTD,RESOURCES,FINANCE ADMIN,101.98,MEAT-PROVISIONS,FREEZER AND LOCKER MEAT PROVISIONERS (5422)
09 Apr 2014,WELSH BROS FOODS LTD,NEIGHBOURHOOD SERVICES,CA RADLEYS PRIMARY SCHOOL,191.42,MEAT-PROVISIONS,FREEZER AND LOCKER MEAT PROVISIONERS (5422)
09 Apr 2014,WELSH BROS FOODS LTD,NEIGHBOURHOOD SERVICES,CA LEIGHSWOOD PRIMARY SCHOOL,56.20,MEAT-PROVISIONS,FREEZER AND LOCKER MEAT PROVISIONERS (5422)
09 Apr 2014,IET PUBLICATIONS,REGENERATION,BUILDING SERVICES,257.40,"REPAIRS,ALTERATIONS & MAINTENANCE-PREM",MISCELLANEOUS PUBLISHING AND PRINTING (2741)
09 Apr 2014,BLAKEMORE FOODSERVICE,NEIGHBOURHOOD SERVICES,CA ST ANNES CATHOLIC PRIMARY SCHOOL,98.66,FROZEN FOODS-PROVISIONS,CATERERS (5811)
09 Apr 2014,E SERVICE,CHILDRENS SERVICES,SAFEGUARDING & FAMILY SUPPORT,24.95,PROFESSIONAL FEES AND SERVICES,STENOGRAPHIC AND SECRETARIAL SUPPORT SERVICES (7339)
09 Apr 2014,AMAZON *MKTPLCE EU-UK,NEIGHBOURHOOD SERVICES,REGISTRAR,24.98,STATIONERY & GENERAL SUPPLIES-OFFICE EXP,BOOK STORES (5942)
09 Apr 2014,BLAKEMORE FOODSERVICE,NEIGHBOURHOOD SERVICES,CA BEACON PRIMARY SCHOOL,167.61,DRY FOODS-PROVISIONS,CATERERS (5811)
09 Apr 2014,BLAKEMORE FOODSERVICE,NEIGHBOURHOOD SERVICES,CA BEACON PRIMARY SCHOOL,62.79,DRY FOODS-PROVISIONS,CATERERS (5811)
09 Apr 2014,BLAKEMORE FOODSERVICE,NEIGHBOURHOOD SERVICES,CA BLACKWOOD PRIMARY SCHOOL,231.22,FROZEN FOODS-PROVISIONS,CATERERS (5811)
09 Apr 2014,GRO HM PASSPORT OFFICE,CHILDRENS SERVICES,SAFEGUARDING & FAMILY SUPPORT,9.25,SECTION 1/17CHILD CARE ACT 1989-ASSISTANCE TO S/S CLIENTS,GOVERNMENT SERVICES (9399)
09 Apr 2014,BLAKEMORE FOODSERVICE,NEIGHBOURHOOD SERVICES,CA ELMWOOD SPECIAL SCHOOL,12.06,DRY FOODS-PROVISIONS,CATERERS (5811)
09 Apr 2014,OFFICE DEPOT,NEIGHBOURHOOD SERVICES,SPORT & LEISURE DEVELOPMENT SERVICES,21.76,STATIONERY & GENERAL SUPPLIES-OFFICE EXP,"STATIONERY, OFFICE SUPPLIES AND WRITING PAPER (5111)"
09 Apr 2014,WELSH BROS FOODS LTD,NEIGHBOURHOOD SERVICES,CA ST MICHAELS C.E. PRIMARY SCHOOL,65.54,MEAT-PROVISIONS,FREEZER AND LOCKER MEAT PROVISIONERS (5422)
09 Apr 2014,BLAKEMORE FOODSERVICE,NEIGHBOURHOOD SERVICES,CA WHETSTONE FIELD PRIMARY SCHOOL,57.43,FROZEN FOODS-PROVISIONS,CATERERS (5811)
09 Apr 2014,GRO HM PASSPORT OFFICE,CHILDRENS SERVICES,SAFEGUARDING & FAMILY SUPPORT,37.00,SECTION 1/17CHILD CARE ACT 1989-ASSISTANCE TO S/S CLIENTS,GOVERNMENT SERVICES (9399)
09 Apr 2014,WEST MID TRAVEL,CHILDRENS SERVICES,SAFEGUARDING & FAMILY SUPPORT,360.00,OFFICER/STAFF-PUBLIC TRANSPORT,BUS LINES (4131)
09 Apr 2014,WEST MID TRAVEL,CHILDRENS SERVICES,SAFEGUARDING & FAMILY SUPPORT,6.75,OFFICER/STAFF-PUBLIC TRANSPORT,BUS LINES (4131)
09 Apr 2014,ARGOS RETAIL GROUP,CHILDRENS SERVICES,INITIAL RESPONSE SERVICE,29.98,SECTION 1/17CHILD CARE ACT 1989-ASSISTANCE TO S/S CLIENTS,DISCOUNT STORES (5310)
09 Apr 2014,BLAKEMORE FOODSERVICE,NEIGHBOURHOOD SERVICES,CA ST JOHNS C.E. PRIMARY SCHOOL,97.58,FROZEN FOODS-PROVISIONS,CATERERS (5811)
09 Apr 2014,BLAKEMORE FOODSERVICE,NEIGHBOURHOOD SERVICES,CA FIBBERSLEY PARK PRIMARY SCHOOL,342.56,DRY FOODS-PROVISIONS,CATERERS (5811)
09 Apr 2014,BLAKEMORE FOODSERVICE,NEIGHBOURHOOD SERVICES,CA FIBBERSLEY PARK PRIMARY SCHOOL,75.14,DRY FOODS-PROVISIONS,CATERERS (5811)
09 Apr 2014,BLAKEMORE FOODSERVICE,NEIGHBOURHOOD SERVICES,CA GREEN ROCK PRIMARY,87.38,FROZEN FOODS-PROVISIONS,CATERERS (5811)
09 Apr 2014,WELSH BROS FOODS LTD,NEIGHBOURHOOD SERVICES,CA COOPER JORDAN CE PRIMARY SCHOOL,102.19,MEAT-PROVISIONS,FREEZER AND LOCKER MEAT PROVISIONERS (5422)
09 Apr 2014,BLAKEMORE FOODSERVICE,NEIGHBOURHOOD SERVICES,CA OAKWOOD SPECIAL SCHOOL,81.95,FROZEN FOODS-PROVISIONS,CATERERS (5811)
09 Apr 2014,BLAKEMORE FOODSERVICE,NEIGHBOURHOOD SERVICES,CA OAKWOOD SPECIAL SCHOOL,7.40,FROZEN FOODS-PROVISIONS,CATERERS (5811)
09 Apr 2014,POUNDWORLD RETAIL LTD,CHILDRENS SERVICES,PUPIL PREMIUM,78.00,GENERAL MATERIALS,DISCOUNT STORES (5310)
09 Apr 2014,WM MORRISON 063,CHILDRENS SERVICES,REDRUTH ROAD,3.68,FOOD AND BEVERAGES-PROVISIONS,GROCERY STORES AND SUPERMARKETS (5411)
09 Apr 2014,WALSALL COUNCIL,CHILDRENS SERVICES,SAFEGUARDING & FAMILY SUPPORT,45.00,SECTION 1/17CHILD CARE ACT 1989-ASSISTANCE TO S/S CLIENTS,GOVERNMENT SERVICES (9399)
09 Apr 2014,BLAKEMORE FOODSERVICE,NEIGHBOURHOOD SERVICES,CA LINDENS PRIMARY SCHOOL,134.85,FROZEN FOODS-PROVISIONS,CATERERS (5811)
09 Apr 2014,BLAKEMORE FOODSERVICE,NEIGHBOURHOOD SERVICES,CA LINDENS PRIMARY SCHOOL,14.78,FROZEN FOODS-PROVISIONS,CATERERS (5811)
09 Apr 2014,BORSHCH ELECTRIC,RESOURCES,WALSALL CRISIS SUPPORT SCHEME,400.00,CRISIS SUPPORT PAYMENTS,HOUSEHOLD APPLIANCE STORES (5722)
09 Apr 2014,BLAKEMORE FOODSERVICE,NEIGHBOURHOOD SERVICES,CA HARDEN PRIMARY SCHOOL,19.03,FROZEN FOODS-PROVISIONS,CATERERS (5811)
09 Apr 2014,BLAKEMORE FOODSERVICE,NEIGHBOURHOOD SERVICES,CA BUSILL JONES PRIMARY SCHOOL,454.08,DRY FOODS-PROVISIONS,CATERERS (5811)
09 Apr 2014,BLAKEMORE FOODSERVICE,NEIGHBOURHOOD SERVICES,CA BUSILL JONES PRIMARY SCHOOL,12.22,DRY FOODS-PROVISIONS,CATERERS (5811)
09 Apr 2014,OFFICE DEPOT,NEIGHBOURHOOD SERVICES,STREETLY CREMATORIUM,196.49,STATIONERY & GENERAL SUPPLIES-OFFICE EXP,"STATIONERY, OFFICE SUPPLIES AND WRITING PAPER (5111)"
09 Apr 2014,BLAKEMORE FOODSERVICE,NEIGHBOURHOOD SERVICES,CA BLUE COAT C.E. INFANT SCHOOL,248.31,DRY FOODS-PROVISIONS,CATERERS (5811)
09 Apr 2014,BLAKEMORE FOODSERVICE,NEIGHBOURHOOD SERVICES,CA BLUE COAT C.E. INFANT SCHOOL,8.06,DRY FOODS-PROVISIONS,CATERERS (5811)
09 Apr 2014,WM MORRISONS,CHILDRENS SERVICES,REWARDS,100.00,GENERAL MATERIALS,GROCERY STORES AND SUPERMARKETS (5411)
09 Apr 2014,WELSH BROS FOODS LTD,NEIGHBOURHOOD SERVICES,CA HARDEN PRIMARY SCHOOL,141.71,MEAT-PROVISIONS,FREEZER AND LOCKER MEAT PROVISIONERS (5422)
09 Apr 2014,BLAKEMORE FOODSERVICE,NEIGHBOURHOOD SERVICES,CA BROWNHILLS COMMUNITY TECHNOLOGY COLLEGE,469.72,FROZEN FOODS-PROVISIONS,CATERERS (5811)
09 Apr 2014,BLAKEMORE FOODSERVICE,NEIGHBOURHOOD SERVICES,CA BLUE COAT C OF E PERFORMING ARTS COLLEGE,253.86,FROZEN FOODS-PROVISIONS,CATERERS (5811)
09 Apr 2014,OFFICE DEPOT,CHILDRENS SERVICES,FAMILY PLACEMENTS,416.90,STATIONERY & GENERAL SUPPLIES-OFFICE EXP,"STATIONERY, OFFICE SUPPLIES AND WRITING PAPER (5111)"
09 Apr 2014,OFFICE DEPOT,CHILDRENS SERVICES,ACCESS TEAM,1.44,STATIONERY & GENERAL SUPPLIES-OFFICE EXP,"STATIONERY, OFFICE SUPPLIES AND WRITING PAPER (5111)"
09 Apr 2014,WELSH BROS FOODS LTD,NEIGHBOURHOOD SERVICES,CA CASTLEFORT JMI SCHOOL,83.57,MEAT-PROVISIONS,FREEZER AND LOCKER MEAT PROVISIONERS (5422)
09 Apr 2014,BLAKEMORE FOODSERVICE,NEIGHBOURHOOD SERVICES,CA HARDEN PRIMARY SCHOOL,106.93,FROZEN FOODS-PROVISIONS,CATERERS (5811)
09 Apr 2014,BLAKEMORE FOODSERVICE,NEIGHBOURHOOD SERVICES,CA ELMORE GREEN PRIMARY SCHOOL,217.74,FROZEN FOODS-PROVISIONS,CATERERS (5811)
09 Apr 2014,E SERVICE,CHILDRENS SERVICES,SAFEGUARDING & FAMILY SUPPORT,24.95,PROFESSIONAL FEES AND SERVICES,STENOGRAPHIC AND SECRETARIAL SUPPORT SERVICES (7339)
09 Apr 2014,BLAKEMORE FOODSERVICE,NEIGHBOURHOOD SERVICES,CA BLUE COAT C OF E PERFORMING ARTS COLLEGE,171.42,DRY FOODS-PROVISIONS,CATERERS (5811)
09 Apr 2014,BLAKEMORE FOODSERVICE,NEIGHBOURHOOD SERVICES,CA BLUE COAT C OF E PERFORMING ARTS COLLEGE,17.84,DRY FOODS-PROVISIONS,CATERERS (5811)
09 Apr 2014,BLAKEMORE FOODSERVICE,NEIGHBOURHOOD SERVICES,CA WATLING STREET PRIMARY SCHOOL,93.89,DRY FOODS-PROVISIONS,CATERERS (5811)
09 Apr 2014,E SERVICE,CHILDRENS SERVICES,SAFEGUARDING & FAMILY SUPPORT,24.95,PROFESSIONAL FEES AND SERVICES,STENOGRAPHIC AND SECRETARIAL SUPPORT SERVICES (7339)
09 Apr 2014,TESCO STORES 6161,CHILDRENS SERVICES,57 LICHFIELD ROAD,15.00,RESIDENTS PERSONAL EXPENSES-ALLOWANCES TO S/S CLIENTS,GROCERY STORES AND SUPERMARKETS (5411)
09 Apr 2014,BLAKEMORE FOODSERVICE,NEIGHBOURHOOD SERVICES,CA BLUE COAT C.E. JUNIOR SCHOOL,192.79,FROZEN FOODS-PROVISIONS,CATERERS (5811)
09 Apr 2014,BLAKEMORE FOODSERVICE,NEIGHBOURHOOD SERVICES,CA BLUE COAT C.E. JUNIOR SCHOOL,22.18,FROZEN FOODS-PROVISIONS,CATERERS (5811)
09 Apr 2014,OFFICE DEPOT,CHILDRENS SERVICES,ACCESS TEAM,90.85,STATIONERY & GENERAL SUPPLIES-OFFICE EXP,"STATIONERY, OFFICE SUPPLIES AND WRITING PAPER (5111)"
09 Apr 2014,BLAKEMORE FOODSERVICE,NEIGHBOURHOOD SERVICES,CA HARDEN PRIMARY SCHOOL,22.18,DRY FOODS-PROVISIONS,CATERERS (5811)
09 Apr 2014,ASDA SUPERSTORE,CHILDRENS SERVICES,EDUCATION BUSINESS PARTNERSHIP (EBP),14.88,FOOD AND BEVERAGES-PROVISIONS,GROCERY STORES AND SUPERMARKETS (5411)
09 Apr 2014,TESCO STORE 2933,CHILDRENS SERVICES,LOOKED AFTER CHILDRENS SOCIAL WORK TEAM,5.76,TRANSFER PAYMENTS - SOCIAL SERVICES CLIENTS,GROCERY STORES AND SUPERMARKETS (5411)
09 Apr 2014,TESCO STORE 2933,CHILDRENS SERVICES,LOOKED AFTER CHILDRENS SOCIAL WORK TEAM,9.03,TRANSFER PAYMENTS - SOCIAL SERVICES CLIENTS,GROCERY STORES AND SUPERMARKETS (5411)
09 Apr 2014,WELSH BROS FOODS LTD,NEIGHBOURHOOD SERVICES,CA ELMORE GREEN PRIMARY SCHOOL,247.67,MEAT-PROVISIONS,FREEZER AND LOCKER MEAT PROVISIONERS (5422)
09 Apr 2014,CRAZY HOUSE (BROWNHILL,RESOURCES,WALSALL CRISIS SUPPORT SCHEME,85.00,CRISIS SUPPORT PAYMENTS,"EQUIPMENT, FURNITURE, AND HOME FURNISHINGS STORES  (5712)"
09 Apr 2014,E SERVICE,CHILDRENS SERVICES,SAFEGUARDING & FAMILY SUPPORT,24.95,PROFESSIONAL FEES AND SERVICES,STENOGRAPHIC AND SECRETARIAL SUPPORT SERVICES (7339)
09 Apr 2014,BLAKEMORE FOODSERVICE,NEIGHBOURHOOD SERVICES,CA MEADOW VIEW JMI PRIMARY SCHOOL,187.38,FROZEN FOODS-PROVISIONS,CATERERS (5811)
09 Apr 2014,BLAKEMORE FOODSERVICE,NEIGHBOURHOOD SERVICES,CA BLUE COAT C.E. INFANT SCHOOL,-12.09,FROZEN FOODS-PROVISIONS,CATERERS (5811)
09 Apr 2014,BLAKEMORE FOODSERVICE,NEIGHBOURHOOD SERVICES,CA PALFREY JUNIOR SCHOOL,358.25,DRY FOODS-PROVISIONS,CATERERS (5811)
09 Apr 2014,BLAKEMORE FOODSERVICE,NEIGHBOURHOOD SERVICES,CA PALFREY JUNIOR SCHOOL,31.69,DRY FOODS-PROVISIONS,CATERERS (5811)
09 Apr 2014,WELSH BROS FOODS LTD,NEIGHBOURHOOD SERVICES,CA RUSHALL JMI SCHOOL,53.00,MEAT-PROVISIONS,FREEZER AND LOCKER MEAT PROVISIONERS (5422)
09 Apr 2014,BLAKEMORE FOODSERVICE,NEIGHBOURHOOD SERVICES,CA OLD HALL SPECIAL SCHOOL,154.97,DRY FOODS-PROVISIONS,CATERERS (5811)
09 Apr 2014,PREMIER INN 44536400,CHILDRENS SERVICES,SUPPORT UNDER SECT 23 OF THE CHILDRENS ACT,90.00,SUPPORT UNDER SECTION 23 OF THE CHILDRENS ACT,PREMIER INN (3811)
09 Apr 2014,BLAKEMORE FOODSERVICE,NEIGHBOURHOOD SERVICES,CA ELMWOOD SPECIAL SCHOOL,21.98,DRY FOODS-PROVISIONS,CATERERS (5811)
09 Apr 2014,BLAKEMORE FOODSERVICE,NEIGHBOURHOOD SERVICES,CA ELMWOOD SPECIAL SCHOOL,7.40,DRY FOODS-PROVISIONS,CATERERS (5811)
09 Apr 2014,CRAZY HOUSE (BROWNHILL,RESOURCES,WALSALL CRISIS SUPPORT SCHEME,55.00,CRISIS SUPPORT PAYMENTS,"EQUIPMENT, FURNITURE, AND HOME FURNISHINGS STORES  (5712)"
09 Apr 2014,BLAKEMORE FOODSERVICE,NEIGHBOURHOOD SERVICES,CA ST JAMES PRIMARY SCHOOL,82.68,FROZEN FOODS-PROVISIONS,CATERERS (5811)
09 Apr 2014,BLAKEMORE FOODSERVICE,NEIGHBOURHOOD SERVICES,CA JOSEPH LECKIE COMMUNITY TECHNOLOGY COLLEGE,339.70,FROZEN FOODS-PROVISIONS,CATERERS (5811)
09 Apr 2014,E SERVICE,CHILDRENS SERVICES,SAFEGUARDING & FAMILY SUPPORT,24.95,PROFESSIONAL FEES AND SERVICES,STENOGRAPHIC AND SECRETARIAL SUPPORT SERVICES (7339)
09 Apr 2014,BLAKEMORE FOODSERVICE,NEIGHBOURHOOD SERVICES,CA JOSEPH LECKIE COMMUNITY TECHNOLOGY COLLEGE,598.44,DRY FOODS-PROVISIONS,CATERERS (5811)
09 Apr 2014,BLAKEMORE FOODSERVICE,NEIGHBOURHOOD SERVICES,CA JOSEPH LECKIE COMMUNITY TECHNOLOGY COLLEGE,188.00,DRY FOODS-PROVISIONS,CATERERS (5811)
09 Apr 2014,SIM MAYOU HARDWARE,CHILDRENS SERVICES,UNIVERSAL EDUCATION CLIENT UNIT,17.57,"REPAIRS,ALTERATIONS & MAINTENANCE-PREM",OTHER CONSTRUCTION MATERIALS (5039)
09 Apr 2014,BLAKEMORE FOODSERVICE,NEIGHBOURHOOD SERVICES,CA CASTLEFORT JMI SCHOOL,74.76,DRY FOODS-PROVISIONS,CATERERS (5811)
09 Apr 2014,BLAKEMORE FOODSERVICE,NEIGHBOURHOOD SERVICES,CA CASTLEFORT JMI SCHOOL,7.40,DRY FOODS-PROVISIONS,CATERERS (5811)
09 Apr 2014,E SERVICE,CHILDRENS SERVICES,SAFEGUARDING & FAMILY SUPPORT,24.95,PROFESSIONAL FEES AND SERVICES,STENOGRAPHIC AND SECRETARIAL SUPPORT SERVICES (7339)
09 Apr 2014,SCBE CASH TILL DIR,CHILDRENS SERVICES,CLUSTER 5 DARLASTON,238.80,NEW-FURNITURE & EQUIPMENT,OTHER COMMERCIAL EQUIPMENT (5046)
09 Apr 2014,BLAKEMORE FOODSERVICE,NEIGHBOURHOOD SERVICES,CA BUSILL JONES PRIMARY SCHOOL,149.91,FROZEN FOODS-PROVISIONS,CATERERS (5811)
09 Apr 2014,BLAKEMORE FOODSERVICE,NEIGHBOURHOOD SERVICES,CA BLUE COAT C.E. JUNIOR SCHOOL,1139.20,DRY FOODS-PROVISIONS,CATERERS (5811)
09 Apr 2014,BLAKEMORE FOODSERVICE,NEIGHBOURHOOD SERVICES,CA BLUE COAT C.E. JUNIOR SCHOOL,173.44,DRY FOODS-PROVISIONS,CATERERS (5811)
09 Apr 2014,BLAKEMORE FOODSERVICE,NEIGHBOURHOOD SERVICES,CA RADLEYS PRIMARY SCHOOL,103.23,FROZEN FOODS-PROVISIONS,CATERERS (5811)
09 Apr 2014,BLAKEMORE FOODSERVICE,NEIGHBOURHOOD SERVICES,CA BEACON PRIMARY SCHOOL,10.52,DRY FOODS-PROVISIONS,CATERERS (5811)
09 Apr 2014,BORSHCH ELECTRIC,RESOURCES,WALSALL CRISIS SUPPORT SCHEME,525.00,CRISIS SUPPORT PAYMENTS,HOUSEHOLD APPLIANCE STORES (5722)
09 Apr 2014,BLAKEMORE FOODSERVICE,NEIGHBOURHOOD SERVICES,CA FIBBERSLEY PARK PRIMARY SCHOOL,-13.94,FROZEN FOODS-PROVISIONS,CATERERS (5811)
09 Apr 2014,E SERVICE,CHILDRENS SERVICES,SAFEGUARDING & FAMILY SUPPORT,24.95,PROFESSIONAL FEES AND SERVICES,STENOGRAPHIC AND SECRETARIAL SUPPORT SERVICES (7339)
09 Apr 2014,WELSH BROS FOODS LTD,NEIGHBOURHOOD SERVICES,CA BEACON PRIMARY SCHOOL,263.44,MEAT-PROVISIONS,FREEZER AND LOCKER MEAT PROVISIONERS (5422)
09 Apr 2014,BLAKEMORE FOODSERVICE,NEIGHBOURHOOD SERVICES,CA ELMWOOD SPECIAL SCHOOL,5.74,DRY FOODS-PROVISIONS,CATERERS (5811)
09 Apr 2014,BLAKEMORE FOODSERVICE,NEIGHBOURHOOD SERVICES,CA ELMWOOD SPECIAL SCHOOL,12.10,DRY FOODS-PROVISIONS,CATERERS (5811)
09 Apr 2014,BLAKEMORE FOODSERVICE,NEIGHBOURHOOD SERVICES,CA LEIGHSWOOD PRIMARY SCHOOL,131.37,FROZEN FOODS-PROVISIONS,CATERERS (5811)
09 Apr 2014,E SERVICE,CHILDRENS SERVICES,SAFEGUARDING & FAMILY SUPPORT,24.95,PROFESSIONAL FEES AND SERVICES,STENOGRAPHIC AND SECRETARIAL SUPPORT SERVICES (7339)
09 Apr 2014,OTICON LTD,CHILDRENS SERVICES,SEN,219.00,MEDICAL REQUISITES-MATERIALS,DENTAL/LABORATORY/MEDICAL EQUIPMENT & SUPPLIES (5047)
09 Apr 2014,WELSH BROS FOODS LTD,NEIGHBOURHOOD SERVICES,CA BUSILL JONES PRIMARY SCHOOL,368.07,MEAT-PROVISIONS,FREEZER AND LOCKER MEAT PROVISIONERS (5422)
09 Apr 2014,WALSALL COUNCIL,CHILDRENS SERVICES,ADOPTION TEAM,22.00,OTHER CHARGES-OTH FEES/CHARGES,GOVERNMENT SERVICES (9399)
09 Apr 2014,EURASIA CARPETS LTD,RESOURCES,HOMELESS PREVENTION GRANT,335.00,FURNITURE & EQUIPMENT,FLOOR COVERING STORES (5713)
09 Apr 2014,E SERVICE,CHILDRENS SERVICES,SAFEGUARDING & FAMILY SUPPORT,24.95,PROFESSIONAL FEES AND SERVICES,STENOGRAPHIC AND SECRETARIAL SUPPORT SERVICES (7339)
09 Apr 2014,WALSALL CARPETS,RESOURCES,WALSALL CRISIS SUPPORT SCHEME,384.00,CRISIS SUPPORT PAYMENTS,FLOOR COVERING STORES (5713)
09 Apr 2014,BLAKEMORE FOODSERVICE,NEIGHBOURHOOD SERVICES,CA ELMWOOD SPECIAL SCHOOL,3.14,FROZEN FOODS-PROVISIONS,CATERERS (5811)
09 Apr 2014,WALSALL CARPETS,RESOURCES,WALSALL CRISIS SUPPORT SCHEME,419.00,CRISIS SUPPORT PAYMENTS,FLOOR COVERING STORES (5713)
09 Apr 2014,BLAKEMORE FOODSERVICE,NEIGHBOURHOOD SERVICES,CA BEACON PRIMARY SCHOOL,273.58,FROZEN FOODS-PROVISIONS,CATERERS (5811)
09 Apr 2014,BLAKEMORE FOODSERVICE,NEIGHBOURHOOD SERVICES,CA BLUE COAT C OF E PERFORMING ARTS COLLEGE,-16.40,FROZEN FOODS-PROVISIONS,CATERERS (5811)
09 Apr 2014,OFFICE DEPOT,CHILDRENS SERVICES,CHILDRENS RESIDENTIAL SVCS,58.98,STATIONERY & GENERAL SUPPLIES-OFFICE EXP,"STATIONERY, OFFICE SUPPLIES AND WRITING PAPER (5111)"
09 Apr 2014,POUNDLAND LTD 1427,CHILDRENS SERVICES,PUPIL PREMIUM,57.00,GENERAL MATERIALS,DISCOUNT STORES (5310)
09 Apr 2014,POUNDLAND LTD 1427,CHILDRENS SERVICES,PUPIL PREMIUM,1.00,GENERAL MATERIALS,DISCOUNT STORES (5310)
09 Apr 2014,REGISTRATION SERVICES,CHILDRENS SERVICES,SUPPORT UNDER SECT 23 OF THE CHILDRENS ACT,-10.00,SUPPORT UNDER SECTION 23 OF THE CHILDRENS ACT,OTHER RECREATION SERVICES (7999)
09 Apr 2014,WELSH BROS FOODS LTD,NEIGHBOURHOOD SERVICES,CA OAKWOOD SPECIAL SCHOOL,38.40,MEAT-PROVISIONS,FREEZER AND LOCKER MEAT PROVISIONERS (5422)
09 Apr 2014,BLAKEMORE FOODSERVICE,NEIGHBOURHOOD SERVICES,CA RUSHALL JMI SCHOOL,68.21,FROZEN FOODS-PROVISIONS,CATERERS (5811)
09 Apr 2014,OFFICE DEPOT,NEIGHBOURHOOD SERVICES,AP FINANCE & RESOURCES ADMINISTRATION,153.50,STATIONERY & GENERAL SUPPLIES-OFFICE EXP,"STATIONERY, OFFICE SUPPLIES AND WRITING PAPER (5111)"
09 Apr 2014,GRO HM PASSPORT OFFICE,CHILDRENS SERVICES,SAFEGUARDING & FAMILY SUPPORT,9.25,SECTION 1/17CHILD CARE ACT 1989-ASSISTANCE TO S/S CLIENTS,GOVERNMENT SERVICES (9399)
09 Apr 2014,BORSHCH ELECTRIC,RESOURCES,WALSALL CRISIS SUPPORT SCHEME,585.00,CRISIS SUPPORT PAYMENTS,HOUSEHOLD APPLIANCE STORES (5722)
09 Apr 2014,OFFICE DEPOT,NEIGHBOURHOOD SERVICES,CA CENTRAL SUPPORT SERVICES,308.09,STATIONERY & GENERAL SUPPLIES-OFFICE EXP,"STATIONERY, OFFICE SUPPLIES AND WRITING PAPER (5111)"
09 Apr 2014,WELSH BROS FOODS LTD,NEIGHBOURHOOD SERVICES,CA BEACON PRIMARY SCHOOL,44.45,MEAT-PROVISIONS,FREEZER AND LOCKER MEAT PROVISIONERS (5422)
09 Apr 2014,BORSHCH ELECTRIC,RESOURCES,WALSALL CRISIS SUPPORT SCHEME,595.00,CRISIS SUPPORT PAYMENTS,HOUSEHOLD APPLIANCE STORES (5722)
09 Apr 2014,BLAKEMORE FOODSERVICE,NEIGHBOURHOOD SERVICES,CA ST MICHAELS C.E. PRIMARY SCHOOL,94.75,FROZEN FOODS-PROVISIONS,CATERERS (5811)
09 Apr 2014,BLAKEMORE FOODSERVICE,NEIGHBOURHOOD SERVICES,CA ST MICHAELS C.E. PRIMARY SCHOOL,7.40,FROZEN FOODS-PROVISIONS,CATERERS (5811)
09 Apr 2014,POUNDLAND LTD 1732,CHILDRENS SERVICES,ACCESS TEAM,211.00,GENERAL EXPENSES-OFFICE EXP,DISCOUNT STORES (5310)
09 Apr 2014,THE BAG AND BOX MA,CHILDRENS SERVICES,CLUSTER 5 DARLASTON,-2.50,PROFESSIONAL FEES AND SERVICES,OTHER BUSINESS SERVICES (7399)
09 Apr 2014,THE TRAINLINE.CO,SOCIAL CARE & INCLUSION,SENIOR MANAGEMENT TEAM,16.68,OFFICER/STAFF-PUBLIC TRANSPORT,PASSENGER RAILWAYS (4112)
09 Apr 2014,GRO HM PASSPORT OFFICE,CHILDRENS SERVICES,SAFEGUARDING & FAMILY SUPPORT,-9.25,SECTION 1/17CHILD CARE ACT 1989-ASSISTANCE TO S/S CLIENTS,GOVERNMENT SERVICES (9399)
09 Apr 2014,GRO HM PASSPORT OFFICE,CHILDRENS SERVICES,SPECIALIST SERVICES - BUSINESS SUPPORT,-9.25,TRANSFER PAYMENTS - SOCIAL SERVICES CLIENTS,GOVERNMENT SERVICES (9399)
09 Apr 2014,GRO HM PASSPORT OFFICE,CHILDRENS SERVICES,SPECIALIST SERVICES - BUSINESS SUPPORT,-9.25,TRANSFER PAYMENTS - SOCIAL SERVICES CLIENTS,GOVERNMENT SERVICES (9399)
09 Apr 2014,WWW.GIROFOOD.COM,NEIGHBOURHOOD SERVICES,CA BLUE COAT C OF E PERFORMING ARTS COLLEGE,234.82,DISPOSABLES-PROVISIONS,WHOLESALE CLUBS (5300)
09 Apr 2014,WWW.GIROFOOD.COM,NEIGHBOURHOOD SERVICES,CA BUSILL JONES PRIMARY SCHOOL,289.34,DISPOSABLES-PROVISIONS,WHOLESALE CLUBS (5300)
10 Apr 2014,CRAZY HOUSE (BROWNHILL,RESOURCES,WALSALL CRISIS SUPPORT SCHEME,60.00,CRISIS SUPPORT PAYMENTS,"EQUIPMENT, FURNITURE, AND HOME FURNISHINGS STORES  (5712)"
10 Apr 2014,OFFICE DEPOT,RESOURCES,PRINT STORES,7.49,STATIONERY & GENERAL SUPPLIES-OFFICE EXP,"STATIONERY, OFFICE SUPPLIES AND WRITING PAPER (5111)"
10 Apr 2014,OFFICE DEPOT,NEIGHBOURHOOD SERVICES,LIBRARY OPERATIONS CENTRAL,32.18,STATIONERY & GENERAL SUPPLIES-OFFICE EXP,"STATIONERY, OFFICE SUPPLIES AND WRITING PAPER (5111)"
10 Apr 2014,HOPWELLS LTD,CHILDRENS SERVICES,MARY ELLIOTT SPECIAL SCHOOL,217.31,BREAD-GENERAL-PROVISIONS,CATERERS (5811)
10 Apr 2014,ARGOS B2B ONLINE,CHILDRENS SERVICES,SEN ASSESSMENT,21.05,STATIONERY & GENERAL SUPPLIES-OFFICE EXP,DISCOUNT STORES (5310)
10 Apr 2014,OFFICE DEPOT,NEIGHBOURHOOD SERVICES,FLEET,2.82,GENERAL MATERIALS,"STATIONERY, OFFICE SUPPLIES AND WRITING PAPER (5111)"
10 Apr 2014,OFFICE DEPOT,NEIGHBOURHOOD SERVICES,RESOURCE MANAGEMENT,31.25,STATIONERY & GENERAL SUPPLIES-OFFICE EXP,"STATIONERY, OFFICE SUPPLIES AND WRITING PAPER (5111)"
10 Apr 2014,OFFICE DEPOT,CHILDRENS SERVICES,SAFEGUARDING & FAMILY SUPPORT,181.80,STATIONERY & GENERAL SUPPLIES-OFFICE EXP,"STATIONERY, OFFICE SUPPLIES AND WRITING PAPER (5111)"
10 Apr 2014,OFFICE DEPOT,NEIGHBOURHOOD SERVICES,LIBRARY OPERATIONS CENTRAL,1748.45,STATIONERY & GENERAL SUPPLIES-OFFICE EXP,"STATIONERY, OFFICE SUPPLIES AND WRITING PAPER (5111)"
10 Apr 2014,MACHINE MART LTD,NEIGHBOURHOOD SERVICES,WALSALL GALA CENTRE,189.55,FURNITURE & EQUIPMENT,HOUSEHOLD APPLIANCE STORES (5722)
10 Apr 2014,OFFICE DEPOT,CHILDRENS SERVICES,PLACEMENTS & RESOURCES TEAM,18.06,STATIONERY & GENERAL SUPPLIES-OFFICE EXP,"STATIONERY, OFFICE SUPPLIES AND WRITING PAPER (5111)"
10 Apr 2014,ADIDASGROUP,NEIGHBOURHOOD SERVICES,AP QUALITY & PERFORMANCE DISCRETIONARY LEARNER SUP,-136.00,CLOTHING & LAUNDRY,SPORTING GOODS STORES (5941)
10 Apr 2014,OFFICE DEPOT,CHILDRENS SERVICES,CHILDRENS RESIDENTIAL SVCS,45.28,STATIONERY & GENERAL SUPPLIES-OFFICE EXP,"STATIONERY, OFFICE SUPPLIES AND WRITING PAPER (5111)"
10 Apr 2014,B & Q,CHILDRENS SERVICES,SHEPWELL GREEN PUPIL REFERRAL UNIT,271.76,INTERNAL DECORATING,LUMBER & BUILDING MATERIALS STORES (5211)
10 Apr 2014,CRAZY HOUSE (BROWNHILL,RESOURCES,WALSALL CRISIS SUPPORT SCHEME,205.00,CRISIS SUPPORT PAYMENTS,"EQUIPMENT, FURNITURE, AND HOME FURNISHINGS STORES  (5712)"
10 Apr 2014,OFFICE DEPOT,CHILDRENS SERVICES,CENTRAL SUPPORT,61.73,STATIONERY & GENERAL SUPPLIES-OFFICE EXP,"STATIONERY, OFFICE SUPPLIES AND WRITING PAPER (5111)"
10 Apr 2014,AMAZON *MKTPLCE EU-UK,CHILDRENS SERVICES,ICT LEARNING RESOURCES,2.02,GENERAL MATERIALS,BOOK STORES (5942)
10 Apr 2014,AMAZON *MKTPLCE EU-UK,CHILDRENS SERVICES,ICT LEARNING RESOURCES,1.99,GENERAL MATERIALS,BOOK STORES (5942)
10 Apr 2014,MACHINE MART LTD,NEIGHBOURHOOD SERVICES,POOLFITTERS,40.78,FURNITURE & EQUIPMENT,HOUSEHOLD APPLIANCE STORES (5722)
10 Apr 2014,OFFICE DEPOT,NEIGHBOURHOOD SERVICES,WALSALL MUSEUM,3.72,STATIONERY & GENERAL SUPPLIES-OFFICE EXP,"STATIONERY, OFFICE SUPPLIES AND WRITING PAPER (5111)"
10 Apr 2014,ASDA HOME DELIVERY,NEIGHBOURHOOD SERVICES,JK LEARNING FOR LIVING & WORK,34.12,CATERING,GROCERY STORES AND SUPERMARKETS (5411)
10 Apr 2014,W M MORRISON PLC,CHILDRENS SERVICES,ROSEDALE C.E. PRIMARY SCHOOL,5.35,BREAD-GENERAL-PROVISIONS,GROCERY STORES AND SUPERMARKETS (5411)
10 Apr 2014,ARGOS LTD,RESOURCES,ACCOMMODATION SERVICES MANAGEMENT,57.96,FURNITURE & EQUIPMENT,DISCOUNT STORES (5310)
10 Apr 2014,CASH TILLS DIRECT,CHILDRENS SERVICES,CLUSTER 5 DARLASTON,97.20,FURNITURE & EQUIPMENT,HOUSEHOLD APPLIANCE STORES (5722)
10 Apr 2014,WALSALL COUNCIL,CHILDRENS SERVICES,SAFEGUARDING & FAMILY SUPPORT,-18.00,SECTION 1/17CHILD CARE ACT 1989-ASSISTANCE TO S/S CLIENTS,GOVERNMENT SERVICES (9399)
10 Apr 2014,GRASMERE GARDENS,REGENERATION,BROWNHILLS DISTRICT CENTRE,15.00,MISCELLANEOUS SUPPLIES,"NURSERIES, LAWN AND GARDEN SUPPLY STORES (5261)"
10 Apr 2014,ARTHUR BRETT CATER,NEIGHBOURHOOD SERVICES,CA ST JOHNS C.E. PRIMARY SCHOOL,60.27,FRUIT & VEGETABLES OTHER-PROVISIONS,MISCELLANEOUS FOOD STORES & CONVENIENCE STORES (5499)
10 Apr 2014,AMAZON *MKTPLCE EU-UK,CHILDRENS SERVICES,ADMINISTRATIVE SUPPLIES,37.72,GENERAL MATERIALS,BOOK STORES (5942)
10 Apr 2014,REGISTRATION SERVICES,CHILDRENS SERVICES,SUPPORT UNDER SECT 23 OF THE CHILDRENS ACT,30.00,SUPPORT UNDER SECTION 23 OF THE CHILDRENS ACT,OTHER RECREATION SERVICES (7999)
10 Apr 2014,CRAZY HOUSE (BROWNHILL,RESOURCES,WALSALL CRISIS SUPPORT SCHEME,55.00,CRISIS SUPPORT PAYMENTS,"EQUIPMENT, FURNITURE, AND HOME FURNISHINGS STORES  (5712)"
10 Apr 2014,ARTHUR BRETT CATER,NEIGHBOURHOOD SERVICES,CA BUSILL JONES PRIMARY SCHOOL,83.54,FRUIT & VEGETABLES OTHER-PROVISIONS,MISCELLANEOUS FOOD STORES & CONVENIENCE STORES (5499)
10 Apr 2014,ROYAL MAIL 0845606040,NEIGHBOURHOOD SERVICES,NEW ART GALLERY - ADMIN,1.20,POSTAGES AND COURIER SERVICES,POSTAL SERVICES - GOVERNMENT ONLY (9402)
10 Apr 2014,APPLE ITUNES STORE-GBP,CHILDRENS SERVICES,EARLY YEARS,45.35,LICENCES-EQUIPMENT,RECORD SHOPS (5735)
10 Apr 2014,BORSHCH ELECTRIC,RESOURCES,WALSALL CRISIS SUPPORT SCHEME,195.00,CRISIS SUPPORT PAYMENTS,HOUSEHOLD APPLIANCE STORES (5722)
10 Apr 2014,BORSHCH ELECTRIC,RESOURCES,WALSALL CRISIS SUPPORT SCHEME,195.00,CRISIS SUPPORT PAYMENTS,HOUSEHOLD APPLIANCE STORES (5722)
10 Apr 2014,ARTHUR BRETT CATER,NEIGHBOURHOOD SERVICES,CA BLACKWOOD PRIMARY SCHOOL,50.40,FRUIT & VEGETABLES OTHER-PROVISIONS,MISCELLANEOUS FOOD STORES & CONVENIENCE STORES (5499)
10 Apr 2014,FINDEL ED LTD,CHILDRENS SERVICES,SEN,-49.95,REFERENCE BOOKS,OTHER DIRECT MARKETING-OTHER DIRECT MARKETERS (5969)
10 Apr 2014,JOHAL DAIRIES LTD,NEIGHBOURHOOD SERVICES,CA TOWN HALL RESTAURANT - CATERING,22.29,MISC DAIRY PRODUCTS-PROVISIONS,OTHER NONDURABLE GOODS (5199)
10 Apr 2014,JOHAL DAIRIES LTD,NEIGHBOURHOOD SERVICES,CA MEADOW VIEW JMI PRIMARY SCHOOL,17.94,MISC DAIRY PRODUCTS-PROVISIONS,OTHER NONDURABLE GOODS (5199)
10 Apr 2014,THE TRAINLINE.COM,REGENERATION,DESIGN & PROJECT MANAGEMENT,96.90,OFFICER/STAFF-PUBLIC TRANSPORT,PASSENGER RAILWAYS (4112)
10 Apr 2014,JOHAL DAIRIES LTD,NEIGHBOURHOOD SERVICES,CA DELVES JUNIOR SCHOOL,78.45,MISC DAIRY PRODUCTS-PROVISIONS,OTHER NONDURABLE GOODS (5199)
10 Apr 2014,JOHAL DAIRIES LTD,NEIGHBOURHOOD SERVICES,CA BEACON PRIMARY SCHOOL,116.02,MISC DAIRY PRODUCTS-PROVISIONS,OTHER NONDURABLE GOODS (5199)
10 Apr 2014,JOHAL DAIRIES LTD,SOCIAL CARE & INCLUSION,FALLINGS HEATH,40.32,MISC DAIRY PRODUCTS-PROVISIONS,OTHER NONDURABLE GOODS (5199)
10 Apr 2014,JOHAL DAIRIES LTD,NEIGHBOURHOOD SERVICES,CA ST ANNES CATHOLIC PRIMARY SCHOOL,17.45,MISC DAIRY PRODUCTS-PROVISIONS,OTHER NONDURABLE GOODS (5199)
10 Apr 2014,JOHAL DAIRIES LTD,NEIGHBOURHOOD SERVICES,CA ST GILES C.E. PRIMARY SCHOOL,59.97,MISC DAIRY PRODUCTS-PROVISIONS,OTHER NONDURABLE GOODS (5199)
10 Apr 2014,JOHAL DAIRIES LTD,NEIGHBOURHOOD SERVICES,CA ELMWOOD SPECIAL SCHOOL,15.14,MISC DAIRY PRODUCTS-PROVISIONS,OTHER NONDURABLE GOODS (5199)
10 Apr 2014,JOHAL DAIRIES LTD,NEIGHBOURHOOD SERVICES,CA LITTLE BLOXWICH CE PRIMARY SCHOOL,32.30,MISC DAIRY PRODUCTS-PROVISIONS,OTHER NONDURABLE GOODS (5199)
10 Apr 2014,JOHAL DAIRIES LTD,NEIGHBOURHOOD SERVICES,CA LEIGHSWOOD PRIMARY SCHOOL,31.59,MISC DAIRY PRODUCTS-PROVISIONS,OTHER NONDURABLE GOODS (5199)
10 Apr 2014,JOHAL DAIRIES LTD,NEIGHBOURHOOD SERVICES,CA BARCROFT D/C,108.66,MISC DAIRY PRODUCTS-PROVISIONS,OTHER NONDURABLE GOODS (5199)
10 Apr 2014,JOHAL DAIRIES LTD,NEIGHBOURHOOD SERVICES,CA ST FRANCIS CATHOLIC PRIMARY SCHOOL,16.67,MISC DAIRY PRODUCTS-PROVISIONS,OTHER NONDURABLE GOODS (5199)
10 Apr 2014,JOHAL DAIRIES LTD,NEIGHBOURHOOD SERVICES,CA BLOXWICH C.E. JMI PRIMARY SCHOOL,58.13,MISC DAIRY PRODUCTS-PROVISIONS,OTHER NONDURABLE GOODS (5199)
10 Apr 2014,JOHAL DAIRIES LTD,CHILDRENS SERVICES,57 LICHFIELD ROAD,16.32,GENERAL PROVISIONS-PROVISIONS,OTHER NONDURABLE GOODS (5199)
10 Apr 2014,JOHAL DAIRIES LTD,NEIGHBOURHOOD SERVICES,CA RUSHALL JMI SCHOOL,52.90,MISC DAIRY PRODUCTS-PROVISIONS,OTHER NONDURABLE GOODS (5199)
10 Apr 2014,JOHAL DAIRIES LTD,NEIGHBOURHOOD SERVICES,CA POOL HAYES PRIMARY SCHOOL,28.29,MISC DAIRY PRODUCTS-PROVISIONS,OTHER NONDURABLE GOODS (5199)
10 Apr 2014,WWW.GIROFOOD.COM,NEIGHBOURHOOD SERVICES,CA RADLEYS PRIMARY SCHOOL,37.80,DISPOSABLES-PROVISIONS,WHOLESALE CLUBS (5300)
10 Apr 2014,WWW.GIROFOOD.COM,NEIGHBOURHOOD SERVICES,CA BLACKWOOD PRIMARY SCHOOL,81.68,DISPOSABLES-PROVISIONS,WHOLESALE CLUBS (5300)
10 Apr 2014,WWW.GIROFOOD.COM,NEIGHBOURHOOD SERVICES,CA COOPER JORDAN CE PRIMARY SCHOOL,116.44,DISPOSABLES-PROVISIONS,WHOLESALE CLUBS (5300)
10 Apr 2014,WWW.GIROFOOD.COM,NEIGHBOURHOOD SERVICES,CA TOWN HALL RESTAURANT - CATERING,-18.57,DISPOSABLES-PROVISIONS,WHOLESALE CLUBS (5300)
10 Apr 2014,WWW.GIROFOOD.COM,NEIGHBOURHOOD SERVICES,CA BIRCHILLS CE PRIMARY COMMUNITY SCHOOL,46.21,DISPOSABLES-PROVISIONS,WHOLESALE CLUBS (5300)
11 Apr 2014,ADIDASGROUP,NEIGHBOURHOOD SERVICES,AP QUALITY & PERFORMANCE DISCRETIONARY LEARNER SUP,131.00,CLOTHING & LAUNDRY,SPORTING GOODS STORES (5941)
11 Apr 2014,CRAZY HOUSE (BROWNHILL,RESOURCES,WALSALL CRISIS SUPPORT SCHEME,145.00,CRISIS SUPPORT PAYMENTS,"EQUIPMENT, FURNITURE, AND HOME FURNISHINGS STORES  (5712)"
11 Apr 2014,ASDA HOME DELIVERY,CHILDRENS SERVICES,"ELDON STREET, WALSALL",55.80,FOOD AND BEVERAGES-PROVISIONS,GROCERY STORES AND SUPERMARKETS (5411)
11 Apr 2014,SENIOR VEHICLE RENTAL,RESOURCES,WALSALL CRISIS SUPPORT SCHEME,200.00,CRISIS SUPPORT PAYMENTS,OTHER AUTOMOBILE RENTAL AGENCY (7512)
11 Apr 2014,ARTHUR BRETT CATER,NEIGHBOURHOOD SERVICES,CA FIBBERSLEY PARK PRIMARY SCHOOL,23.84,FRUIT & VEGETABLES OTHER-PROVISIONS,MISCELLANEOUS FOOD STORES & CONVENIENCE STORES (5499)
11 Apr 2014,R N I B,CHILDRENS SERVICES,SEN,165.00,PUBLICATIONS/REFERENCE BOOKS-SUBSCRIPTIONS,"ORGANIZATIONS, CHARITABLE AND SOCIAL SERVICE (8398)"
11 Apr 2014,WM MORRISON 063,CHILDRENS SERVICES,CLUSTER 4 ALUMWELL & BIRCHILLS,3.00,FOOD AND BEVERAGES-PROVISIONS,GROCERY STORES AND SUPERMARKETS (5411)
11 Apr 2014,WM MORRISON 063,CHILDRENS SERVICES,CLUSTER 4 ALUMWELL & BIRCHILLS,9.18,FOOD AND BEVERAGES-PROVISIONS,GROCERY STORES AND SUPERMARKETS (5411)
11 Apr 2014,OYSTER COMMUNICATIONS,RESOURCES,SIT-CORPORATE SERVICES,265.20,LANGUAGES & INTERPRETATION-SERVICES,PROFESSIONAL SERVICES (8999)
11 Apr 2014,CRAZY HOUSE (BROWNHILL,RESOURCES,WALSALL CRISIS SUPPORT SCHEME,55.00,CRISIS SUPPORT PAYMENTS,"EQUIPMENT, FURNITURE, AND HOME FURNISHINGS STORES  (5712)"
11 Apr 2014,POUNDLAND LTD 1427,CHILDRENS SERVICES,57 LICHFIELD ROAD,23.00,RESIDENTS PERSONAL EXPENSES-ALLOWANCES TO S/S CLIENTS,DISCOUNT STORES (5310)
11 Apr 2014,MCDONALDS REST.,CHILDRENS SERVICES,PELSALL CHILDRENS CENTRE,7.67,SUBSISTENCE OFFICERS-EXPENSES,QUICK PAYMENT SERVICE-FAST-FOOD RESTAURANTS (5814)
11 Apr 2014,BORSHCH ELECTRIC,RESOURCES,WALSALL CRISIS SUPPORT SCHEME,195.00,CRISIS SUPPORT PAYMENTS,HOUSEHOLD APPLIANCE STORES (5722)
11 Apr 2014,EC PITCHER LTD,NEIGHBOURHOOD SERVICES,WALSALL OUTDOOR ADVENTURE CENTRE,90.65,"REPAIRS,ALTERATIONS & MAINTENANCE-PREM",HARDWARE STORES (5251)
11 Apr 2014,ARGOS RETAIL GROUP,CHILDRENS SERVICES,"ELDON STREET, WALSALL",313.90,FURNITURE & EQUIPMENT,DISCOUNT STORES (5310)
11 Apr 2014,W M MORRISON PLC,CHILDRENS SERVICES,"43A HILTON ROAD, WILLENHALL",2.97,FOOD AND BEVERAGES-PROVISIONS,GROCERY STORES AND SUPERMARKETS (5411)
11 Apr 2014,W M MORRISON PLC,CHILDRENS SERVICES,"43A HILTON ROAD, WILLENHALL",95.47,FOOD AND BEVERAGES-PROVISIONS,GROCERY STORES AND SUPERMARKETS (5411)
11 Apr 2014,OFFICE DEPOT,NEIGHBOURHOOD SERVICES,REGISTRAR,32.33,STATIONERY & GENERAL SUPPLIES-OFFICE EXP,"STATIONERY, OFFICE SUPPLIES AND WRITING PAPER (5111)"
11 Apr 2014,WALSALL CARPETS,RESOURCES,WALSALL CRISIS SUPPORT SCHEME,233.00,CRISIS SUPPORT PAYMENTS,FLOOR COVERING STORES (5713)
11 Apr 2014,TRAVEL WEST MIDLAN,CHILDRENS SERVICES,LOOKED AFTER CHILDRENS SOCIAL WORK TEAM,37.00,SUPPORT UNDER SECTION 23 OF THE CHILDRENS ACT,BUS LINES (4131)
11 Apr 2014,ARGOS RETAIL GROUP,CHILDRENS SERVICES,"ELDON STREET, WALSALL",313.90,FURNITURE & EQUIPMENT,DISCOUNT STORES (5310)
11 Apr 2014,POUNDLAND LTD 1427,NEIGHBOURHOOD SERVICES,LIBRARY OPERATIONS CENTRAL,20.00,MISCELLANEOUS SUPPLIES,DISCOUNT STORES (5310)
11 Apr 2014,WM MORRISON 063,CHILDRENS SERVICES,REDRUTH ROAD,25.25,GENERAL PROVISIONS-PROVISIONS,GROCERY STORES AND SUPERMARKETS (5411)
11 Apr 2014,ASDA HOME DELIVERY,NEIGHBOURHOOD SERVICES,JK LEARNING FOR LIVING & WORK,64.51,CATERING,GROCERY STORES AND SUPERMARKETS (5411)
11 Apr 2014,AMAZON *MKTPLCE EU-UK,CHILDRENS SERVICES,SEN,30.75,LIBRARY BOOKS,BOOK STORES (5942)
11 Apr 2014,CRAZY HOUSE (BROWNHILL,RESOURCES,WALSALL CRISIS SUPPORT SCHEME,55.00,CRISIS SUPPORT PAYMENTS,"EQUIPMENT, FURNITURE, AND HOME FURNISHINGS STORES  (5712)"
11 Apr 2014,TESCO STORES 6161,CHILDRENS SERVICES,57 LICHFIELD ROAD,5.00,EQUIP NEW-CLEANING,GROCERY STORES AND SUPERMARKETS (5411)
11 Apr 2014,LONDON MIDLAND TIC,CHILDRENS SERVICES,LOOKED AFTER CHILDRENS SOCIAL WORK TEAM,66.50,SECTION 34 (CONTACT),PASSENGER RAILWAYS (4112)
11 Apr 2014,BORSHCH ELECTRIC,RESOURCES,WALSALL CRISIS SUPPORT SCHEME,195.00,CRISIS SUPPORT PAYMENTS,HOUSEHOLD APPLIANCE STORES (5722)
11 Apr 2014,AMAZON EU,RESOURCES,LAW LIBRARY,145.75,PUBLICATIONS/ORGANISATIONS-SUBSCRIPTIONS,OTHER DIRECT MARKETING-OTHER DIRECT MARKETERS (5969)
11 Apr 2014,WWW.NEOPOST.CO.UK,CHILDRENS SERVICES,UNIVERSAL EDUCATION CLIENT UNIT,173.39,POSTAGES AND COURIER SERVICES,"STATIONERY, OFFICE SUPPLIES AND WRITING PAPER (5111)"
11 Apr 2014,WWW.NEOPOST.CO.UK,CHILDRENS SERVICES,UNIVERSAL EDUCATION CLIENT UNIT,5.20,POSTAGES AND COURIER SERVICES,"STATIONERY, OFFICE SUPPLIES AND WRITING PAPER (5111)"
11 Apr 2014,ARTHUR BRETT CATER,NEIGHBOURHOOD SERVICES,CA ST JAMES PRIMARY SCHOOL,36.44,FRUIT & VEGETABLES OTHER-PROVISIONS,MISCELLANEOUS FOOD STORES & CONVENIENCE STORES (5499)
11 Apr 2014,MAUDESPORT LIMITED,NEIGHBOURHOOD SERVICES,INSPIRED GENERATIONS (CSAF),142.86,GENERAL MATERIALS,SPORTING GOODS STORES (5941)
11 Apr 2014,OFFICE DEPOT,RESOURCES,SERVICE DESK 1ST LINE,40.22,STATIONERY & GENERAL SUPPLIES-OFFICE EXP,"STATIONERY, OFFICE SUPPLIES AND WRITING PAPER (5111)"
11 Apr 2014,OYSTER COMMUNICATIONS,RESOURCES,SIT-CORPORATE SERVICES,457.20,LANGUAGES & INTERPRETATION-SERVICES,PROFESSIONAL SERVICES (8999)
11 Apr 2014,WILKO.COM,RESOURCES,WALSALL CRISIS SUPPORT SCHEME,151.16,CRISIS SUPPORT PAYMENTS,HOUSEHOLD APPLIANCE STORES (5722)
11 Apr 2014,ARTHUR BRETT CATER,NEIGHBOURHOOD SERVICES,CA BARCROFT D/C,25.20,FRUIT & VEGETABLES OTHER-PROVISIONS,MISCELLANEOUS FOOD STORES & CONVENIENCE STORES (5499)
11 Apr 2014,ARTHUR BRETT CATER,NEIGHBOURHOOD SERVICES,CA BLUE COAT C.E. INFANT SCHOOL,47.67,FRUIT & VEGETABLES OTHER-PROVISIONS,MISCELLANEOUS FOOD STORES & CONVENIENCE STORES (5499)
11 Apr 2014,TESCO STORES 6161,CHILDRENS SERVICES,57 LICHFIELD ROAD,0.70,GENERAL PROVISIONS-PROVISIONS,GROCERY STORES AND SUPERMARKETS (5411)
11 Apr 2014,TESCO STORES 6161,CHILDRENS SERVICES,57 LICHFIELD ROAD,8.74,GENERAL PROVISIONS-PROVISIONS,GROCERY STORES AND SUPERMARKETS (5411)
11 Apr 2014,ARTHUR BRETT CATER,NEIGHBOURHOOD SERVICES,TOWN HALL RESTAURANT BISTRO,29.08,FRUIT & VEGETABLES OTHER-PROVISIONS,MISCELLANEOUS FOOD STORES & CONVENIENCE STORES (5499)
11 Apr 2014,WM MORRISONS,CHILDRENS SERVICES,57 LICHFIELD ROAD,19.35,GENERAL PROVISIONS-PROVISIONS,GROCERY STORES AND SUPERMARKETS (5411)
11 Apr 2014,WM MORRISONS,CHILDRENS SERVICES,57 LICHFIELD ROAD,6.97,GENERAL PROVISIONS-PROVISIONS,GROCERY STORES AND SUPERMARKETS (5411)
11 Apr 2014,BORSHCH ELECTRIC,RESOURCES,WALSALL CRISIS SUPPORT SCHEME,325.00,CRISIS SUPPORT PAYMENTS,HOUSEHOLD APPLIANCE STORES (5722)
11 Apr 2014,OYSTER COMMUNICATIONS,RESOURCES,SIT-CORPORATE SERVICES,144.00,LANGUAGES & INTERPRETATION-SERVICES,PROFESSIONAL SERVICES (8999)
11 Apr 2014,W M MORRISON PLC,CHILDRENS SERVICES,"43A HILTON ROAD, WILLENHALL",41.81,FOOD AND BEVERAGES-PROVISIONS,GROCERY STORES AND SUPERMARKETS (5411)
11 Apr 2014,W M MORRISON PLC,CHILDRENS SERVICES,"43A HILTON ROAD, WILLENHALL",37.47,FOOD AND BEVERAGES-PROVISIONS,GROCERY STORES AND SUPERMARKETS (5411)
11 Apr 2014,BORSHCH ELECTRIC,RESOURCES,WALSALL CRISIS SUPPORT SCHEME,140.00,CRISIS SUPPORT PAYMENTS,HOUSEHOLD APPLIANCE STORES (5722)
11 Apr 2014,OFFICE DEPOT,SOCIAL CARE & INCLUSION,EMPLOYMENT LINKS TO WORK,89.81,STATIONERY & GENERAL SUPPLIES-OFFICE EXP,"STATIONERY, OFFICE SUPPLIES AND WRITING PAPER (5111)"
11 Apr 2014,COOPER & CO SOLICITORS,NEIGHBOURHOOD SERVICES,PEST & ANIMAL CONTROL,60.00,EXTERNAL TRAINING,"ATTORNEYS, LEGAL SERVICES (8111)"
11 Apr 2014,B&M RETAIL LTD,NEIGHBOURHOOD SERVICES,MOBILE PROVISION,5.08,FOOD AND BEVERAGES-PROVISIONS,DISCOUNT STORES (5310)
11 Apr 2014,B&M RETAIL LTD,NEIGHBOURHOOD SERVICES,MOBILE PROVISION,2.78,HEALTH & SAFETY-MATERIALS,DISCOUNT STORES (5310)
11 Apr 2014,OFFICE DEPOT,NEIGHBOURHOOD SERVICES,FOREST ARTS CENTRE,149.71,GENERAL MATERIALS,"STATIONERY, OFFICE SUPPLIES AND WRITING PAPER (5111)"
11 Apr 2014,OYSTER COMMUNICATIONS,RESOURCES,SIT-CORPORATE SERVICES,44.40,LANGUAGES & INTERPRETATION-SERVICES,PROFESSIONAL SERVICES (8999)
11 Apr 2014,AMAZON *MKTPLCE EU-UK,NEIGHBOURHOOD SERVICES,AP FINANCE & RESOURCES PREMISES HAWBUSH,17.98,NEW-FURNITURE & EQUIPMENT,BOOK STORES (5942)
11 Apr 2014,B & Q,RESOURCES,ACCOMMODATION SERVICES MANAGEMENT,127.92,GENERAL MATERIALS,LUMBER & BUILDING MATERIALS STORES (5211)
11 Apr 2014,TATE PICTURE LIBRARY,NEIGHBOURHOOD SERVICES,NAG - TEMPORARY EXHIBITIONS,204.00,FEES & LICENCES-SERVICES,ART DEALERS AND GALLERIES (5971)
11 Apr 2014,ARGOS DIRECT,CHILDRENS SERVICES,"ELDON STREET, WALSALL",-223.93,FURNITURE & EQUIPMENT,DIRECT MARKETING CATALOG MERCHANTS (5964)
11 Apr 2014,OFFICE DEPOT,CHILDRENS SERVICES,ADMINISTRATIVE SUPPLIES,7.44,STATIONERY & GENERAL SUPPLIES-OFFICE EXP,"STATIONERY, OFFICE SUPPLIES AND WRITING PAPER (5111)"
11 Apr 2014,OFFICE DEPOT,REGENERATION,CENTRALISED STATIONERY,250.37,STATIONERY & GENERAL SUPPLIES-OFFICE EXP,"STATIONERY, OFFICE SUPPLIES AND WRITING PAPER (5111)"
11 Apr 2014,ARTHUR BRETT CATER,NEIGHBOURHOOD SERVICES,CA TOWN HALL RESTAURANT - CATERING,24.02,FRUIT & VEGETABLES OTHER-PROVISIONS,MISCELLANEOUS FOOD STORES & CONVENIENCE STORES (5499)
11 Apr 2014,WM MORRISONS,NEIGHBOURHOOD SERVICES,LIBRARY OPERATIONS CENTRAL,8.00,FOOD AND BEVERAGES-PROVISIONS,GROCERY STORES AND SUPERMARKETS (5411)
11 Apr 2014,OFFICE DEPOT,CHILDRENS SERVICES,EARLY YEARS SERVICE,103.46,STATIONERY & GENERAL SUPPLIES-OFFICE EXP,"STATIONERY, OFFICE SUPPLIES AND WRITING PAPER (5111)"
11 Apr 2014,TRAVELODGE WEBSITE,CHILDRENS SERVICES,CHILDRENS RESIDENTIAL SVCS,202.00,EXTERNAL TRAINING,TRAVELODGE (3615)
11 Apr 2014,VIRGINTRAINS.CO.UK,CHILDRENS SERVICES,LOOKED AFTER CHILDRENS SOCIAL WORK TEAM,39.40,OFFICER/STAFF-PUBLIC TRANSPORT,PASSENGER RAILWAYS (4112)
11 Apr 2014,WILKINSON,CHILDRENS SERVICES,57 LICHFIELD ROAD,3.00,FURNITURE & EQUIPMENT,HOUSEHOLD APPLIANCE STORES (5722)
11 Apr 2014,ARGOS DIRECT,CHILDRENS SERVICES,"ELDON STREET, WALSALL",-89.97,FURNITURE & EQUIPMENT,DIRECT MARKETING CATALOG MERCHANTS (5964)
11 Apr 2014,OFFICE DEPOT,CHILDRENS SERVICES,ADMINISTRATIVE SUPPLIES,206.83,STATIONERY & GENERAL SUPPLIES-OFFICE EXP,"STATIONERY, OFFICE SUPPLIES AND WRITING PAPER (5111)"
11 Apr 2014,TESCO STORES 6161,CHILDRENS SERVICES,SPINDLETREE,18.66,GENERAL PROVISIONS-PROVISIONS,GROCERY STORES AND SUPERMARKETS (5411)
11 Apr 2014,TESCO STORES 6161,CHILDRENS SERVICES,SPINDLETREE,2.18,GENERAL PROVISIONS-PROVISIONS,GROCERY STORES AND SUPERMARKETS (5411)
11 Apr 2014,ARTHUR BRETT CATER,NEIGHBOURHOOD SERVICES,CA BLUE COAT C.E. JUNIOR SCHOOL,23.55,FRUIT & VEGETABLES OTHER-PROVISIONS,MISCELLANEOUS FOOD STORES & CONVENIENCE STORES (5499)
11 Apr 2014,ARTHUR BRETT CATER,NEIGHBOURHOOD SERVICES,CA PALFREY JUNIOR SCHOOL,37.79,FRUIT & VEGETABLES OTHER-PROVISIONS,MISCELLANEOUS FOOD STORES & CONVENIENCE STORES (5499)
11 Apr 2014,CRAZY HOUSE (BROWNHILL,RESOURCES,WALSALL CRISIS SUPPORT SCHEME,95.00,CRISIS SUPPORT PAYMENTS,"EQUIPMENT, FURNITURE, AND HOME FURNISHINGS STORES  (5712)"
11 Apr 2014,ARTHUR BRETT CATER,NEIGHBOURHOOD SERVICES,CA FIBBERSLEY PARK PRIMARY SCHOOL,-11.24,FRUIT & VEGETABLES OTHER-PROVISIONS,MISCELLANEOUS FOOD STORES & CONVENIENCE STORES (5499)
11 Apr 2014,ARTHUR BRETT CATER,NEIGHBOURHOOD SERVICES,CA ST JAMES PRIMARY SCHOOL,-11.24,FRUIT & VEGETABLES OTHER-PROVISIONS,MISCELLANEOUS FOOD STORES & CONVENIENCE STORES (5499)
11 Apr 2014,ARTHUR BRETT CATER,NEIGHBOURHOOD SERVICES,CA BARCROFT D/C,-12.60,FRUIT & VEGETABLES OTHER-PROVISIONS,MISCELLANEOUS FOOD STORES & CONVENIENCE STORES (5499)
11 Apr 2014,WWW.GIROFOOD.COM,NEIGHBOURHOOD SERVICES,CA PALFREY JUNIOR SCHOOL,109.42,DISPOSABLES-PROVISIONS,WHOLESALE CLUBS (5300)
11 Apr 2014,WWW.GIROFOOD.COM,NEIGHBOURHOOD SERVICES,CA RADLEYS PRIMARY SCHOOL,5.00,DISPOSABLES-PROVISIONS,WHOLESALE CLUBS (5300)
12 Apr 2014,JOHAL DAIRIES LTD,NEIGHBOURHOOD SERVICES,CA BLUE COAT C.E. INFANT SCHOOL,53.32,MISC DAIRY PRODUCTS-PROVISIONS,OTHER NONDURABLE GOODS (5199)
12 Apr 2014,JOHAL DAIRIES LTD,NEIGHBOURHOOD SERVICES,CA ABBEY PRIMARY SCHOOL,45.60,MISC DAIRY PRODUCTS-PROVISIONS,OTHER NONDURABLE GOODS (5199)
12 Apr 2014,JOHAL DAIRIES LTD,NEIGHBOURHOOD SERVICES,CA ST MICHAELS C.E. PRIMARY SCHOOL,30.43,MISC DAIRY PRODUCTS-PROVISIONS,OTHER NONDURABLE GOODS (5199)
12 Apr 2014,JOHAL DAIRIES LTD,NEIGHBOURHOOD SERVICES,CA OLD HALL SPECIAL SCHOOL,20.41,MISC DAIRY PRODUCTS-PROVISIONS,OTHER NONDURABLE GOODS (5199)
12 Apr 2014,JOHAL DAIRIES LTD,NEIGHBOURHOOD SERVICES,CA HARDEN PRIMARY SCHOOL,112.08,MISC DAIRY PRODUCTS-PROVISIONS,OTHER NONDURABLE GOODS (5199)
12 Apr 2014,JOHAL DAIRIES LTD,CHILDRENS SERVICES,STROUD FAMILY CENTRE,5.97,GENERAL PROVISIONS-PROVISIONS,OTHER NONDURABLE GOODS (5199)
12 Apr 2014,JOHAL DAIRIES LTD,NEIGHBOURHOOD SERVICES,CA ST BERNADETTES CATHOLIC PRIMARY SCHOOL,25.44,MISC DAIRY PRODUCTS-PROVISIONS,OTHER NONDURABLE GOODS (5199)
12 Apr 2014,JOHAL DAIRIES LTD,NEIGHBOURHOOD SERVICES,CA JANE LANE SPECIAL SCHOOL,39.73,MISC DAIRY PRODUCTS-PROVISIONS,OTHER NONDURABLE GOODS (5199)
12 Apr 2014,JOHAL DAIRIES LTD,NEIGHBOURHOOD SERVICES,CA ELMORE GREEN PRIMARY SCHOOL,33.47,MISC DAIRY PRODUCTS-PROVISIONS,OTHER NONDURABLE GOODS (5199)
12 Apr 2014,JOHAL DAIRIES LTD,NEIGHBOURHOOD SERVICES,CA ST JOHNS C.E. PRIMARY SCHOOL,14.10,MISC DAIRY PRODUCTS-PROVISIONS,OTHER NONDURABLE GOODS (5199)
12 Apr 2014,JOHAL DAIRIES LTD,NEIGHBOURHOOD SERVICES,CA WHITEHALL JUNIOR COMMUNITY SCHOOL,70.25,MISC DAIRY PRODUCTS-PROVISIONS,OTHER NONDURABLE GOODS (5199)
12 Apr 2014,JOHAL DAIRIES LTD,NEIGHBOURHOOD SERVICES,CA BIRCHILLS CE PRIMARY COMMUNITY SCHOOL,101.52,MISC DAIRY PRODUCTS-PROVISIONS,OTHER NONDURABLE GOODS (5199)
12 Apr 2014,JOHAL DAIRIES LTD,NEIGHBOURHOOD SERVICES,CA BROWNHILLS WEST PRIMARY SCHOOL,62.42,MISC DAIRY PRODUCTS-PROVISIONS,OTHER NONDURABLE GOODS (5199)
12 Apr 2014,JOHAL DAIRIES LTD,NEIGHBOURHOOD SERVICES,CA WALSALL WOOD PRIMARY SCHOOL,13.31,MISC DAIRY PRODUCTS-PROVISIONS,OTHER NONDURABLE GOODS (5199)
12 Apr 2014,JOHAL DAIRIES LTD,NEIGHBOURHOOD SERVICES,CA ST JAMES PRIMARY SCHOOL,63.63,MISC DAIRY PRODUCTS-PROVISIONS,OTHER NONDURABLE GOODS (5199)
12 Apr 2014,JOHAL DAIRIES LTD,NEIGHBOURHOOD SERVICES,CA BROWNHILLS COMMUNITY TECHNOLOGY COLLEGE,26.11,MISC DAIRY PRODUCTS-PROVISIONS,OTHER NONDURABLE GOODS (5199)
12 Apr 2014,JOHAL DAIRIES LTD,NEIGHBOURHOOD SERVICES,CA MILLFIELD PRIMARY SCHOOL,48.25,MISC DAIRY PRODUCTS-PROVISIONS,OTHER NONDURABLE GOODS (5199)
12 Apr 2014,OFFICE DEPOT,NEIGHBOURHOOD SERVICES,LIBRARY OPERATIONS CENTRAL,5.50,STATIONERY & GENERAL SUPPLIES-OFFICE EXP,"STATIONERY, OFFICE SUPPLIES AND WRITING PAPER (5111)"
12 Apr 2014,JOHAL DAIRIES LTD,NEIGHBOURHOOD SERVICES,CA GREENFIELD PRIMARY,67.98,MISC DAIRY PRODUCTS-PROVISIONS,OTHER NONDURABLE GOODS (5199)
12 Apr 2014,JOHAL DAIRIES LTD,NEIGHBOURHOOD SERVICES,CA JOSEPH LECKIE COMMUNITY TECHNOLOGY COLLEGE,28.78,MISC DAIRY PRODUCTS-PROVISIONS,OTHER NONDURABLE GOODS (5199)
12 Apr 2014,SCREWFIX,NEIGHBOURHOOD SERVICES,INSPIRED GENERATIONS (CSAF),12.89,GENERAL MATERIALS,LUMBER & BUILDING MATERIALS STORES (5211)
12 Apr 2014,JOHAL DAIRIES LTD,NEIGHBOURHOOD SERVICES,CA COOPER JORDAN CE PRIMARY SCHOOL,24.58,MISC DAIRY PRODUCTS-PROVISIONS,OTHER NONDURABLE GOODS (5199)
12 Apr 2014,JOHAL DAIRIES LTD,NEIGHBOURHOOD SERVICES,CA PALFREY INFANT SCHOOL,5.58,MISC DAIRY PRODUCTS-PROVISIONS,OTHER NONDURABLE GOODS (5199)
12 Apr 2014,JOHAL DAIRIES LTD,NEIGHBOURHOOD SERVICES,CA BLUE COAT C.E. JUNIOR SCHOOL,75.12,MISC DAIRY PRODUCTS-PROVISIONS,OTHER NONDURABLE GOODS (5199)
12 Apr 2014,JOHAL DAIRIES LTD,NEIGHBOURHOOD SERVICES,CA CASTLEFORT JMI SCHOOL,35.20,MISC DAIRY PRODUCTS-PROVISIONS,OTHER NONDURABLE GOODS (5199)
12 Apr 2014,JOHAL DAIRIES LTD,NEIGHBOURHOOD SERVICES,CA WHETSTONE FIELD PRIMARY SCHOOL,7.11,MISC DAIRY PRODUCTS-PROVISIONS,OTHER NONDURABLE GOODS (5199)
12 Apr 2014,JOHAL DAIRIES LTD,NEIGHBOURHOOD SERVICES,CA RADLEYS PRIMARY SCHOOL,59.50,MISC DAIRY PRODUCTS-PROVISIONS,OTHER NONDURABLE GOODS (5199)
12 Apr 2014,JOHAL DAIRIES LTD,NEIGHBOURHOOD SERVICES,CA GREEN ROCK PRIMARY,49.40,MISC DAIRY PRODUCTS-PROVISIONS,OTHER NONDURABLE GOODS (5199)
12 Apr 2014,JOHAL DAIRIES LTD,NEIGHBOURHOOD SERVICES,CA CROFT COMMUNITY PRIMARY SCHOOL,26.87,MISC DAIRY PRODUCTS-PROVISIONS,OTHER NONDURABLE GOODS (5199)
12 Apr 2014,JOHAL DAIRIES LTD,NEIGHBOURHOOD SERVICES,CA WATLING STREET PRIMARY SCHOOL,18.09,MISC DAIRY PRODUCTS-PROVISIONS,OTHER NONDURABLE GOODS (5199)
12 Apr 2014,JOHAL DAIRIES LTD,NEIGHBOURHOOD SERVICES,CA FIBBERSLEY PARK PRIMARY SCHOOL,46.48,MISC DAIRY PRODUCTS-PROVISIONS,OTHER NONDURABLE GOODS (5199)
12 Apr 2014,POST OFFICE COUNTER,CHILDRENS SERVICES,ADMINISTRATIVE SUPPLIES,8.58,POSTAGES AND COURIER SERVICES,POSTAL SERVICES - GOVERNMENT ONLY (9402)
12 Apr 2014,JOHAL DAIRIES LTD,NEIGHBOURHOOD SERVICES,CA BUSILL JONES PRIMARY SCHOOL,85.25,MISC DAIRY PRODUCTS-PROVISIONS,OTHER NONDURABLE GOODS (5199)
12 Apr 2014,JOHAL DAIRIES LTD,NEIGHBOURHOOD SERVICES,CA PALFREY JUNIOR SCHOOL,38.10,MISC DAIRY PRODUCTS-PROVISIONS,OTHER NONDURABLE GOODS (5199)
12 Apr 2014,JOHAL DAIRIES LTD,SOCIAL CARE & INCLUSION,REABLEMENT TEAM - HOLLY BANK,87.31,MISC DAIRY PRODUCTS-PROVISIONS,OTHER NONDURABLE GOODS (5199)
12 Apr 2014,JOHAL DAIRIES LTD,NEIGHBOURHOOD SERVICES,CA BLAKENALL HEATH JUNIOR SCHOOL,55.80,MISC DAIRY PRODUCTS-PROVISIONS,OTHER NONDURABLE GOODS (5199)
12 Apr 2014,SENIOR VEHICLE RENTAL,RESOURCES,WALSALL CRISIS SUPPORT SCHEME,-200.00,CRISIS SUPPORT PAYMENTS,OTHER AUTOMOBILE RENTAL AGENCY (7512)
12 Apr 2014,JOHAL DAIRIES LTD,NEIGHBOURHOOD SERVICES,CA OAKWOOD SPECIAL SCHOOL,13.95,MISC DAIRY PRODUCTS-PROVISIONS,OTHER NONDURABLE GOODS (5199)
12 Apr 2014,JOHAL DAIRIES LTD,NEIGHBOURHOOD SERVICES,CA CALDMORE COMMUNITY PRIMARY SCHOOL,36.03,MISC DAIRY PRODUCTS-PROVISIONS,OTHER NONDURABLE GOODS (5199)
12 Apr 2014,JOHAL DAIRIES LTD,NEIGHBOURHOOD SERVICES,CA BLACKWOOD PRIMARY SCHOOL,47.53,MISC DAIRY PRODUCTS-PROVISIONS,OTHER NONDURABLE GOODS (5199)
12 Apr 2014,JOHAL DAIRIES LTD,NEIGHBOURHOOD SERVICES,TOWN HALL RESTAURANT BISTRO,36.30,MISC DAIRY PRODUCTS-PROVISIONS,OTHER NONDURABLE GOODS (5199)
12 Apr 2014,JOHAL DAIRIES LTD,NEIGHBOURHOOD SERVICES,CA DELVES INFANTS SCHOOL,8.08,MISC DAIRY PRODUCTS-PROVISIONS,OTHER NONDURABLE GOODS (5199)
12 Apr 2014,OFFICE DEPOT,SOCIAL CARE & INCLUSION,INTEGRATED BUSINESS PROCESSES & SERVICES,94.37,STATIONERY & GENERAL SUPPLIES-OFFICE EXP,"STATIONERY, OFFICE SUPPLIES AND WRITING PAPER (5111)"
12 Apr 2014,JOHAL DAIRIES LTD,NEIGHBOURHOOD SERVICES,CA LEAMORE PRIMARY SCHOOL,30.49,MISC DAIRY PRODUCTS-PROVISIONS,OTHER NONDURABLE GOODS (5199)
12 Apr 2014,JOHAL DAIRIES LTD,NEIGHBOURHOOD SERVICES,CA LINDENS PRIMARY SCHOOL,24.42,MISC DAIRY PRODUCTS-PROVISIONS,OTHER NONDURABLE GOODS (5199)
12 Apr 2014,JOHAL DAIRIES LTD,NEIGHBOURHOOD SERVICES,CA MOORCROFT WOOD,27.36,MISC DAIRY PRODUCTS-PROVISIONS,OTHER NONDURABLE GOODS (5199)
13 Apr 2014,ASDA PETROL/UPT,CHILDRENS SERVICES,REDRUTH ROAD,48.00,MISCELLANEOUS SUPPLIES,"FUEL DISPENSER, AUTOMATED (5542)"
13 Apr 2014,ASDA SUPERSTORE,CHILDRENS SERVICES,SPINDLETREE,20.00,RESIDENTS PERSONAL EXPENSES-ALLOWANCES TO S/S CLIENTS,GROCERY STORES AND SUPERMARKETS (5411)
13 Apr 2014,SPORTSDIRECT 153,CHILDRENS SERVICES,REDRUTH ROAD,66.97,RESIDENTS PERSONAL EXPENSES-ALLOWANCES TO S/S CLIENTS,SPORTING GOODS STORES (5941)
13 Apr 2014,TICKETMASTER UK,CHILDRENS SERVICES,"43A HILTON ROAD, WILLENHALL",112.85,RESIDENTS PERSONAL EXPENSES-ALLOWANCES TO S/S CLIENTS,"THEATRICAL PRODUCERS, TIC (7922)"
14 Apr 2014,WM MORRISONS,NEIGHBOURHOOD SERVICES,WALSALL OUTDOOR ADVENTURE CENTRE,24.74,GENERAL MATERIALS,GROCERY STORES AND SUPERMARKETS (5411)
14 Apr 2014,BLAKEMORE FOODSERVICE,NEIGHBOURHOOD SERVICES,CA GREEN ROCK PRIMARY,15.53,DRY FOODS-PROVISIONS,CATERERS (5811)
14 Apr 2014,BLAKEMORE FOODSERVICE,NEIGHBOURHOOD SERVICES,CA TOWN HALL RESTAURANT - CATERING,229.06,DRY FOODS-PROVISIONS,CATERERS (5811)
14 Apr 2014,CHICKEN JOES LTD,NEIGHBOURHOOD SERVICES,CA ELMWOOD SPECIAL SCHOOL,26.10,FROZEN FOODS-PROVISIONS,CATERERS (5811)
14 Apr 2014,BORSHCH ELECTRIC,RESOURCES,WALSALL CRISIS SUPPORT SCHEME,195.00,CRISIS SUPPORT PAYMENTS,HOUSEHOLD APPLIANCE STORES (5722)
14 Apr 2014,BLAKEMORE FOODSERVICE,NEIGHBOURHOOD SERVICES,CA BIRCHILLS CE PRIMARY COMMUNITY SCHOOL,13.08,DRY FOODS-PROVISIONS,CATERERS (5811)
14 Apr 2014,MNA LTD CARDCHARGE,REGENERATION,DEVELOPMENT MANAGEMENT,118.80,PERIODICALS/MAGAZINES/NEWSPAPERS-SUBSCRIPTIONS,NEWS DEALERS AND NEWSSTANDS (5994)
14 Apr 2014,PARKDEAN HOLIDAY P,CHILDRENS SERVICES,"43A HILTON ROAD, WILLENHALL",30.45,RESIDENTS PERSONAL EXPENSES-ALLOWANCES TO S/S CLIENTS,CAMPGROUNDS AND TRAILER PARKS (7033)
14 Apr 2014,BLAKEMORE FOODSERVICE,NEIGHBOURHOOD SERVICES,CA BLUE COAT C.E. JUNIOR SCHOOL,95.53,DRY FOODS-PROVISIONS,CATERERS (5811)
14 Apr 2014,BLAKEMORE FOODSERVICE,NEIGHBOURHOOD SERVICES,CA BLUE COAT C.E. JUNIOR SCHOOL,7.40,DRY FOODS-PROVISIONS,CATERERS (5811)
14 Apr 2014,BLAKEMORE FOODSERVICE,NEIGHBOURHOOD SERVICES,CA GREEN ROCK PRIMARY,37.92,DRY FOODS-PROVISIONS,CATERERS (5811)
14 Apr 2014,CHICKEN JOES LTD,NEIGHBOURHOOD SERVICES,CA LEIGHSWOOD PRIMARY SCHOOL,23.81,FROZEN FOODS-PROVISIONS,CATERERS (5811)
14 Apr 2014,BLAKEMORE FOODSERVICE,NEIGHBOURHOOD SERVICES,CA CROFT COMMUNITY PRIMARY SCHOOL,97.36,FROZEN FOODS-PROVISIONS,CATERERS (5811)
14 Apr 2014,BLAKEMORE FOODSERVICE,NEIGHBOURHOOD SERVICES,CA CALDMORE COMMUNITY PRIMARY SCHOOL,79.52,FROZEN FOODS-PROVISIONS,CATERERS (5811)
14 Apr 2014,BLAKEMORE FOODSERVICE,NEIGHBOURHOOD SERVICES,CA BEACON PRIMARY SCHOOL,146.38,FROZEN FOODS-PROVISIONS,CATERERS (5811)
14 Apr 2014,BLAKEMORE FOODSERVICE,NEIGHBOURHOOD SERVICES,CA PALFREY JUNIOR SCHOOL,245.43,DRY FOODS-PROVISIONS,CATERERS (5811)
14 Apr 2014,BLAKEMORE FOODSERVICE,NEIGHBOURHOOD SERVICES,CA PALFREY JUNIOR SCHOOL,7.40,DRY FOODS-PROVISIONS,CATERERS (5811)
14 Apr 2014,BLAKEMORE FOODSERVICE,NEIGHBOURHOOD SERVICES,CA BLACKWOOD PRIMARY SCHOOL,387.30,DRY FOODS-PROVISIONS,CATERERS (5811)
14 Apr 2014,BLAKEMORE FOODSERVICE,NEIGHBOURHOOD SERVICES,CA BLACKWOOD PRIMARY SCHOOL,403.20,DRY FOODS-PROVISIONS,CATERERS (5811)
14 Apr 2014,BLAKEMORE FOODSERVICE,NEIGHBOURHOOD SERVICES,CA BUSILL JONES PRIMARY SCHOOL,269.93,FROZEN FOODS-PROVISIONS,CATERERS (5811)
14 Apr 2014,LONDON MIDLAND INT,CHILDRENS SERVICES,YOUTH JUSTICE SERVICE,136.00,OFFICER/STAFF-PUBLIC TRANSPORT,PASSENGER RAILWAYS (4112)
14 Apr 2014,CRAZY HOUSE (BROWNHILL,RESOURCES,WALSALL CRISIS SUPPORT SCHEME,55.00,CRISIS SUPPORT PAYMENTS,"EQUIPMENT, FURNITURE, AND HOME FURNISHINGS STORES  (5712)"
14 Apr 2014,BLAKEMORE FOODSERVICE,NEIGHBOURHOOD SERVICES,CA BEACON PRIMARY SCHOOL,98.94,FROZEN FOODS-PROVISIONS,CATERERS (5811)
14 Apr 2014,CHICKEN JOES LTD,NEIGHBOURHOOD SERVICES,CA ELMORE GREEN PRIMARY SCHOOL,87.40,FROZEN FOODS-PROVISIONS,CATERERS (5811)
14 Apr 2014,BLAKEMORE FOODSERVICE,NEIGHBOURHOOD SERVICES,CA JANE LANE SPECIAL SCHOOL,90.50,DRY FOODS-PROVISIONS,CATERERS (5811)
14 Apr 2014,BLAKEMORE FOODSERVICE,NEIGHBOURHOOD SERVICES,CA JANE LANE SPECIAL SCHOOL,14.78,DRY FOODS-PROVISIONS,CATERERS (5811)
14 Apr 2014,CHICKEN JOES LTD,NEIGHBOURHOOD SERVICES,CA HARDEN PRIMARY SCHOOL,54.80,FROZEN FOODS-PROVISIONS,CATERERS (5811)
14 Apr 2014,SAFE TOTS LTD,NEIGHBOURHOOD SERVICES,CHILDRENS LIBRARY - BOOKSTART,69.99,CLOTHING & LAUNDRY,CHILDRENS AND INFANTS WEAR STORES (5641)
14 Apr 2014,TESCO STORES 6161,CHILDRENS SERVICES,CLUSTER 4 ALUMWELL & BIRCHILLS,49.38,FOOD AND BEVERAGES-PROVISIONS,GROCERY STORES AND SUPERMARKETS (5411)
14 Apr 2014,W M MORRISON PLC,CHILDRENS SERVICES,SPINDLETREE,15.88,GENERAL PROVISIONS-PROVISIONS,GROCERY STORES AND SUPERMARKETS (5411)
14 Apr 2014,W M MORRISON PLC,CHILDRENS SERVICES,SPINDLETREE,158.54,GENERAL PROVISIONS-PROVISIONS,GROCERY STORES AND SUPERMARKETS (5411)
14 Apr 2014,BLAKEMORE FOODSERVICE,NEIGHBOURHOOD SERVICES,CA COOPER JORDAN CE PRIMARY SCHOOL,191.00,DRY FOODS-PROVISIONS,CATERERS (5811)
14 Apr 2014,BLAKEMORE FOODSERVICE,NEIGHBOURHOOD SERVICES,CA COOPER JORDAN CE PRIMARY SCHOOL,16.12,DRY FOODS-PROVISIONS,CATERERS (5811)
14 Apr 2014,ASDA HOME DELIVERY,CHILDRENS SERVICES,EDGAR STAMMERS PRIMARY SCHOOL,54.60,FOOD AND BEVERAGES-PROVISIONS,GROCERY STORES AND SUPERMARKETS (5411)
14 Apr 2014,ASDA HOME DELIVERY,CHILDRENS SERVICES,EDGAR STAMMERS PRIMARY SCHOOL,80.59,FOOD AND BEVERAGES-PROVISIONS,GROCERY STORES AND SUPERMARKETS (5411)
14 Apr 2014,BLAKEMORE FOODSERVICE,NEIGHBOURHOOD SERVICES,CA BROWNHILLS COMMUNITY TECHNOLOGY COLLEGE,43.58,DRY FOODS-PROVISIONS,CATERERS (5811)
14 Apr 2014,BLAKEMORE FOODSERVICE,NEIGHBOURHOOD SERVICES,CA OLD HALL SPECIAL SCHOOL,24.48,FROZEN FOODS-PROVISIONS,CATERERS (5811)
14 Apr 2014,WELSH BROS FOODS LTD,NEIGHBOURHOOD SERVICES,CA TOWN HALL RESTAURANT - CATERING,105.21,MEAT-PROVISIONS,FREEZER AND LOCKER MEAT PROVISIONERS (5422)
14 Apr 2014,BORSHCH ELECTRIC,RESOURCES,WALSALL CRISIS SUPPORT SCHEME,195.00,CRISIS SUPPORT PAYMENTS,HOUSEHOLD APPLIANCE STORES (5722)
14 Apr 2014,BLAKEMORE FOODSERVICE,NEIGHBOURHOOD SERVICES,CA BUSILL JONES PRIMARY SCHOOL,22.49,FROZEN FOODS-PROVISIONS,CATERERS (5811)
14 Apr 2014,BLAKEMORE FOODSERVICE,NEIGHBOURHOOD SERVICES,CA MEADOW VIEW JMI PRIMARY SCHOOL,326.93,DRY FOODS-PROVISIONS,CATERERS (5811)
14 Apr 2014,BLAKEMORE FOODSERVICE,NEIGHBOURHOOD SERVICES,CA MEADOW VIEW JMI PRIMARY SCHOOL,126.27,DRY FOODS-PROVISIONS,CATERERS (5811)
14 Apr 2014,REGISTRATION SERVICES,CHILDRENS SERVICES,LOOKED AFTER CHILDRENS SOCIAL WORK TEAM,30.00,SUPPORT UNDER SECTION 23 OF THE CHILDRENS ACT,OTHER RECREATION SERVICES (7999)
14 Apr 2014,CHICKEN JOES LTD,NEIGHBOURHOOD SERVICES,CA RADLEYS PRIMARY SCHOOL,75.05,FROZEN FOODS-PROVISIONS,CATERERS (5811)
14 Apr 2014,BLAKEMORE FOODSERVICE,NEIGHBOURHOOD SERVICES,CA ST MICHAELS C.E. PRIMARY SCHOOL,-3.88,DRY FOODS-PROVISIONS,CATERERS (5811)
14 Apr 2014,CHICKEN JOES LTD,NEIGHBOURHOOD SERVICES,CA MEADOW VIEW JMI PRIMARY SCHOOL,41.75,FROZEN FOODS-PROVISIONS,CATERERS (5811)
14 Apr 2014,BLAKEMORE FOODSERVICE,NEIGHBOURHOOD SERVICES,CA RUSHALL JMI SCHOOL,173.52,DRY FOODS-PROVISIONS,CATERERS (5811)
14 Apr 2014,BLAKEMORE FOODSERVICE,NEIGHBOURHOOD SERVICES,CA RUSHALL JMI SCHOOL,25.35,DRY FOODS-PROVISIONS,CATERERS (5811)
14 Apr 2014,BLAKEMORE FOODSERVICE,NEIGHBOURHOOD SERVICES,CA BROWNHILLS COMMUNITY TECHNOLOGY COLLEGE,243.36,FROZEN FOODS-PROVISIONS,CATERERS (5811)
14 Apr 2014,CHICKEN JOES LTD,NEIGHBOURHOOD SERVICES,CA ST JOHNS C.E. PRIMARY SCHOOL,50.63,FROZEN FOODS-PROVISIONS,CATERERS (5811)
14 Apr 2014,BLAKEMORE FOODSERVICE,NEIGHBOURHOOD SERVICES,CA ST ANNES CATHOLIC PRIMARY SCHOOL,140.21,DRY FOODS-PROVISIONS,CATERERS (5811)
14 Apr 2014,ASDA STORES,CHILDRENS SERVICES,CLUSTER 5 DARLASTON,27.50,FOOD AND BEVERAGES-PROVISIONS,GROCERY STORES AND SUPERMARKETS (5411)
14 Apr 2014,BLAKEMORE FOODSERVICE,NEIGHBOURHOOD SERVICES,CA GREEN ROCK PRIMARY,200.95,DRY FOODS-PROVISIONS,CATERERS (5811)
14 Apr 2014,BLAKEMORE FOODSERVICE,NEIGHBOURHOOD SERVICES,CA GREEN ROCK PRIMARY,26.28,DRY FOODS-PROVISIONS,CATERERS (5811)
14 Apr 2014,CHICKEN JOES LTD,NEIGHBOURHOOD SERVICES,CA BROWNHILLS COMMUNITY TECHNOLOGY COLLEGE,199.35,FROZEN FOODS-PROVISIONS,CATERERS (5811)
14 Apr 2014,ASDA HOME DELIVERY,CHILDRENS SERVICES,GREENFIELD PRIMARY,69.61,FOOD AND BEVERAGES-PROVISIONS,GROCERY STORES AND SUPERMARKETS (5411)
14 Apr 2014,BLAKEMORE FOODSERVICE,NEIGHBOURHOOD SERVICES,TOWN HALL RESTAURANT BISTRO,84.81,DRY FOODS-PROVISIONS,CATERERS (5811)
14 Apr 2014,BLAKEMORE FOODSERVICE,NEIGHBOURHOOD SERVICES,TOWN HALL RESTAURANT BISTRO,360.34,DRY FOODS-PROVISIONS,CATERERS (5811)
14 Apr 2014,ASDA HOME DELIVERY,CHILDRENS SERVICES,ALUMWELL NURSERY,54.88,FOOD AND BEVERAGES-PROVISIONS,GROCERY STORES AND SUPERMARKETS (5411)
14 Apr 2014,ASDA HOME DELIVERY,CHILDRENS SERVICES,ALUMWELL NURSERY,66.82,FOOD AND BEVERAGES-PROVISIONS,GROCERY STORES AND SUPERMARKETS (5411)
14 Apr 2014,TESCO STORES 6161,CHILDRENS SERVICES,"43A HILTON ROAD, WILLENHALL",12.55,FOOD AND BEVERAGES-PROVISIONS,GROCERY STORES AND SUPERMARKETS (5411)
14 Apr 2014,BORSHCH ELECTRIC,RESOURCES,WALSALL CRISIS SUPPORT SCHEME,195.00,CRISIS SUPPORT PAYMENTS,HOUSEHOLD APPLIANCE STORES (5722)
14 Apr 2014,BLAKEMORE FOODSERVICE,NEIGHBOURHOOD SERVICES,CA OAKWOOD SPECIAL SCHOOL,231.35,DRY FOODS-PROVISIONS,CATERERS (5811)
14 Apr 2014,PAYPAL,NEIGHBOURHOOD SERVICES,FOREST ARTS CENTRE,46.80,GENERAL MATERIALS,ADVERTISING SERVICES (7311)
14 Apr 2014,BLAKEMORE FOODSERVICE,NEIGHBOURHOOD SERVICES,CA CROFT COMMUNITY PRIMARY SCHOOL,177.29,DRY FOODS-PROVISIONS,CATERERS (5811)
14 Apr 2014,BLAKEMORE FOODSERVICE,NEIGHBOURHOOD SERVICES,CA CROFT COMMUNITY PRIMARY SCHOOL,0.45,DRY FOODS-PROVISIONS,CATERERS (5811)
14 Apr 2014,THE TRAINLINE.COM,NEIGHBOURHOOD SERVICES,LIGHTING MAINTENANCE,82.62,OFFICER/STAFF-PUBLIC TRANSPORT,PASSENGER RAILWAYS (4112)
14 Apr 2014,ST. MATTHEWS HALL,CHILDRENS SERVICES,SPINDLETREE,15.81,RESIDENTS PERSONAL EXPENSES-ALLOWANCES TO S/S CLIENTS,"EATING PLACES, RESTAURANTS (5812)"
14 Apr 2014,VOSA - TESTING,NEIGHBOURHOOD SERVICES,FLEET,13.00,GENERAL MATERIALS,GOVERNMENT SERVICES (9399)
14 Apr 2014,AMAZON *MKTPLCE EU-UK,NEIGHBOURHOOD SERVICES,FOREST ARTS CENTRE,14.99,GENERAL MATERIALS,BOOK STORES (5942)
14 Apr 2014,CO-OPERATIVE FOOD,CHILDRENS SERVICES,"43A HILTON ROAD, WILLENHALL",5.10,FOOD AND BEVERAGES-PROVISIONS,GROCERY STORES AND SUPERMARKETS (5411)
14 Apr 2014,WWW.NEOPOST.CO.UK,CHILDRENS SERVICES,UNIVERSAL EDUCATION CLIENT UNIT,800.00,POSTAGES AND COURIER SERVICES,"STATIONERY, OFFICE SUPPLIES AND WRITING PAPER (5111)"
14 Apr 2014,WWW.NEOPOST.CO.UK,CHILDRENS SERVICES,UNIVERSAL EDUCATION CLIENT UNIT,24.00,POSTAGES AND COURIER SERVICES,"STATIONERY, OFFICE SUPPLIES AND WRITING PAPER (5111)"
14 Apr 2014,WEST MID TRAVEL,CHILDRENS SERVICES,SAFEGUARDING & FAMILY SUPPORT,200.00,OFFICER/STAFF-PUBLIC TRANSPORT,BUS LINES (4131)
14 Apr 2014,WEST MID TRAVEL,CHILDRENS SERVICES,SAFEGUARDING & FAMILY SUPPORT,6.75,OFFICER/STAFF-PUBLIC TRANSPORT,BUS LINES (4131)
14 Apr 2014,BLAKEMORE FOODSERVICE,NEIGHBOURHOOD SERVICES,CA RADLEYS PRIMARY SCHOOL,432.96,DRY FOODS-PROVISIONS,CATERERS (5811)
14 Apr 2014,BLAKEMORE FOODSERVICE,NEIGHBOURHOOD SERVICES,CA RADLEYS PRIMARY SCHOOL,61.53,DRY FOODS-PROVISIONS,CATERERS (5811)
14 Apr 2014,CHICKEN JOES LTD,NEIGHBOURHOOD SERVICES,CA CASTLEFORT JMI SCHOOL,26.10,FROZEN FOODS-PROVISIONS,CATERERS (5811)
14 Apr 2014,WWW.CARTRIDGESAVE.CO.U,NEIGHBOURHOOD SERVICES,RESOURCE MANAGEMENT,51.11,STATIONERY & GENERAL SUPPLIES-OFFICE EXP,"OFFICE, SCHOOL SUPPLY, AND STATIONERY STORES (5943)"
14 Apr 2014,NATIONALEXPRESS.CO,RESOURCES,WALSALL CRISIS SUPPORT SCHEME,49.60,CRISIS SUPPORT PAYMENTS,BUS LINES (4131)
14 Apr 2014,BLAKEMORE FOODSERVICE,NEIGHBOURHOOD SERVICES,CA LINDENS PRIMARY SCHOOL,202.83,DRY FOODS-PROVISIONS,CATERERS (5811)
14 Apr 2014,BLAKEMORE FOODSERVICE,NEIGHBOURHOOD SERVICES,CA LINDENS PRIMARY SCHOOL,66.84,DRY FOODS-PROVISIONS,CATERERS (5811)
14 Apr 2014,CHICKEN JOES LTD,NEIGHBOURHOOD SERVICES,CA BUSILL JONES PRIMARY SCHOOL,157.20,FROZEN FOODS-PROVISIONS,CATERERS (5811)
14 Apr 2014,OFFICE DEPOT,NEIGHBOURHOOD SERVICES,AP FINANCE & RESOURCES ADMINISTRATION,717.48,EXTERNAL PRINTING SERVICES,"STATIONERY, OFFICE SUPPLIES AND WRITING PAPER (5111)"
14 Apr 2014,BLAKEMORE FOODSERVICE,NEIGHBOURHOOD SERVICES,CA BUSILL JONES PRIMARY SCHOOL,-4.77,DRY FOODS-PROVISIONS,CATERERS (5811)
14 Apr 2014,TESCO STORES 6161,RESOURCES,WALSALL CRISIS SUPPORT SCHEME,4.10,CRISIS SUPPORT PAYMENTS,GROCERY STORES AND SUPERMARKETS (5411)
14 Apr 2014,123-REG.CO.UK,RESOURCES,NETWORKS,41.88,RECHARGE FOR MAINTENANCE/APPLICATION COSTS-COMPUTER,COMPUTER NETWORK/INFORMATION SERVICES (4816)
14 Apr 2014,BLAKEMORE FOODSERVICE,NEIGHBOURHOOD SERVICES,CA BROWNHILLS COMMUNITY TECHNOLOGY COLLEGE,235.00,FROZEN FOODS-PROVISIONS,CATERERS (5811)
14 Apr 2014,BLAKEMORE FOODSERVICE,NEIGHBOURHOOD SERVICES,CA BIRCHILLS CE PRIMARY COMMUNITY SCHOOL,180.88,FROZEN FOODS-PROVISIONS,CATERERS (5811)
14 Apr 2014,W M MORRISON PLC,CHILDRENS SERVICES,"43A HILTON ROAD, WILLENHALL",27.61,FOOD AND BEVERAGES-PROVISIONS,GROCERY STORES AND SUPERMARKETS (5411)
14 Apr 2014,BLAKEMORE FOODSERVICE,NEIGHBOURHOOD SERVICES,CA JOSEPH LECKIE COMMUNITY TECHNOLOGY COLLEGE,226.75,FROZEN FOODS-PROVISIONS,CATERERS (5811)
14 Apr 2014,CHICKEN JOES LTD,NEIGHBOURHOOD SERVICES,CA BLACKWOOD PRIMARY SCHOOL,86.15,FROZEN FOODS-PROVISIONS,CATERERS (5811)
14 Apr 2014,WELSH BROS FOODS LTD,NEIGHBOURHOOD SERVICES,TOWN HALL RESTAURANT BISTRO,59.89,MEAT-PROVISIONS,FREEZER AND LOCKER MEAT PROVISIONERS (5422)
14 Apr 2014,BORSHCH ELECTRIC,RESOURCES,WALSALL CRISIS SUPPORT SCHEME,400.00,CRISIS SUPPORT PAYMENTS,HOUSEHOLD APPLIANCE STORES (5722)
14 Apr 2014,BLAKEMORE FOODSERVICE,NEIGHBOURHOOD SERVICES,CA BARCROFT D/C,114.20,FROZEN FOODS-PROVISIONS,CATERERS (5811)
14 Apr 2014,BLAKEMORE FOODSERVICE,NEIGHBOURHOOD SERVICES,CA BARCROFT D/C,22.18,FROZEN FOODS-PROVISIONS,CATERERS (5811)
14 Apr 2014,BLAKEMORE FOODSERVICE,NEIGHBOURHOOD SERVICES,CA BROWNHILLS COMMUNITY TECHNOLOGY COLLEGE,165.55,DRY FOODS-PROVISIONS,CATERERS (5811)
14 Apr 2014,BLAKEMORE FOODSERVICE,NEIGHBOURHOOD SERVICES,CA BROWNHILLS COMMUNITY TECHNOLOGY COLLEGE,203.96,DRY FOODS-PROVISIONS,CATERERS (5811)
14 Apr 2014,BLAKEMORE FOODSERVICE,NEIGHBOURHOOD SERVICES,CA BLUE COAT C.E. JUNIOR SCHOOL,195.97,FROZEN FOODS-PROVISIONS,CATERERS (5811)
14 Apr 2014,BLAKEMORE FOODSERVICE,NEIGHBOURHOOD SERVICES,CA RADLEYS PRIMARY SCHOOL,135.75,FROZEN FOODS-PROVISIONS,CATERERS (5811)
14 Apr 2014,BORSHCH ELECTRIC,RESOURCES,WALSALL CRISIS SUPPORT SCHEME,195.00,CRISIS SUPPORT PAYMENTS,HOUSEHOLD APPLIANCE STORES (5722)
14 Apr 2014,WWW.STUFF4SCHOOLS.CO.U,CHILDRENS SERVICES,CURRICULUM SUPPORT,700.80,GENERAL MATERIALS,OTHER INDUSTRIAL SUPPLIES (5085)
14 Apr 2014,BLAKEMORE FOODSERVICE,NEIGHBOURHOOD SERVICES,CA BLUE COAT C.E. INFANT SCHOOL,85.09,FROZEN FOODS-PROVISIONS,CATERERS (5811)
14 Apr 2014,BLAKEMORE FOODSERVICE,NEIGHBOURHOOD SERVICES,CA BLUE COAT C.E. INFANT SCHOOL,14.78,FROZEN FOODS-PROVISIONS,CATERERS (5811)
14 Apr 2014,CHICKEN JOES LTD,NEIGHBOURHOOD SERVICES,CA ST MICHAELS C.E. PRIMARY SCHOOL,54.80,FROZEN FOODS-PROVISIONS,CATERERS (5811)
14 Apr 2014,EDGY PRODUCTIONS LTD,CHILDRENS SERVICES,UPPER KEY STAGE 2 TRIPS,72.35,GENERAL MATERIALS,BOOK STORES (5942)
14 Apr 2014,ASDA STORES,CHILDRENS SERVICES,CLUSTER 5 DARLASTON,45.13,FOOD AND BEVERAGES-PROVISIONS,GROCERY STORES AND SUPERMARKETS (5411)
14 Apr 2014,BLAKEMORE FOODSERVICE,NEIGHBOURHOOD SERVICES,CA MOORCROFT WOOD,41.08,FROZEN FOODS-PROVISIONS,CATERERS (5811)
14 Apr 2014,BLAKEMORE FOODSERVICE,NEIGHBOURHOOD SERVICES,CA MOORCROFT WOOD,7.40,FROZEN FOODS-PROVISIONS,CATERERS (5811)
14 Apr 2014,MAPLIN WALSALL WS2,NEIGHBOURHOOD SERVICES,NAG - TEMPORARY EXHIBITIONS,19.99,NEW-FURNITURE & EQUIPMENT,ELECTRONIC SALES (5732)
14 Apr 2014,WWW.GIROFOOD.COM,NEIGHBOURHOOD SERVICES,TOWN HALL RESTAURANT BISTRO,67.05,DISPOSABLES-PROVISIONS,WHOLESALE CLUBS (5300)
14 Apr 2014,WWW.GIROFOOD.COM,NEIGHBOURHOOD SERVICES,CA TOWN HALL RESTAURANT - CATERING,107.49,DISPOSABLES-PROVISIONS,WHOLESALE CLUBS (5300)
15 Apr 2014,ARTHUR BRETT CATER,NEIGHBOURHOOD SERVICES,CA BLACKWOOD PRIMARY SCHOOL,355.01,FRUIT & VEGETABLES OTHER-PROVISIONS,MISCELLANEOUS FOOD STORES & CONVENIENCE STORES (5499)
15 Apr 2014,BORSHCH ELECTRIC,RESOURCES,WALSALL CRISIS SUPPORT SCHEME,200.00,CRISIS SUPPORT PAYMENTS,HOUSEHOLD APPLIANCE STORES (5722)
15 Apr 2014,NOBISCO LTD,NEIGHBOURHOOD SERVICES,CA BUSILL JONES PRIMARY SCHOOL,32.40,DISPOSABLES-PROVISIONS,"CLEANING AND MAINTENANCE, JANITORIAL SERVICES (7349)"
15 Apr 2014,ARTHUR BRETT CATER,NEIGHBOURHOOD SERVICES,CA BLACKWOOD PRIMARY SCHOOL,240.71,FRUIT & VEGETABLES OTHER-PROVISIONS,MISCELLANEOUS FOOD STORES & CONVENIENCE STORES (5499)
15 Apr 2014,OFFICE DEPOT,CHILDRENS SERVICES,INITIAL RESPONSE SERVICE,281.42,STATIONERY & GENERAL SUPPLIES-OFFICE EXP,"STATIONERY, OFFICE SUPPLIES AND WRITING PAPER (5111)"
15 Apr 2014,ARTHUR BRETT CATER,NEIGHBOURHOOD SERVICES,TOWN HALL RESTAURANT BISTRO,34.00,FRUIT & VEGETABLES OTHER-PROVISIONS,MISCELLANEOUS FOOD STORES & CONVENIENCE STORES (5499)
15 Apr 2014,UKGROCERTIFICATE,CHILDRENS SERVICES,SAFEGUARDING & FAMILY SUPPORT,141.31,PUBLICITY & ADVERTISING (NOT STAFF ADVERTISING),ADVERTISING SERVICES (7311)
15 Apr 2014,KIDDISAVE LTD,CHILDRENS SERVICES,CLUSTER 4 ALUMWELL & BIRCHILLS,45.23,MISCELLANEOUS SUPPLIES,MISCELLANEOUS AND SPECIALTY RETAIL STORES (5999)
15 Apr 2014,OFFICE DEPOT,RESOURCES,ELECTORAL SERVICES,172.75,STATIONERY & GENERAL SUPPLIES-OFFICE EXP,"STATIONERY, OFFICE SUPPLIES AND WRITING PAPER (5111)"
15 Apr 2014,ARTHUR BRETT CATER,NEIGHBOURHOOD SERVICES,CA ST JOHNS C.E. PRIMARY SCHOOL,338.67,FRUIT & VEGETABLES OTHER-PROVISIONS,MISCELLANEOUS FOOD STORES & CONVENIENCE STORES (5499)
15 Apr 2014,SCREWFIX DIRECT,SOCIAL CARE & INCLUSION,TELE-HEALTHCARE,15.82,GENERAL MATERIALS,LUMBER & BUILDING MATERIALS STORES (5211)
15 Apr 2014,TRAVEL WEST MIDLAN,CHILDRENS SERVICES,LOOKED AFTER CHILDRENS SOCIAL WORK TEAM,74.00,TRANSFER PAYMENTS - SOCIAL SERVICES CLIENTS,BUS LINES (4131)
15 Apr 2014,ADIDASGROUP,NEIGHBOURHOOD SERVICES,AP QUALITY & PERFORMANCE DISCRETIONARY LEARNER SUP,-180.20,CLOTHING & LAUNDRY,SPORTING GOODS STORES (5941)
15 Apr 2014,NOBISCO LTD,NEIGHBOURHOOD SERVICES,CA BUSILL JONES PRIMARY SCHOOL,8.40,DISPOSABLES-PROVISIONS,"CLEANING AND MAINTENANCE, JANITORIAL SERVICES (7349)"
15 Apr 2014,AMAZON *MKTPLCE EU-UK,SOCIAL CARE & INCLUSION,TELE-HEALTHCARE,14.99,GENERAL MATERIALS,BOOK STORES (5942)
15 Apr 2014,BORSHCH ELECTRIC,RESOURCES,WALSALL CRISIS SUPPORT SCHEME,-65.00,CRISIS SUPPORT PAYMENTS,HOUSEHOLD APPLIANCE STORES (5722)
15 Apr 2014,OFFICE DEPOT,SOCIAL CARE & INCLUSION,INTEGRATED BUSINESS PROCESSES & SERVICES,11.21,STATIONERY & GENERAL SUPPLIES-OFFICE EXP,"STATIONERY, OFFICE SUPPLIES AND WRITING PAPER (5111)"
15 Apr 2014,OFFICE DEPOT,CHILDRENS SERVICES,SAFEGUARDING & FAMILY SUPPORT,36.10,STATIONERY & GENERAL SUPPLIES-OFFICE EXP,"STATIONERY, OFFICE SUPPLIES AND WRITING PAPER (5111)"
15 Apr 2014,GLEBEHEALTHCARCOM,CHILDRENS SERVICES,"ELDON STREET, WALSALL",135.00,MEDICAL REQUISITES-MATERIALS,"HEARING AIDS-SALES, SERVICE, SUPPLY STORES (5975)"
15 Apr 2014,BALLOONS / SHIMLA,NEIGHBOURHOOD SERVICES,NAG - PREVIEW EXPENSES,240.55,MISC DAIRY PRODUCTS-PROVISIONS,"BARS, COCKTAIL LOUNGES, DISCOTHEQUES, NIGHTCLUBS (5813)"
15 Apr 2014,T R MUSIC,NEIGHBOURHOOD SERVICES,NAG - TEMPORARY EXHIBITIONS,19.90,NEW-FURNITURE & EQUIPMENT,MUSIC STORES & MUSICAL INSTRUMENTS (5733)
15 Apr 2014,NATIONALITY DIRECTORAT,CHILDRENS SERVICES,SAFEGUARDING & FAMILY SUPPORT,589.00,TRANSFER PAYMENTS - SOCIAL SERVICES CLIENTS,GOVERNMENT SERVICES (9399)
15 Apr 2014,OFFICE DEPOT,CHILDRENS SERVICES,PARENTING TEAM,32.52,STATIONERY & GENERAL SUPPLIES-OFFICE EXP,"STATIONERY, OFFICE SUPPLIES AND WRITING PAPER (5111)"
15 Apr 2014,ARTHUR BRETT CATER,NEIGHBOURHOOD SERVICES,CA MOORCROFT WOOD,328.01,FRUIT & VEGETABLES OTHER-PROVISIONS,MISCELLANEOUS FOOD STORES & CONVENIENCE STORES (5499)
15 Apr 2014,EUROFFICE.CO.UK,CHILDRENS SERVICES,CLUSTER 4 ALUMWELL & BIRCHILLS,70.85,STATIONERY & GENERAL SUPPLIES-OFFICE EXP,"OFFICE, SCHOOL SUPPLY, AND STATIONERY STORES (5943)"
15 Apr 2014,WELSH BROS FOODS LTD,RESOURCES,FINANCE ADMIN,-101.98,MEAT-PROVISIONS,FREEZER AND LOCKER MEAT PROVISIONERS (5422)
15 Apr 2014,OFFICE DEPOT,SOCIAL CARE & INCLUSION,INTEGRATED BUSINESS PROCESSES & SERVICES,113.39,STATIONERY & GENERAL SUPPLIES-OFFICE EXP,"STATIONERY, OFFICE SUPPLIES AND WRITING PAPER (5111)"
15 Apr 2014,OFFICE DEPOT,RESOURCES,ELECTORAL SERVICES,64.63,STATIONERY & GENERAL SUPPLIES-OFFICE EXP,"STATIONERY, OFFICE SUPPLIES AND WRITING PAPER (5111)"
15 Apr 2014,ARTHUR BRETT CATER,NEIGHBOURHOOD SERVICES,CA TOWN HALL RESTAURANT - CATERING,32.34,FRUIT & VEGETABLES OTHER-PROVISIONS,MISCELLANEOUS FOOD STORES & CONVENIENCE STORES (5499)
15 Apr 2014,OFFICE DEPOT,CHILDRENS SERVICES,CLUSTER 5 DARLASTON,88.56,STATIONERY & GENERAL SUPPLIES-OFFICE EXP,"STATIONERY, OFFICE SUPPLIES AND WRITING PAPER (5111)"
15 Apr 2014,ARGOS B2B ONLINE,CHILDRENS SERVICES,FAMILY SUPPORT,58.04,BEDDING & LINEN-MATERIALS,DISCOUNT STORES (5310)
15 Apr 2014,AMAZON *MKTPLCE EU-UK,NEIGHBOURHOOD SERVICES,FOREST ARTS CENTRE,2.50,GENERAL MATERIALS,BOOK STORES (5942)
15 Apr 2014,A F BLAKEMORE CASH&CARRY,NEIGHBOURHOOD SERVICES,ARBORETUM,62.32,FOOD AND BEVERAGES-PROVISIONS,GROCERY STORES AND SUPERMARKETS (5411)
15 Apr 2014,ARTHUR BRETT CATER,NEIGHBOURHOOD SERVICES,CA POOL HAYES PRIMARY SCHOOL,353.97,FRUIT & VEGETABLES OTHER-PROVISIONS,MISCELLANEOUS FOOD STORES & CONVENIENCE STORES (5499)
15 Apr 2014,WWW.CIPFA.ORG.UK/PFMCO,NEIGHBOURHOOD SERVICES,CFR 642 DEVELOPMENT OF (HAMP) HIGHWAY ASSET MANAGEMENT INVENTORY,598.50,SITE WORKS MAIN CONTRACTORS,"ORGANIZATIONS, MEMBERSHIP (8699)"
15 Apr 2014,ARTHUR BRETT CATER,NEIGHBOURHOOD SERVICES,CA ST ANNES CATHOLIC PRIMARY SCHOOL,155.32,FRUIT & VEGETABLES OTHER-PROVISIONS,MISCELLANEOUS FOOD STORES & CONVENIENCE STORES (5499)
15 Apr 2014,NATIONALITY DIRECTORAT,CHILDRENS SERVICES,SAFEGUARDING & FAMILY SUPPORT,589.00,TRANSFER PAYMENTS - SOCIAL SERVICES CLIENTS,GOVERNMENT SERVICES (9399)
15 Apr 2014,ARTHUR BRETT CATER,NEIGHBOURHOOD SERVICES,CA BEACON PRIMARY SCHOOL,283.69,FRUIT & VEGETABLES OTHER-PROVISIONS,MISCELLANEOUS FOOD STORES & CONVENIENCE STORES (5499)
15 Apr 2014,DIAMOND PROPERTIES,CHILDRENS SERVICES,ADOPTION TEAM,300.00,HOTEL ACCOMMODATION-EMPLOYEES,"HOTELS, MOTELS, RESORTS (7011)"
15 Apr 2014,PO LTD ROD LICENCE,RESOURCES,LINK SERVICE,27.00,POSTAGES AND COURIER SERVICES,POSTAL SERVICES - GOVERNMENT ONLY (9402)
15 Apr 2014,ASDA HOME DELIVERY,CHILDRENS SERVICES,57 LICHFIELD ROAD,221.14,GENERAL PROVISIONS-PROVISIONS,GROCERY STORES AND SUPERMARKETS (5411)
15 Apr 2014,IKEA SACAT,RESOURCES,ACCOMMODATION SERVICES MANAGEMENT,85.60,FURNITURE & EQUIPMENT,MISCELLANEOUS HOUSE FURNISHING SPECIALTY SHOPS (5719)
15 Apr 2014,IKEA SACAT,RESOURCES,ACCOMMODATION SERVICES MANAGEMENT,17.50,FURNITURE & EQUIPMENT,MISCELLANEOUS HOUSE FURNISHING SPECIALTY SHOPS (5719)
15 Apr 2014,VIKING,CHILDRENS SERVICES,CLUSTER 4 ALUMWELL & BIRCHILLS,95.33,STATIONERY & GENERAL SUPPLIES-OFFICE EXP,"STATIONERY, OFFICE SUPPLIES AND WRITING PAPER (5111)"
15 Apr 2014,SCREWFIX DIRECT LT,REGENERATION,BUILDING SERVICES,94.99,"REPAIRS,ALTERATIONS & MAINTENANCE-PREM",LUMBER & BUILDING MATERIALS STORES (5211)
15 Apr 2014,ARTHUR BRETT CATER,NEIGHBOURHOOD SERVICES,CA BLACKWOOD PRIMARY SCHOOL,353.68,FRUIT & VEGETABLES OTHER-PROVISIONS,MISCELLANEOUS FOOD STORES & CONVENIENCE STORES (5499)
15 Apr 2014,ARGOS B2B ONLINE,CHILDRENS SERVICES,FAMILY SUPPORT,69.08,BEDDING & LINEN-MATERIALS,DISCOUNT STORES (5310)
15 Apr 2014,WM MORRISON 063,CHILDRENS SERVICES,CLUSTER 4 ALUMWELL & BIRCHILLS,4.11,FOOD AND BEVERAGES-PROVISIONS,GROCERY STORES AND SUPERMARKETS (5411)
15 Apr 2014,ARTHUR BRETT CATER,NEIGHBOURHOOD SERVICES,CA BLACKWOOD PRIMARY SCHOOL,156.65,FRUIT & VEGETABLES OTHER-PROVISIONS,MISCELLANEOUS FOOD STORES & CONVENIENCE STORES (5499)
15 Apr 2014,BORSHCH ELECTRIC,RESOURCES,WALSALL CRISIS SUPPORT SCHEME,195.00,CRISIS SUPPORT PAYMENTS,HOUSEHOLD APPLIANCE STORES (5722)
15 Apr 2014,ARTHUR BRETT CATER,NEIGHBOURHOOD SERVICES,CA BEACON PRIMARY SCHOOL,313.17,FRUIT & VEGETABLES OTHER-PROVISIONS,MISCELLANEOUS FOOD STORES & CONVENIENCE STORES (5499)
15 Apr 2014,MOTHERCARE DIRECT-E-CO,CHILDRENS SERVICES,SAFEGUARDING & FAMILY SUPPORT,10.94,BEDDING & LINEN-MATERIALS,DEPARTMENT STORES (5311)
15 Apr 2014,ASDA HOME DELIVERY,CHILDRENS SERVICES,"ELDON STREET, WALSALL",140.16,FOOD AND BEVERAGES-PROVISIONS,GROCERY STORES AND SUPERMARKETS (5411)
16 Apr 2014,TESCO STORES 6161,RESOURCES,WALSALL CRISIS SUPPORT SCHEME,13.37,CRISIS SUPPORT PAYMENTS,GROCERY STORES AND SUPERMARKETS (5411)
16 Apr 2014,BREWERS FAYRE40535525,CHILDRENS SERVICES,LOOKED AFTER CHILDRENS SOCIAL WORK TEAM,67.93,TRANSFER PAYMENTS - SOCIAL SERVICES CLIENTS,"EATING PLACES, RESTAURANTS (5812)"
16 Apr 2014,LAKELAND.LIMITED,CHILDRENS SERVICES,SCIENCE & TECHNOLOGY,59.82,NEW-FURNITURE & EQUIPMENT,MISCELLANEOUS GENERAL MERCHANDISE (5399)
16 Apr 2014,OFFICE DEPOT,CHILDRENS SERVICES,"CLUSTER 6 BENTLEY,LIGHTHOUSE,FIBBERSLEY",164.12,STATIONERY & GENERAL SUPPLIES-OFFICE EXP,"STATIONERY, OFFICE SUPPLIES AND WRITING PAPER (5111)"
16 Apr 2014,CHICKEN JOES LTD,NEIGHBOURHOOD SERVICES,CA FIBBERSLEY PARK PRIMARY SCHOOL,46.01,FROZEN FOODS-PROVISIONS,CATERERS (5811)
16 Apr 2014,AMAZON EU,NEIGHBOURHOOD SERVICES,NAG - NEW ART GALLERY SHOP STOCK,25.30,LOOSE TOOLS & CONSUMABLES,OTHER DIRECT MARKETING-OTHER DIRECT MARKETERS (5969)
16 Apr 2014,AMAZON *MKTPLCE EU-UK,CHILDRENS SERVICES,LIBRARY,17.79,GENERAL MATERIALS,BOOK STORES (5942)
16 Apr 2014,ASDA STORES,CHILDRENS SERVICES,CLUSTER 5 DARLASTON,16.50,FOOD AND BEVERAGES-PROVISIONS,GROCERY STORES AND SUPERMARKETS (5411)
16 Apr 2014,CHICKEN JOES LTD,NEIGHBOURHOOD SERVICES,CA ST JAMES PRIMARY SCHOOL,33.30,FROZEN FOODS-PROVISIONS,CATERERS (5811)
16 Apr 2014,BORSHCH ELECTRIC,RESOURCES,WALSALL CRISIS SUPPORT SCHEME,270.00,CRISIS SUPPORT PAYMENTS,HOUSEHOLD APPLIANCE STORES (5722)
16 Apr 2014,WWW.DVLA.GOV.UK,NEIGHBOURHOOD SERVICES,FLEET,227.50,LICENCES-TRANSPORT RUN COSTS,GOVERNMENT SERVICES (9399)
16 Apr 2014,WWW.DVLA.GOV.UK,NEIGHBOURHOOD SERVICES,FLEET,227.50,LICENCES-TRANSPORT RUN COSTS,GOVERNMENT SERVICES (9399)
16 Apr 2014,ASDA,CHILDRENS SERVICES,57 LICHFIELD ROAD,8.51,GENERAL PROVISIONS-PROVISIONS,GROCERY STORES AND SUPERMARKETS (5411)
16 Apr 2014,ARGOS RETAIL GROUP,CHILDRENS SERVICES,SCIENCE & TECHNOLOGY,19.98,NEW-FURNITURE & EQUIPMENT,DISCOUNT STORES (5310)
16 Apr 2014,REGISTRATION SERVICES,CHILDRENS SERVICES,SUPPORT UNDER SECT 23 OF THE CHILDRENS ACT,64.00,SUPPORT UNDER SECTION 23 OF THE CHILDRENS ACT,OTHER RECREATION SERVICES (7999)
16 Apr 2014,BT BILL PAYMENT 2,CHILDRENS SERVICES,EARLY YEARS SERVICE,121.68,COSTS (NOT INTERNAL RECHARGES)-TELEPHONES,TELECOMMUNICATION EQUIPMENT & SALES (4812)
16 Apr 2014,CHICKEN JOES LTD,NEIGHBOURHOOD SERVICES,CA BEACON PRIMARY SCHOOL,103.05,FROZEN FOODS-PROVISIONS,CATERERS (5811)
16 Apr 2014,BLAKEMORE FOODSERVICE,NEIGHBOURHOOD SERVICES,CA TOWN HALL RESTAURANT - CATERING,76.46,FROZEN FOODS-PROVISIONS,CATERERS (5811)
16 Apr 2014,EC PITCHER LTD,REGENERATION,DARLASTON DISTRICT CENTRE,18.00,MISCELLANEOUS SUPPLIES,HARDWARE STORES (5251)
16 Apr 2014,WWW.DVLA.GOV.UK,NEIGHBOURHOOD SERVICES,FLEET,227.50,LICENCES-TRANSPORT RUN COSTS,GOVERNMENT SERVICES (9399)
16 Apr 2014,CHICKEN JOES LTD,NEIGHBOURHOOD SERVICES,CA WATLING STREET PRIMARY SCHOOL,-16.90,FROZEN FOODS-PROVISIONS,CATERERS (5811)
16 Apr 2014,BLAKEMORE FOODSERVICE,NEIGHBOURHOOD SERVICES,CA ELMORE GREEN PRIMARY SCHOOL,50.56,DRY FOODS-PROVISIONS,CATERERS (5811)
16 Apr 2014,OFFICE DEPOT,CHILDRENS SERVICES,FAMILY PLACEMENTS,160.07,STATIONERY & GENERAL SUPPLIES-OFFICE EXP,"STATIONERY, OFFICE SUPPLIES AND WRITING PAPER (5111)"
16 Apr 2014,OFFICE DEPOT,CHILDRENS SERVICES,"CLUSTER 6 BENTLEY,LIGHTHOUSE,FIBBERSLEY",15.70,STATIONERY & GENERAL SUPPLIES-OFFICE EXP,"STATIONERY, OFFICE SUPPLIES AND WRITING PAPER (5111)"
16 Apr 2014,AMAZON *MKTPLCE EU-UK,NEIGHBOURHOOD SERVICES,NAG - NEW ART GALLERY SHOP STOCK,91.34,LOOSE TOOLS & CONSUMABLES,BOOK STORES (5942)
16 Apr 2014,AMAZON EU,CHILDRENS SERVICES,SCIENCE & TECHNOLOGY,89.50,NEW-FURNITURE & EQUIPMENT,OTHER DIRECT MARKETING-OTHER DIRECT MARKETERS (5969)
16 Apr 2014,THE BOOK PEOPLE,CHILDRENS SERVICES,LIBRARY,31.94,GENERAL MATERIALS,BOOK STORES (5942)
16 Apr 2014,CURRYS,CHILDRENS SERVICES,"43A HILTON ROAD, WILLENHALL",-29.01,FURNITURE & EQUIPMENT,ELECTRONIC SALES (5732)
16 Apr 2014,MCA WALES &WESTERN REG,NEIGHBOURHOOD SERVICES,WALSALL CANAL BOATS,-47.00,SERVICES FEES/CHARGES,GOVERNMENT SERVICES (9399)
16 Apr 2014,CO-OPERATIVE FOOD,CHILDRENS SERVICES,"43A HILTON ROAD, WILLENHALL",3.40,FOOD AND BEVERAGES-PROVISIONS,GROCERY STORES AND SUPERMARKETS (5411)
16 Apr 2014,AMAZON EU,CHILDRENS SERVICES,SCIENCE & TECHNOLOGY,17.29,NEW-FURNITURE & EQUIPMENT,OTHER DIRECT MARKETING-OTHER DIRECT MARKETERS (5969)
16 Apr 2014,OFFICE DEPOT,NEIGHBOURHOOD SERVICES,RESOURCE MANAGEMENT,259.04,STATIONERY & GENERAL SUPPLIES-OFFICE EXP,"STATIONERY, OFFICE SUPPLIES AND WRITING PAPER (5111)"
16 Apr 2014,BORSHCH ELECTRIC,RESOURCES,WALSALL CRISIS SUPPORT SCHEME,525.00,CRISIS SUPPORT PAYMENTS,HOUSEHOLD APPLIANCE STORES (5722)
16 Apr 2014,WWW.DVLA.GOV.UK,NEIGHBOURHOOD SERVICES,FLEET,227.50,LICENCES-TRANSPORT RUN COSTS,GOVERNMENT SERVICES (9399)
16 Apr 2014,CHICKEN JOES LTD,NEIGHBOURHOOD SERVICES,CA WATLING STREET PRIMARY SCHOOL,58.00,FROZEN FOODS-PROVISIONS,CATERERS (5811)
16 Apr 2014,TRAINLINE.COM,CHILDRENS SERVICES,SAFEGUARDING & FAMILY SUPPORT,60.69,OFFICER/STAFF-PUBLIC TRANSPORT,PASSENGER RAILWAYS (4112)
16 Apr 2014,CURRYS,CHILDRENS SERVICES,"43A HILTON ROAD, WILLENHALL",193.00,FURNITURE & EQUIPMENT,ELECTRONIC SALES (5732)
16 Apr 2014,MNA LTD CARDCHARGE,REGENERATION,DEVELOPMENT MANAGEMENT,345.60,PERIODICALS/MAGAZINES/NEWSPAPERS-SUBSCRIPTIONS,NEWS DEALERS AND NEWSSTANDS (5994)
16 Apr 2014,ARGOS B2B ONLINE,CHILDRENS SERVICES,LOOKED AFTER CHILDRENS SOCIAL WORK TEAM,98.93,SUPPORT UNDER SECTION 23 OF THE CHILDRENS ACT,DISCOUNT STORES (5310)
16 Apr 2014,OFFICE DEPOT,CHILDRENS SERVICES,UNIVERSAL EDUCATION CLIENT UNIT,185.87,STATIONERY & GENERAL SUPPLIES-OFFICE EXP,"STATIONERY, OFFICE SUPPLIES AND WRITING PAPER (5111)"
16 Apr 2014,CHICKEN JOES LTD,NEIGHBOURHOOD SERVICES,CA BARCROFT D/C,42.50,FROZEN FOODS-PROVISIONS,CATERERS (5811)
16 Apr 2014,WM MORRISON 063,CHILDRENS SERVICES,SCIENCE & TECHNOLOGY,15.60,NEW-FURNITURE & EQUIPMENT,GROCERY STORES AND SUPERMARKETS (5411)
16 Apr 2014,TRAVEL WEST MIDLAN,RESOURCES,LINK SERVICE,50.50,OFFICER/STAFF-PUBLIC TRANSPORT,BUS LINES (4131)
16 Apr 2014,ARGOS RETAIL GROUP,CHILDRENS SERVICES,SCIENCE & TECHNOLOGY,243.18,NEW-FURNITURE & EQUIPMENT,DISCOUNT STORES (5310)
16 Apr 2014,OFFICE DEPOT,NEIGHBOURHOOD SERVICES,AP FINANCE & RESOURCES ADMINISTRATION,49.99,STATIONERY & GENERAL SUPPLIES-OFFICE EXP,"STATIONERY, OFFICE SUPPLIES AND WRITING PAPER (5111)"
16 Apr 2014,BSS PTS,NEIGHBOURHOOD SERVICES,POOLFITTERS,42.52,GENERAL MATERIALS,LUMBER & BUILDING MATERIALS STORES (5211)
16 Apr 2014,AMAZON EU,CHILDRENS SERVICES,LIBRARY,39.98,GENERAL MATERIALS,OTHER DIRECT MARKETING-OTHER DIRECT MARKETERS (5969)
16 Apr 2014,B & Q,CHILDRENS SERVICES,CLUSTER 5 DARLASTON,12.00,GENERAL MATERIALS,LUMBER & BUILDING MATERIALS STORES (5211)
16 Apr 2014,TRAINLINE.COM,CHILDRENS SERVICES,SAFEGUARDING & FAMILY SUPPORT,60.69,OFFICER/STAFF-PUBLIC TRANSPORT,PASSENGER RAILWAYS (4112)
16 Apr 2014,BLAKEMORE FOODSERVICE,NEIGHBOURHOOD SERVICES,CA TOWN HALL RESTAURANT - CATERING,7.44,DRY FOODS-PROVISIONS,CATERERS (5811)
16 Apr 2014,WWW.DVLA.GOV.UK,NEIGHBOURHOOD SERVICES,FLEET,227.50,LICENCES-TRANSPORT RUN COSTS,GOVERNMENT SERVICES (9399)
16 Apr 2014,EC PITCHER LTD,NEIGHBOURHOOD SERVICES,POOLFITTERS,139.36,GENERAL MATERIALS,HARDWARE STORES (5251)
17 Apr 2014,OFFICE DEPOT,NEIGHBOURHOOD SERVICES,SPORT & LEISURE DEVELOPMENT SERVICES,74.09,STATIONERY & GENERAL SUPPLIES-OFFICE EXP,"STATIONERY, OFFICE SUPPLIES AND WRITING PAPER (5111)"
17 Apr 2014,JOHAL DAIRIES LTD,NEIGHBOURHOOD SERVICES,CA ABBEY PRIMARY SCHOOL,47.80,MISC DAIRY PRODUCTS-PROVISIONS,OTHER NONDURABLE GOODS (5199)
17 Apr 2014,JOHAL DAIRIES LTD,CHILDRENS SERVICES,57 LICHFIELD ROAD,19.05,GENERAL PROVISIONS-PROVISIONS,OTHER NONDURABLE GOODS (5199)
17 Apr 2014,W M MORRISON PLC,CHILDRENS SERVICES,"43A HILTON ROAD, WILLENHALL",5.97,FOOD AND BEVERAGES-PROVISIONS,GROCERY STORES AND SUPERMARKETS (5411)
17 Apr 2014,W M MORRISON PLC,CHILDRENS SERVICES,"43A HILTON ROAD, WILLENHALL",47.01,FOOD AND BEVERAGES-PROVISIONS,GROCERY STORES AND SUPERMARKETS (5411)
17 Apr 2014,JOHAL DAIRIES LTD,NEIGHBOURHOOD SERVICES,CA PALFREY JUNIOR SCHOOL,57.00,MISC DAIRY PRODUCTS-PROVISIONS,OTHER NONDURABLE GOODS (5199)
17 Apr 2014,TRAINLINE.COM,CHILDRENS SERVICES,"43A HILTON ROAD, WILLENHALL",81.09,TRANSFER PAYMENTS - SOCIAL SERVICES CLIENTS,PASSENGER RAILWAYS (4112)
17 Apr 2014,JOHAL DAIRIES LTD,NEIGHBOURHOOD SERVICES,CA BIRCHILLS CE PRIMARY COMMUNITY SCHOOL,93.96,MISC DAIRY PRODUCTS-PROVISIONS,OTHER NONDURABLE GOODS (5199)
17 Apr 2014,JOHAL DAIRIES LTD,NEIGHBOURHOOD SERVICES,CA LEIGHSWOOD PRIMARY SCHOOL,34.69,MISC DAIRY PRODUCTS-PROVISIONS,OTHER NONDURABLE GOODS (5199)
17 Apr 2014,CRAZY HOUSE (BROWNHILL,RESOURCES,WALSALL CRISIS SUPPORT SCHEME,55.00,CRISIS SUPPORT PAYMENTS,"EQUIPMENT, FURNITURE, AND HOME FURNISHINGS STORES  (5712)"
17 Apr 2014,ARGOS LTD,NEIGHBOURHOOD SERVICES,DARLASTON TOWN HALL,123.49,NEW-FURNITURE & EQUIPMENT,DISCOUNT STORES (5310)
17 Apr 2014,TESCO STORES 5503,CHILDRENS SERVICES,CLUSTER 4 ALUMWELL & BIRCHILLS,5.40,FOOD AND BEVERAGES-PROVISIONS,GROCERY STORES AND SUPERMARKETS (5411)
17 Apr 2014,YE OLDE FIGHTING COCKS,CHILDRENS SERVICES,"43A HILTON ROAD, WILLENHALL",55.00,RESIDENTS PERSONAL EXPENSES-ALLOWANCES TO S/S CLIENTS,"HOTELS, MOTELS, RESORTS (7011)"
17 Apr 2014,BORSHCH ELECTRIC,RESOURCES,WALSALL CRISIS SUPPORT SCHEME,195.00,CRISIS SUPPORT PAYMENTS,HOUSEHOLD APPLIANCE STORES (5722)
17 Apr 2014,ROYAL NATIONAL INSTITUTE,NEIGHBOURHOOD SERVICES,AP QUALITY & PERFORMANCE ADDITIONAL LEARNER SUPPORT,14.97,GENERAL MATERIALS,"ORGANIZATIONS, CHARITABLE AND SOCIAL SERVICE (8398)"
17 Apr 2014,JOHAL DAIRIES LTD,NEIGHBOURHOOD SERVICES,CA BROWNHILLS WEST PRIMARY SCHOOL,40.45,MISC DAIRY PRODUCTS-PROVISIONS,OTHER NONDURABLE GOODS (5199)
17 Apr 2014,CRAZY HOUSE (BROWNHILL,RESOURCES,WALSALL CRISIS SUPPORT SCHEME,60.00,CRISIS SUPPORT PAYMENTS,"EQUIPMENT, FURNITURE, AND HOME FURNISHINGS STORES  (5712)"
17 Apr 2014,JOHAL DAIRIES LTD,NEIGHBOURHOOD SERVICES,CA LINDENS PRIMARY SCHOOL,15.50,MISC DAIRY PRODUCTS-PROVISIONS,OTHER NONDURABLE GOODS (5199)
17 Apr 2014,WM MORRISONS,NEIGHBOURHOOD SERVICES,ARBORETUM,20.98,FOOD AND BEVERAGES-PROVISIONS,GROCERY STORES AND SUPERMARKETS (5411)
17 Apr 2014,AMAZON *MKTPLCE EU-UK,NEIGHBOURHOOD SERVICES,NAG - GARMAN RYAN/PERMANENT COLLECTION,25.00,LIBRARY BOOKS,BOOK STORES (5942)
17 Apr 2014,POUNDLAND LTD 1427,CHILDRENS SERVICES,57 LICHFIELD ROAD,2.00,RESIDENTS PERSONAL EXPENSES-ALLOWANCES TO S/S CLIENTS,DISCOUNT STORES (5310)
17 Apr 2014,JOHAL DAIRIES LTD,NEIGHBOURHOOD SERVICES,CA ST ANNES CATHOLIC PRIMARY SCHOOL,14.75,MISC DAIRY PRODUCTS-PROVISIONS,OTHER NONDURABLE GOODS (5199)
17 Apr 2014,OFFICE DEPOT,RESOURCES,PRINT STORES,35.33,STATIONERY & GENERAL SUPPLIES-OFFICE EXP,"STATIONERY, OFFICE SUPPLIES AND WRITING PAPER (5111)"
17 Apr 2014,W M MORRISON PLC,CHILDRENS SERVICES,"43A HILTON ROAD, WILLENHALL",36.17,FOOD AND BEVERAGES-PROVISIONS,GROCERY STORES AND SUPERMARKETS (5411)
17 Apr 2014,W M MORRISON PLC,CHILDRENS SERVICES,"43A HILTON ROAD, WILLENHALL",94.32,FOOD AND BEVERAGES-PROVISIONS,GROCERY STORES AND SUPERMARKETS (5411)
17 Apr 2014,BORSHCH ELECTRIC,RESOURCES,WALSALL CRISIS SUPPORT SCHEME,595.00,CRISIS SUPPORT PAYMENTS,HOUSEHOLD APPLIANCE STORES (5722)
17 Apr 2014,JOHAL DAIRIES LTD,NEIGHBOURHOOD SERVICES,CA POOL HAYES PRIMARY SCHOOL,21.96,MISC DAIRY PRODUCTS-PROVISIONS,OTHER NONDURABLE GOODS (5199)
17 Apr 2014,TESCO STORES 6161,RESOURCES,WALSALL CRISIS SUPPORT SCHEME,12.88,CRISIS SUPPORT PAYMENTS,GROCERY STORES AND SUPERMARKETS (5411)
17 Apr 2014,ARGOS RETAIL GROUP,CHILDRENS SERVICES,STANLEYS NURSERY,349.99,EQUIP NEW-CLEANING,DISCOUNT STORES (5310)
17 Apr 2014,GEM HIGH HILL,CHILDRENS SERVICES,REDRUTH ROAD,50.00,MISCELLANEOUS SUPPLIES,SERVICE STATIONS (5541)
17 Apr 2014,JOHAL DAIRIES LTD,NEIGHBOURHOOD SERVICES,CA BARCROFT D/C,77.00,MISC DAIRY PRODUCTS-PROVISIONS,OTHER NONDURABLE GOODS (5199)
17 Apr 2014,JOHAL DAIRIES LTD,NEIGHBOURHOOD SERVICES,CA ST BERNADETTES CATHOLIC PRIMARY SCHOOL,22.74,MISC DAIRY PRODUCTS-PROVISIONS,OTHER NONDURABLE GOODS (5199)
17 Apr 2014,JOHAL DAIRIES LTD,NEIGHBOURHOOD SERVICES,CA JOSEPH LECKIE COMMUNITY TECHNOLOGY COLLEGE,28.78,MISC DAIRY PRODUCTS-PROVISIONS,OTHER NONDURABLE GOODS (5199)
17 Apr 2014,CRAZY HOUSE (BROWNHILL,RESOURCES,WALSALL CRISIS SUPPORT SCHEME,85.00,CRISIS SUPPORT PAYMENTS,"EQUIPMENT, FURNITURE, AND HOME FURNISHINGS STORES  (5712)"
17 Apr 2014,JOHAL DAIRIES LTD,NEIGHBOURHOOD SERVICES,CA MOORCROFT WOOD,27.36,MISC DAIRY PRODUCTS-PROVISIONS,OTHER NONDURABLE GOODS (5199)
17 Apr 2014,JOHAL DAIRIES LTD,NEIGHBOURHOOD SERVICES,CA BLOXWICH C.E. JMI PRIMARY SCHOOL,54.25,MISC DAIRY PRODUCTS-PROVISIONS,OTHER NONDURABLE GOODS (5199)
17 Apr 2014,JOHAL DAIRIES LTD,SOCIAL CARE & INCLUSION,REABLEMENT TEAM - HOLLY BANK,94.82,MISC DAIRY PRODUCTS-PROVISIONS,OTHER NONDURABLE GOODS (5199)
17 Apr 2014,JOHAL DAIRIES LTD,NEIGHBOURHOOD SERVICES,CA BLUE COAT C.E. JUNIOR SCHOOL,68.76,MISC DAIRY PRODUCTS-PROVISIONS,OTHER NONDURABLE GOODS (5199)
17 Apr 2014,B&M RETAIL LTD,REGENERATION,BLOXWICH DISTRICT CENTRE,29.79,EVENTS,DISCOUNT STORES (5310)
17 Apr 2014,OFFICE DEPOT,SOCIAL CARE & INCLUSION,REABLEMENT TEAM - HOLLY BANK,74.95,STATIONERY & GENERAL SUPPLIES-OFFICE EXP,"STATIONERY, OFFICE SUPPLIES AND WRITING PAPER (5111)"
17 Apr 2014,ASDA,CHILDRENS SERVICES,SPINDLETREE,46.72,GENERAL PROVISIONS-PROVISIONS,GROCERY STORES AND SUPERMARKETS (5411)
17 Apr 2014,ASDA,CHILDRENS SERVICES,SPINDLETREE,126.78,FURNITURE & EQUIPMENT,GROCERY STORES AND SUPERMARKETS (5411)
17 Apr 2014,TESCO STORES 6161,REGENERATION,BLOXWICH DISTRICT CENTRE,80.00,EVENTS,GROCERY STORES AND SUPERMARKETS (5411)
17 Apr 2014,OFFICE DEPOT,CHILDRENS SERVICES,ADOPTION TEAM,158.38,STATIONERY & GENERAL SUPPLIES-OFFICE EXP,"STATIONERY, OFFICE SUPPLIES AND WRITING PAPER (5111)"
17 Apr 2014,JOHAL DAIRIES LTD,SOCIAL CARE & INCLUSION,FALLINGS HEATH,35.54,MISC DAIRY PRODUCTS-PROVISIONS,OTHER NONDURABLE GOODS (5199)
17 Apr 2014,JOHAL DAIRIES LTD,NEIGHBOURHOOD SERVICES,CA MEADOW VIEW JMI PRIMARY SCHOOL,17.94,MISC DAIRY PRODUCTS-PROVISIONS,OTHER NONDURABLE GOODS (5199)
17 Apr 2014,BORSHCH ELECTRIC,RESOURCES,WALSALL CRISIS SUPPORT SCHEME,325.00,CRISIS SUPPORT PAYMENTS,HOUSEHOLD APPLIANCE STORES (5722)
17 Apr 2014,MNA LTD CARDCHARGE,REGENERATION,DEVELOPMENT MANAGEMENT,118.80,PERIODICALS/MAGAZINES/NEWSPAPERS-SUBSCRIPTIONS,NEWS DEALERS AND NEWSSTANDS (5994)
17 Apr 2014,BORSHCH ELECTRIC,RESOURCES,WALSALL CRISIS SUPPORT SCHEME,460.00,CRISIS SUPPORT PAYMENTS,HOUSEHOLD APPLIANCE STORES (5722)
17 Apr 2014,JOHAL DAIRIES LTD,NEIGHBOURHOOD SERVICES,CA RUSHALL JMI SCHOOL,42.32,MISC DAIRY PRODUCTS-PROVISIONS,OTHER NONDURABLE GOODS (5199)
17 Apr 2014,WILKINSON,CHILDRENS SERVICES,57 LICHFIELD ROAD,10.00,RESIDENTS PERSONAL EXPENSES-ALLOWANCES TO S/S CLIENTS,HOUSEHOLD APPLIANCE STORES (5722)
17 Apr 2014,JOHAL DAIRIES LTD,NEIGHBOURHOOD SERVICES,CA BEACON PRIMARY SCHOOL,95.01,MISC DAIRY PRODUCTS-PROVISIONS,OTHER NONDURABLE GOODS (5199)
17 Apr 2014,OFFICE DEPOT,REGENERATION,DIRECTORATE SUPPORT,128.11,STATIONERY & GENERAL SUPPLIES-OFFICE EXP,"STATIONERY, OFFICE SUPPLIES AND WRITING PAPER (5111)"
17 Apr 2014,JOHAL DAIRIES LTD,NEIGHBOURHOOD SERVICES,CA TOWN HALL RESTAURANT - CATERING,28.01,MISC DAIRY PRODUCTS-PROVISIONS,OTHER NONDURABLE GOODS (5199)
17 Apr 2014,ARGOS B2B ONLINE,CHILDRENS SERVICES,FAMILY SUPPORT,119.11,BEDDING & LINEN-MATERIALS,DISCOUNT STORES (5310)
17 Apr 2014,CRAZY HOUSE (BROWNHILL,RESOURCES,WALSALL CRISIS SUPPORT SCHEME,105.00,CRISIS SUPPORT PAYMENTS,"EQUIPMENT, FURNITURE, AND HOME FURNISHINGS STORES  (5712)"
17 Apr 2014,GAME RETAIL LTD WALS,CHILDRENS SERVICES,SPINDLETREE,99.99,RESIDENTS PERSONAL EXPENSES-ALLOWANCES TO S/S CLIENTS,"GAME, TOY, AND HOBBY SHOPS (5945)"
17 Apr 2014,JOHAL DAIRIES LTD,NEIGHBOURHOOD SERVICES,CA BUSILL JONES PRIMARY SCHOOL,85.25,MISC DAIRY PRODUCTS-PROVISIONS,OTHER NONDURABLE GOODS (5199)
17 Apr 2014,GAME RETAIL LTD WALS,CHILDRENS SERVICES,SPINDLETREE,20.00,RESIDENTS PERSONAL EXPENSES-ALLOWANCES TO S/S CLIENTS,"GAME, TOY, AND HOBBY SHOPS (5945)"
17 Apr 2014,JOHAL DAIRIES LTD,NEIGHBOURHOOD SERVICES,CA CROFT COMMUNITY PRIMARY SCHOOL,19.47,MISC DAIRY PRODUCTS-PROVISIONS,OTHER NONDURABLE GOODS (5199)
17 Apr 2014,WALSALL CARPETS,RESOURCES,WALSALL CRISIS SUPPORT SCHEME,328.00,CRISIS SUPPORT PAYMENTS,FLOOR COVERING STORES (5713)
17 Apr 2014,JOHAL DAIRIES LTD,NEIGHBOURHOOD SERVICES,CA ST FRANCIS CATHOLIC PRIMARY SCHOOL,16.67,MISC DAIRY PRODUCTS-PROVISIONS,OTHER NONDURABLE GOODS (5199)
17 Apr 2014,JOHAL DAIRIES LTD,NEIGHBOURHOOD SERVICES,CA ST GILES C.E. PRIMARY SCHOOL,58.29,MISC DAIRY PRODUCTS-PROVISIONS,OTHER NONDURABLE GOODS (5199)
17 Apr 2014,JOHAL DAIRIES LTD,NEIGHBOURHOOD SERVICES,CA DELVES JUNIOR SCHOOL,80.00,MISC DAIRY PRODUCTS-PROVISIONS,OTHER NONDURABLE GOODS (5199)
17 Apr 2014,JOHAL DAIRIES LTD,NEIGHBOURHOOD SERVICES,CA OAKWOOD SPECIAL SCHOOL,13.95,MISC DAIRY PRODUCTS-PROVISIONS,OTHER NONDURABLE GOODS (5199)
17 Apr 2014,JOHAL DAIRIES LTD,NEIGHBOURHOOD SERVICES,CA JANE LANE SPECIAL SCHOOL,40.50,MISC DAIRY PRODUCTS-PROVISIONS,OTHER NONDURABLE GOODS (5199)
17 Apr 2014,JOHAL DAIRIES LTD,NEIGHBOURHOOD SERVICES,CA CALDMORE COMMUNITY PRIMARY SCHOOL,30.99,MISC DAIRY PRODUCTS-PROVISIONS,OTHER NONDURABLE GOODS (5199)
17 Apr 2014,JOHAL DAIRIES LTD,NEIGHBOURHOOD SERVICES,CA ELMWOOD SPECIAL SCHOOL,19.77,MISC DAIRY PRODUCTS-PROVISIONS,OTHER NONDURABLE GOODS (5199)
17 Apr 2014,JOHAL DAIRIES LTD,CHILDRENS SERVICES,STROUD FAMILY CENTRE,5.97,GENERAL PROVISIONS-PROVISIONS,OTHER NONDURABLE GOODS (5199)
17 Apr 2014,JOHAL DAIRIES LTD,NEIGHBOURHOOD SERVICES,CA WATLING STREET PRIMARY SCHOOL,25.84,MISC DAIRY PRODUCTS-PROVISIONS,OTHER NONDURABLE GOODS (5199)
17 Apr 2014,JOHAL DAIRIES LTD,NEIGHBOURHOOD SERVICES,CA LITTLE BLOXWICH CE PRIMARY SCHOOL,32.30,MISC DAIRY PRODUCTS-PROVISIONS,OTHER NONDURABLE GOODS (5199)
17 Apr 2014,JOHAL DAIRIES LTD,NEIGHBOURHOOD SERVICES,CA HARDEN PRIMARY SCHOOL,118.06,MISC DAIRY PRODUCTS-PROVISIONS,OTHER NONDURABLE GOODS (5199)
17 Apr 2014,JOHAL DAIRIES LTD,NEIGHBOURHOOD SERVICES,CA COOPER JORDAN CE PRIMARY SCHOOL,9.83,MISC DAIRY PRODUCTS-PROVISIONS,OTHER NONDURABLE GOODS (5199)
17 Apr 2014,AMAZON *MKTPLCE EU-UK,CHILDRENS SERVICES,LIBRARY,18.44,GENERAL MATERIALS,BOOK STORES (5942)
17 Apr 2014,W M MORRISON PLC,CHILDRENS SERVICES,"43A HILTON ROAD, WILLENHALL",13.33,NEW-FURNITURE & EQUIPMENT,GROCERY STORES AND SUPERMARKETS (5411)
17 Apr 2014,WWW.DRAYTONMANOR.CO.UK,CHILDRENS SERVICES,SPINDLETREE,176.50,RESIDENTS PERSONAL EXPENSES-ALLOWANCES TO S/S CLIENTS,TOURIST ATTRACTIONS AND EXHIBITS (7991)
18 Apr 2014,JOHAL DAIRIES LTD,NEIGHBOURHOOD SERVICES,CA ST MICHAELS C.E. PRIMARY SCHOOL,24.55,MISC DAIRY PRODUCTS-PROVISIONS,OTHER NONDURABLE GOODS (5199)
18 Apr 2014,JOHAL DAIRIES LTD,NEIGHBOURHOOD SERVICES,CA RADLEYS PRIMARY SCHOOL,48.84,MISC DAIRY PRODUCTS-PROVISIONS,OTHER NONDURABLE GOODS (5199)
18 Apr 2014,JOHAL DAIRIES LTD,NEIGHBOURHOOD SERVICES,CA BLAKENALL HEATH JUNIOR SCHOOL,58.59,MISC DAIRY PRODUCTS-PROVISIONS,OTHER NONDURABLE GOODS (5199)
18 Apr 2014,JOHAL DAIRIES LTD,NEIGHBOURHOOD SERVICES,CA GREEN ROCK PRIMARY,43.52,MISC DAIRY PRODUCTS-PROVISIONS,OTHER NONDURABLE GOODS (5199)
18 Apr 2014,JOHAL DAIRIES LTD,NEIGHBOURHOOD SERVICES,CA ST JAMES PRIMARY SCHOOL,71.38,MISC DAIRY PRODUCTS-PROVISIONS,OTHER NONDURABLE GOODS (5199)
18 Apr 2014,JOHAL DAIRIES LTD,NEIGHBOURHOOD SERVICES,CA LEAMORE PRIMARY SCHOOL,24.91,MISC DAIRY PRODUCTS-PROVISIONS,OTHER NONDURABLE GOODS (5199)
18 Apr 2014,JOHAL DAIRIES LTD,NEIGHBOURHOOD SERVICES,CA BLUE COAT C.E. INFANT SCHOOL,53.32,MISC DAIRY PRODUCTS-PROVISIONS,OTHER NONDURABLE GOODS (5199)
18 Apr 2014,JOHAL DAIRIES LTD,NEIGHBOURHOOD SERVICES,CA GREENFIELD PRIMARY,60.23,MISC DAIRY PRODUCTS-PROVISIONS,OTHER NONDURABLE GOODS (5199)
18 Apr 2014,JOHAL DAIRIES LTD,NEIGHBOURHOOD SERVICES,CA WALSALL WOOD PRIMARY SCHOOL,13.31,MISC DAIRY PRODUCTS-PROVISIONS,OTHER NONDURABLE GOODS (5199)
18 Apr 2014,JOHAL DAIRIES LTD,NEIGHBOURHOOD SERVICES,CA ST JOHNS C.E. PRIMARY SCHOOL,14.10,MISC DAIRY PRODUCTS-PROVISIONS,OTHER NONDURABLE GOODS (5199)
18 Apr 2014,JOHAL DAIRIES LTD,NEIGHBOURHOOD SERVICES,CA BLUE COAT C OF E PERFORMING ARTS COLLEGE,18.50,MISC DAIRY PRODUCTS-PROVISIONS,OTHER NONDURABLE GOODS (5199)
18 Apr 2014,JOHAL DAIRIES LTD,NEIGHBOURHOOD SERVICES,CA FIBBERSLEY PARK PRIMARY SCHOOL,49.45,MISC DAIRY PRODUCTS-PROVISIONS,OTHER NONDURABLE GOODS (5199)
18 Apr 2014,JOHAL DAIRIES LTD,NEIGHBOURHOOD SERVICES,CA CASTLEFORT JMI SCHOOL,37.90,MISC DAIRY PRODUCTS-PROVISIONS,OTHER NONDURABLE GOODS (5199)
18 Apr 2014,OFFICE DEPOT,NEIGHBOURHOOD SERVICES,RESOURCE MANAGEMENT,132.24,STATIONERY & GENERAL SUPPLIES-OFFICE EXP,"STATIONERY, OFFICE SUPPLIES AND WRITING PAPER (5111)"
18 Apr 2014,A F BLAKEMORE & SON LTD,NEIGHBOURHOOD SERVICES,DARLASTON TOWN HALL,102.38,MISCELLANEOUS SUPPLIES,GROCERY STORES AND SUPERMARKETS (5411)
18 Apr 2014,JOHAL DAIRIES LTD,NEIGHBOURHOOD SERVICES,CA BLACKWOOD PRIMARY SCHOOL,47.53,MISC DAIRY PRODUCTS-PROVISIONS,OTHER NONDURABLE GOODS (5199)
18 Apr 2014,AMAZON *MKTPLCE EU-UK,NEIGHBOURHOOD SERVICES,AP FINANCE & RESOURCES IT,4.68,COMPUTER EQUIPMENT AND SUPPLIES,BOOK STORES (5942)
18 Apr 2014,JOHAL DAIRIES LTD,NEIGHBOURHOOD SERVICES,TOWN HALL RESTAURANT BISTRO,45.96,MISC DAIRY PRODUCTS-PROVISIONS,OTHER NONDURABLE GOODS (5199)
18 Apr 2014,AMAZON EU,NEIGHBOURHOOD SERVICES,AP QUALITY & PERFORMANCE INSPIRING LEARNING,41.36,GENERAL MATERIALS,OTHER DIRECT MARKETING-OTHER DIRECT MARKETERS (5969)
18 Apr 2014,JOHAL DAIRIES LTD,NEIGHBOURHOOD SERVICES,CA MILLFIELD PRIMARY SCHOOL,48.25,MISC DAIRY PRODUCTS-PROVISIONS,OTHER NONDURABLE GOODS (5199)
18 Apr 2014,JOHAL DAIRIES LTD,NEIGHBOURHOOD SERVICES,CA DELVES INFANTS SCHOOL,8.08,MISC DAIRY PRODUCTS-PROVISIONS,OTHER NONDURABLE GOODS (5199)
18 Apr 2014,JOHAL DAIRIES LTD,NEIGHBOURHOOD SERVICES,CA BROWNHILLS COMMUNITY TECHNOLOGY COLLEGE,9.31,MISC DAIRY PRODUCTS-PROVISIONS,OTHER NONDURABLE GOODS (5199)
18 Apr 2014,OFFICE DEPOT,CHILDRENS SERVICES,CLUSTER 4 ALUMWELL & BIRCHILLS,70.78,STATIONERY & GENERAL SUPPLIES-OFFICE EXP,"STATIONERY, OFFICE SUPPLIES AND WRITING PAPER (5111)"
18 Apr 2014,JOHAL DAIRIES LTD,NEIGHBOURHOOD SERVICES,CA OLD HALL SPECIAL SCHOOL,20.41,MISC DAIRY PRODUCTS-PROVISIONS,OTHER NONDURABLE GOODS (5199)
18 Apr 2014,JOHAL DAIRIES LTD,NEIGHBOURHOOD SERVICES,CA PALFREY INFANT SCHOOL,5.58,MISC DAIRY PRODUCTS-PROVISIONS,OTHER NONDURABLE GOODS (5199)
18 Apr 2014,JOHAL DAIRIES LTD,NEIGHBOURHOOD SERVICES,CA WHETSTONE FIELD PRIMARY SCHOOL,7.95,MISC DAIRY PRODUCTS-PROVISIONS,OTHER NONDURABLE GOODS (5199)
18 Apr 2014,JOHAL DAIRIES LTD,NEIGHBOURHOOD SERVICES,CA ELMORE GREEN PRIMARY SCHOOL,33.47,MISC DAIRY PRODUCTS-PROVISIONS,OTHER NONDURABLE GOODS (5199)
19 Apr 2014,W M MORRISON PLC,CHILDRENS SERVICES,SPINDLETREE,27.42,GENERAL PROVISIONS-PROVISIONS,GROCERY STORES AND SUPERMARKETS (5411)
19 Apr 2014,W M MORRISON PLC,CHILDRENS SERVICES,SPINDLETREE,151.64,GENERAL PROVISIONS-PROVISIONS,GROCERY STORES AND SUPERMARKETS (5411)
19 Apr 2014,WWW.FRUITGALORE.CO.UK,CHILDRENS SERVICES,ADMINISTRATIVE SUPPLIES,30.98,GENERAL MATERIALS,MISCELLANEOUS FOOD STORES & CONVENIENCE STORES (5499)
19 Apr 2014,THE RANGE WILLENHALL,CHILDRENS SERVICES,"43A HILTON ROAD, WILLENHALL",9.98,NEW-FURNITURE & EQUIPMENT,MISCELLANEOUS GENERAL MERCHANDISE (5399)
19 Apr 2014,WILKINSONS,REGENERATION,BLOXWICH DISTRICT CENTRE,3.00,EVENTS,HOUSEHOLD APPLIANCE STORES (5722)
19 Apr 2014,W M MORRISON PLC,CHILDRENS SERVICES,SPINDLETREE,6.49,EQUIP NEW-CLEANING,GROCERY STORES AND SUPERMARKETS (5411)
20 Apr 2014,ORANGE (A/PM/02),RESOURCES,NETWORKS,1183.26,COMMS LINKS-COMPUTER,TELECOMMUNICATION SERVICES (4814)
20 Apr 2014,WIXCOM,CHILDRENS SERVICES,EDUCATION BUSINESS PARTNERSHIP (EBP),3.00,SOFTWARE ACQ-COMPUTER,COMPUTER SOFTWARE STORES (5734)
21 Apr 2014,AMAZON *MKTPLCE EU-UK,NEIGHBOURHOOD SERVICES,REGISTRAR,7.11,STATIONERY & GENERAL SUPPLIES-OFFICE EXP,BOOK STORES (5942)
22 Apr 2014,TESCO STORES 6161,CHILDRENS SERVICES,LOOKED AFTER CHILDRENS SOCIAL WORK TEAM,5.00,TRANSFER PAYMENTS - SOCIAL SERVICES CLIENTS,GROCERY STORES AND SUPERMARKETS (5411)
22 Apr 2014,TESCO STORES 6161,CHILDRENS SERVICES,LOOKED AFTER CHILDRENS SOCIAL WORK TEAM,7.00,TRANSFER PAYMENTS - SOCIAL SERVICES CLIENTS,GROCERY STORES AND SUPERMARKETS (5411)
22 Apr 2014,ASDA HOME DELIVERY,CHILDRENS SERVICES,ALUMWELL NURSERY,13.69,FOOD AND BEVERAGES-PROVISIONS,GROCERY STORES AND SUPERMARKETS (5411)
22 Apr 2014,ASDA HOME DELIVERY,CHILDRENS SERVICES,ALUMWELL NURSERY,74.30,FOOD AND BEVERAGES-PROVISIONS,GROCERY STORES AND SUPERMARKETS (5411)
22 Apr 2014,MCDONALDS REST,CHILDRENS SERVICES,LOOKED AFTER CHILDRENS SOCIAL WORK TEAM,14.49,TRANSFER PAYMENTS - SOCIAL SERVICES CLIENTS,QUICK PAYMENT SERVICE-FAST-FOOD RESTAURANTS (5814)
22 Apr 2014,MCDONALDS REST,CHILDRENS SERVICES,LOOKED AFTER CHILDRENS SOCIAL WORK TEAM,4.57,TRANSFER PAYMENTS - SOCIAL SERVICES CLIENTS,QUICK PAYMENT SERVICE-FAST-FOOD RESTAURANTS (5814)
22 Apr 2014,CO-OPERATIVE FOOD,CHILDRENS SERVICES,REDRUTH ROAD,2.90,GENERAL PROVISIONS-PROVISIONS,GROCERY STORES AND SUPERMARKETS (5411)
22 Apr 2014,JOHAL DAIRIES LTD,NEIGHBOURHOOD SERVICES,CA TOWN HALL RESTAURANT - CATERING,18.02,MISC DAIRY PRODUCTS-PROVISIONS,OTHER NONDURABLE GOODS (5199)
22 Apr 2014,HOME BARGAINS,CHILDRENS SERVICES,57 LICHFIELD ROAD,1.24,RESIDENTS PERSONAL EXPENSES-ALLOWANCES TO S/S CLIENTS,HARDWARE STORES (5251)
22 Apr 2014,HOME BARGAINS,CHILDRENS SERVICES,57 LICHFIELD ROAD,0.90,RESIDENTS PERSONAL EXPENSES-ALLOWANCES TO S/S CLIENTS,HARDWARE STORES (5251)
22 Apr 2014,ARCO LTD,REGENERATION,SMARTER WORKPLACES WORKPLACE SOLUTIONS,516.00,"REPAIRS,ALTERATIONS & MAINTENANCE-PREM","MEN'S, WOMEN'S, AND CHILDREN'S UNIFORMS (5137)"
22 Apr 2014,BLAKEMORE FOODSERVICE,NEIGHBOURHOOD SERVICES,CA JANE LANE SPECIAL SCHOOL,-12.38,FROZEN FOODS-PROVISIONS,CATERERS (5811)
22 Apr 2014,BLAKEMORE FOODSERVICE,NEIGHBOURHOOD SERVICES,TOWN HALL RESTAURANT BISTRO,204.05,DRY FOODS-PROVISIONS,CATERERS (5811)
22 Apr 2014,BLAKEMORE FOODSERVICE,NEIGHBOURHOOD SERVICES,TOWN HALL RESTAURANT BISTRO,374.53,DRY FOODS-PROVISIONS,CATERERS (5811)
22 Apr 2014,JOHAL DAIRIES LTD,CHILDRENS SERVICES,STROUD FAMILY CENTRE,3.98,GENERAL PROVISIONS-PROVISIONS,OTHER NONDURABLE GOODS (5199)
22 Apr 2014,THE TRAINLINE.COM,NEIGHBOURHOOD SERVICES,AP FINANCE & RESOURCES STAFF DEVELOPMENT,118.83,OFFICER/STAFF-PUBLIC TRANSPORT,PASSENGER RAILWAYS (4112)
22 Apr 2014,PAMPEREDCHEF,CHILDRENS SERVICES,STANLEYS NURSERY,40.25,CATERING,DIRECT MARKETING CATALOG MERCHANTS (5964)
22 Apr 2014,BLAKEMORE FOODSERVICE,NEIGHBOURHOOD SERVICES,CA ELMORE GREEN PRIMARY SCHOOL,-50.56,DRY FOODS-PROVISIONS,CATERERS (5811)
22 Apr 2014,OFFICE DEPOT,CHILDRENS SERVICES,CHILDRENS RESIDENTIAL SVCS,47.18,STATIONERY & GENERAL SUPPLIES-OFFICE EXP,"STATIONERY, OFFICE SUPPLIES AND WRITING PAPER (5111)"
22 Apr 2014,BORSHCH ELECTRIC,RESOURCES,WALSALL CRISIS SUPPORT SCHEME,140.00,CRISIS SUPPORT PAYMENTS,HOUSEHOLD APPLIANCE STORES (5722)
22 Apr 2014,BLAKEMORE FOODSERVICE,NEIGHBOURHOOD SERVICES,CA BROWNHILLS COMMUNITY TECHNOLOGY COLLEGE,-243.36,FROZEN FOODS-PROVISIONS,CATERERS (5811)
22 Apr 2014,JOHAL DAIRIES LTD,NEIGHBOURHOOD SERVICES,TOWN HALL RESTAURANT BISTRO,28.47,MISC DAIRY PRODUCTS-PROVISIONS,OTHER NONDURABLE GOODS (5199)
22 Apr 2014,AMAZON EU,CHILDRENS SERVICES,ADMINISTRATIVE SUPPLIES,10.80,GENERAL MATERIALS,OTHER DIRECT MARKETING-OTHER DIRECT MARKETERS (5969)
22 Apr 2014,PAYPAL,NEIGHBOURHOOD SERVICES,AP FINANCE & RESOURCES STAFF DEVELOPMENT,12.00,EXTERNAL TRAINING,ADVERTISING SERVICES (7311)
22 Apr 2014,BLAKEMORE FOODSERVICE,NEIGHBOURHOOD SERVICES,CA BROWNHILLS COMMUNITY TECHNOLOGY COLLEGE,-243.36,FROZEN FOODS-PROVISIONS,CATERERS (5811)
22 Apr 2014,ASDA HOME DELIVERY,CHILDRENS SERVICES,"CLUSTER 3 BLOXWICH,BLAKENALL,HATHERTON,E STAMMERS",66.08,FOOD AND BEVERAGES-PROVISIONS,GROCERY STORES AND SUPERMARKETS (5411)
22 Apr 2014,TESCO STORES 6161,CHILDRENS SERVICES,STANLEYS NURSERY,41.08,FOOD AND BEVERAGES-PROVISIONS,GROCERY STORES AND SUPERMARKETS (5411)
22 Apr 2014,JOHAL DAIRIES LTD,CHILDRENS SERVICES,57 LICHFIELD ROAD,19.05,GENERAL PROVISIONS-PROVISIONS,OTHER NONDURABLE GOODS (5199)
22 Apr 2014,HOME BARGAINS,CHILDRENS SERVICES,57 LICHFIELD ROAD,1.39,RESIDENTS PERSONAL EXPENSES-ALLOWANCES TO S/S CLIENTS,HARDWARE STORES (5251)
22 Apr 2014,TESCO STORES 6161,RESOURCES,WALSALL CRISIS SUPPORT SCHEME,14.87,CRISIS SUPPORT PAYMENTS,GROCERY STORES AND SUPERMARKETS (5411)
22 Apr 2014,IKEA,RESOURCES,ACCOMMODATION SERVICES MANAGEMENT,140.00,FURNITURE & EQUIPMENT,MISCELLANEOUS HOUSE FURNISHING SPECIALTY SHOPS (5719)
22 Apr 2014,JOHAL DAIRIES LTD,SOCIAL CARE & INCLUSION,FALLINGS HEATH,40.32,MISC DAIRY PRODUCTS-PROVISIONS,OTHER NONDURABLE GOODS (5199)
22 Apr 2014,OFFICE DEPOT,RESOURCES,ELECTORAL SERVICES,12.41,STATIONERY & GENERAL SUPPLIES-OFFICE EXP,"STATIONERY, OFFICE SUPPLIES AND WRITING PAPER (5111)"
22 Apr 2014,ASDA STORES,CHILDRENS SERVICES,CLUSTER 5 DARLASTON,62.11,FOOD AND BEVERAGES-PROVISIONS,GROCERY STORES AND SUPERMARKETS (5411)
22 Apr 2014,TRAINLINE.COM,CHILDRENS SERVICES,LOOKED AFTER CHILDRENS SOCIAL WORK TEAM,56.20,SUPPORT UNDER SECTION 23 OF THE CHILDRENS ACT,PASSENGER RAILWAYS (4112)
22 Apr 2014,JOHAL DAIRIES LTD,SOCIAL CARE & INCLUSION,REABLEMENT TEAM - HOLLY BANK,91.23,MISC DAIRY PRODUCTS-PROVISIONS,OTHER NONDURABLE GOODS (5199)
22 Apr 2014,CINEWORLD WOL CP,CHILDRENS SERVICES,57 LICHFIELD ROAD,15.30,RESIDENTS PERSONAL EXPENSES-ALLOWANCES TO S/S CLIENTS,"THEATRICAL PRODUCERS, TIC (7922)"
22 Apr 2014,BLAKEMORE FOODSERVICE,NEIGHBOURHOOD SERVICES,CA TOWN HALL RESTAURANT - CATERING,184.86,DRY FOODS-PROVISIONS,CATERERS (5811)
22 Apr 2014,BLAKEMORE FOODSERVICE,NEIGHBOURHOOD SERVICES,CA TOWN HALL RESTAURANT - CATERING,8.64,DRY FOODS-PROVISIONS,CATERERS (5811)
22 Apr 2014,BLAKEMORE FOODSERVICE,NEIGHBOURHOOD SERVICES,CA WHITEHALL JUNIOR COMMUNITY SCHOOL,-14.41,FROZEN FOODS-PROVISIONS,CATERERS (5811)
22 Apr 2014,OFFICE DEPOT,SOCIAL CARE & INCLUSION,INTEGRATED BUSINESS PROCESSES & SERVICES,23.76,STATIONERY & GENERAL SUPPLIES-OFFICE EXP,"STATIONERY, OFFICE SUPPLIES AND WRITING PAPER (5111)"
22 Apr 2014,THE TRAINLINE.COM,RESOURCES,LEARNING & MANAGEMENT DEVELOPMENT,12.04,OFFICER/STAFF-PUBLIC TRANSPORT,PASSENGER RAILWAYS (4112)
22 Apr 2014,ASDA HOME DELIVERY,CHILDRENS SERVICES,GREENFIELD PRIMARY,58.12,FOOD AND BEVERAGES-PROVISIONS,GROCERY STORES AND SUPERMARKETS (5411)
22 Apr 2014,SPELLBOUND,NEIGHBOURHOOD SERVICES,JK LEARNING FOR LIVING & WORK,226.30,GENERAL MATERIALS,"ARTIST SUPPLY STORES, CRAFT SHOPS (5970)"
22 Apr 2014,AMAZON *MKTPLCE EU-UK,NEIGHBOURHOOD SERVICES,MAIN COLLEGE,27.96,LIBRARY BOOKS,BOOK STORES (5942)
22 Apr 2014,ROSS ON WYE SERVICE STATI,CHILDRENS SERVICES,"43A HILTON ROAD, WILLENHALL",30.01,FUEL-TRANSPORT RUN COSTS,SERVICE STATIONS (5541)
22 Apr 2014,WVR.UK (HOSEASONS GP),CHILDRENS SERVICES,EARLY YEARS AND DISABILITIES SERVICE,992.36,PROFESSIONAL FEES AND SERVICES,TRAVEL AGENCIES AND TOUR OPERATORS (4722)
23 Apr 2014,BORSHCH ELECTRIC,RESOURCES,WALSALL CRISIS SUPPORT SCHEME,-460.00,CRISIS SUPPORT PAYMENTS,HOUSEHOLD APPLIANCE STORES (5722)
23 Apr 2014,TESCO STORES 6161,CHILDRENS SERVICES,PARENTING TEAM,100.00,FOOD AND BEVERAGES-PROVISIONS,GROCERY STORES AND SUPERMARKETS (5411)
23 Apr 2014,TESCO STORES 6161,RESOURCES,WALSALL CRISIS SUPPORT SCHEME,56.40,CRISIS SUPPORT PAYMENTS,GROCERY STORES AND SUPERMARKETS (5411)
23 Apr 2014,CRAZY HOUSE (BROWNHILL,RESOURCES,WALSALL CRISIS SUPPORT SCHEME,595.00,CRISIS SUPPORT PAYMENTS,"EQUIPMENT, FURNITURE, AND HOME FURNISHINGS STORES  (5712)"
23 Apr 2014,CANAL & RIVER TRUST,NEIGHBOURHOOD SERVICES,WALSALL CANAL BOATS,735.86,EXHIBITIONS - MARKETING,TOURIST ATTRACTIONS AND EXHIBITS (7991)
23 Apr 2014,BORSHCH ELECTRIC,RESOURCES,WALSALL CRISIS SUPPORT SCHEME,195.00,CRISIS SUPPORT PAYMENTS,HOUSEHOLD APPLIANCE STORES (5722)
23 Apr 2014,BORSHCH ELECTRIC,RESOURCES,WALSALL CRISIS SUPPORT SCHEME,400.00,CRISIS SUPPORT PAYMENTS,HOUSEHOLD APPLIANCE STORES (5722)
23 Apr 2014,OFFICE DEPOT,CHILDRENS SERVICES,INITIAL RESPONSE SERVICE,299.26,STATIONERY & GENERAL SUPPLIES-OFFICE EXP,"STATIONERY, OFFICE SUPPLIES AND WRITING PAPER (5111)"
23 Apr 2014,THE TRAINLINE.COM,SOCIAL CARE & INCLUSION,SENIOR MANAGEMENT TEAM,96.90,OFFICER/STAFF-PUBLIC TRANSPORT,PASSENGER RAILWAYS (4112)
23 Apr 2014,WALSALL COUNCIL,CHILDRENS SERVICES,SAFEGUARDING & FAMILY SUPPORT,20.00,SECTION 1/17CHILD CARE ACT 1989-ASSISTANCE TO S/S CLIENTS,GOVERNMENT SERVICES (9399)
23 Apr 2014,ASDA HOME DELIVERY,CHILDRENS SERVICES,"ELDON STREET, WALSALL",175.41,GENERAL PROVISIONS-PROVISIONS,GROCERY STORES AND SUPERMARKETS (5411)
23 Apr 2014,TRAINLINE.COM,CHILDRENS SERVICES,SAFEGUARDING & FAMILY SUPPORT,193.80,OFFICER/STAFF-PUBLIC TRANSPORT,PASSENGER RAILWAYS (4112)
23 Apr 2014,WWW.NEOPOST.CO.UK,CHILDRENS SERVICES,UNIVERSAL EDUCATION CLIENT UNIT,800.00,POSTAGES AND COURIER SERVICES,"STATIONERY, OFFICE SUPPLIES AND WRITING PAPER (5111)"
23 Apr 2014,WWW.NEOPOST.CO.UK,CHILDRENS SERVICES,UNIVERSAL EDUCATION CLIENT UNIT,24.00,POSTAGES AND COURIER SERVICES,"STATIONERY, OFFICE SUPPLIES AND WRITING PAPER (5111)"
23 Apr 2014,SIGNS OF THE TIMES,REGENERATION,"STATUES, MEMORIALS & CLOCKS",180.00,"REPAIRS,ALTERATIONS & MAINTENANCE-PREM",OTHER BUSINESS SERVICES (7399)
23 Apr 2014,OFFICE DEPOT,CHILDRENS SERVICES,CHILDRENS RESIDENTIAL SVCS,70.78,STATIONERY & GENERAL SUPPLIES-OFFICE EXP,"STATIONERY, OFFICE SUPPLIES AND WRITING PAPER (5111)"
23 Apr 2014,AMAZON *MKTPLCE EU-UK,CHILDRENS SERVICES,ADMINISTRATIVE SUPPLIES,32.40,GENERAL MATERIALS,BOOK STORES (5942)
23 Apr 2014,TESCO PFS 4188,CHILDRENS SERVICES,LOOKED AFTER CHILDRENS SOCIAL WORK TEAM,15.02,TRANSFER PAYMENTS - SOCIAL SERVICES CLIENTS,SERVICE STATIONS (5541)
23 Apr 2014,W M MORRISON PLC,CHILDRENS SERVICES,"43A HILTON ROAD, WILLENHALL",15.97,FOOD AND BEVERAGES-PROVISIONS,GROCERY STORES AND SUPERMARKETS (5411)
23 Apr 2014,TESCO STORES 6161,CHILDRENS SERVICES,PARENTING TEAM,100.00,FOOD AND BEVERAGES-PROVISIONS,GROCERY STORES AND SUPERMARKETS (5411)
23 Apr 2014,MNA LTD CARDCHARGE,REGENERATION,DEVELOPMENT MANAGEMENT,307.20,PERIODICALS/MAGAZINES/NEWSPAPERS-SUBSCRIPTIONS,NEWS DEALERS AND NEWSSTANDS (5994)
23 Apr 2014,ARTHUR BRETT CATER,NEIGHBOURHOOD SERVICES,CA TOWN HALL RESTAURANT - CATERING,15.90,FRUIT & VEGETABLES OTHER-PROVISIONS,MISCELLANEOUS FOOD STORES & CONVENIENCE STORES (5499)
23 Apr 2014,WM MORRISONS,NEIGHBOURHOOD SERVICES,ARBORETUM,14.45,FOOD AND BEVERAGES-PROVISIONS,GROCERY STORES AND SUPERMARKETS (5411)
23 Apr 2014,ARGOS LTD,CHILDRENS SERVICES,REDRUTH ROAD,149.99,FURNITURE & EQUIPMENT,DISCOUNT STORES (5310)
23 Apr 2014,W M MORRISON PLC,CHILDRENS SERVICES,SPINDLETREE,8.50,GENERAL PROVISIONS-PROVISIONS,GROCERY STORES AND SUPERMARKETS (5411)
23 Apr 2014,STAR CUTOUTS LIMIT,NEIGHBOURHOOD SERVICES,FOREST ARTS CENTRE,34.99,GENERAL MATERIALS,OTHER BUSINESS SERVICES (7399)
23 Apr 2014,ARTHUR BRETT CATER,NEIGHBOURHOOD SERVICES,TOWN HALL RESTAURANT BISTRO,30.56,FRUIT & VEGETABLES OTHER-PROVISIONS,MISCELLANEOUS FOOD STORES & CONVENIENCE STORES (5499)
23 Apr 2014,OFFICE DEPOT,CHILDRENS SERVICES,CHILDRENS RESIDENTIAL SVCS,176.83,STATIONERY & GENERAL SUPPLIES-OFFICE EXP,"STATIONERY, OFFICE SUPPLIES AND WRITING PAPER (5111)"
23 Apr 2014,THE TRAINLINE.COM,NEIGHBOURHOOD SERVICES,POLLUTION DIVISION,116.18,OFFICER/STAFF-PUBLIC TRANSPORT,PASSENGER RAILWAYS (4112)
23 Apr 2014,WM MORRISON 063,CHILDRENS SERVICES,REDRUTH ROAD,5.69,GENERAL PROVISIONS-PROVISIONS,GROCERY STORES AND SUPERMARKETS (5411)
23 Apr 2014,WM MORRISON 063,CHILDRENS SERVICES,REDRUTH ROAD,87.54,GENERAL PROVISIONS-PROVISIONS,GROCERY STORES AND SUPERMARKETS (5411)
23 Apr 2014,BLAKEMORE FOODSERVICE,NEIGHBOURHOOD SERVICES,CA BLUE COAT C.E. JUNIOR SCHOOL,87.43,FROZEN FOODS-PROVISIONS,CATERERS (5811)
23 Apr 2014,B & Q,NEIGHBOURHOOD SERVICES,ARBORETUM,42.02,GENERAL MATERIALS,LUMBER & BUILDING MATERIALS STORES (5211)
23 Apr 2014,ASDA HOME DELIVERY,CHILDRENS SERVICES,57 LICHFIELD ROAD,111.92,GENERAL PROVISIONS-PROVISIONS,GROCERY STORES AND SUPERMARKETS (5411)
23 Apr 2014,SAINSBURYS S/MKT,CHILDRENS SERVICES,SPINDLETREE,13.36,GENERAL PROVISIONS-PROVISIONS,GROCERY STORES AND SUPERMARKETS (5411)
24 Apr 2014,WELSH BROS FOODS LTD,NEIGHBOURHOOD SERVICES,CA TOWN HALL RESTAURANT - CATERING,170.75,MEAT-PROVISIONS,FREEZER AND LOCKER MEAT PROVISIONERS (5422)
